Workbook

Sheet Cover page
B27: 2023-01-31
B30: RIN.10: 2024-2029 - Reset RIN - workbook 1 - forecast data
B34: Ausgrid’s 2024-29 Regulatory Proposal

Sheet Instructions
B2: =CONCATENATE(dms_Sector," ",dms_Segment," ", "Network Service Provider") -> Electricity Distribution Network Service Provider
B3: =IF(dms_Model="Reset","Regulatory Proposal RIN Template","Annual Reporting RIN") -> Regulatory Proposal RIN Template
B4: =CONCATENATE("This template is to be used by ",INDEX(dms_TradingNameFull_List,MATCH(dms_TradingName,dms_TradingName_List))," to fulfil its reporting obligations to the AER.") -> This template is to be used by Ausgrid to fulfil its reporting obligations to the AER.
B5: INSTRUCTIONS
B6: GENERAL | C6: Complete the Business & other details worksheet before entering data or values in any other worksheets. The Business & other details worksheet is linked to other worksheets within the workbook and automatically generates certain column headings and conditional formatting.
B8: CONFIDENTIAL INFORMATION | C8: Please use the macro at the top of each worksheet to identify confidential information in the confidential workbook.
C9: -Do this by selecting the cell or cells that contain confidential information and then run the Mark selection as CONFIDENTIAL macro. This will format the cells a specific colour that is identified by the AER's database which in turn marks that information as confidential. -To reverse this, select the cell or cells and run the Return selection to NON-CONFIDENTIAL macro.
B11: RESPONSES | C11: Please return two (2) files to the AER: 1. A confidential version which must contain a complete set of all responses with confidential information marked using the Mark selection CONFIDENTIAL macro and which has been completed using the locked template file provided by the AER. 2. A public version with confidential information either removed completely or aggregated in some form together with writtten consent to disclose the public version of the response. Use the drop down box on the Business and other details worksheet to identify the file as either confidential ('consolidated') or public.
B13: AMENDMENTS | C13: If an NSP wishes to correct data previously submitted to the AER it should resubmit that data using the original completed submission as the starting point. Please make any necessary changes to the data. Data that is not being amended should be left unchanged. NSPs must identify the reason for the amendments in the Amendment Reason box on the Business and other details worksheet. NSPs may provide further details regarding any amendments in the Amendments worksheet. .
C14: NSP may use Amended Data macro to highlight cells that contain amended data. NB: if data is also CONFIDENTIAL, re-apply the Confidentiality macro after applying the Amended macro
C15: Please resubmit two (2) files - a confidential version and a public version of the amended submission to the AER
B17: UNITS OF MEASURE | C17: All amounts are to be unrounded and reported on a one for one basis: that is 1000 is to be entered as '1000'. Applicable units of measure may be identified in the table column headings or row descriptors.
B19: INPUT / NON-INPUT CELLS
D20: Yellow = Input cell (mandatory)
D21: Darker yellow = input cell (mandatory)
D22: Orange = input cell (if data available)
D23: Grey = Not applicable/No inputs required
D24: PLEASE DO NOT ENTER TEXT into cells that are to contain numbers (including 'numbers stored as text')
B27: NAVIGATION | C27: Many tables in the worksheets have been "grouped" to allow for easy navigation. To ungroup or group data use the outline symbols in the left margin (for Row groupings) or above the columns (for column groupings).

Sheet CONTENTS
C1: =IF(dms_MultiYear_ResponseFlag="Yes","REGULATORY REPORTING STATEMENT - HISTORICAL INFORMATION",INDEX(dms_Worksheet_List,MATCH(dms_Model,dms_Model_List))) -> REGULATORY REPORTING STATEMENT
C2: =INDEX(dms_TradingNameFull_List,MATCH(dms_TradingName,dms_TradingName_List)) -> Ausgrid
C3: =CONCATENATE("REGULATORY PERIOD FROM ", FRCP_y1," TO ",dms_MultiYear_FinalYear_Result) -> REGULATORY PERIOD FROM 2024-25 TO 2028-29
D7: CONTENTS
D9: TEMPLATE | E9: FINAL RIN OCTOBER 2022
D11: SUBMISSION | E11: Business & other details
D13: EXPENDITURE | E13: 2.1 Expenditure summary
E14: 2.2 Repex
E15: 2.3 Augex (b)
E16: 2.5 Connections
E17: 2.6 Non-network
E18: 2.10 Overheads
E19: 2.11 Labour
E20: 2.14 Forecast price changes
E21: 2.16 Opex Summary
E22: 2.17 Step Changes
D24: ECONOMIC BENCHMARKING | E24: 3.1 Revenue
E25: 3.2 Operating expenditure
E26: 3.3 Assets (RAB)
E27: 3.4 Operational data
E28: 3.5 Physical assets
E29: 3.6 Quality of service
E30: 3.7 Operating Environment
D32: ALTERNATIVE CONTROL | E32: 4.1 Public lighting
D34: NETWORK | E34: 5.4 MD & utilisation-Spatial
D36: SERVICE | E36: 6.2 Reliability & Cust serv
D38: OTHER | E38: 7.1 Policies and Procedures
E39: 7.2 Contingent projects
E40: 7.3 Obligations
E41: 7.4 Shared Assets
E42: 7.7 TSS-LRMC
E43: 7.8 Export Services

Sheet Business & other details
V1: =INDEX(dms_Worksheet_List,MATCH(dms_Model,dms_Model_List)) -> REGULATORY REPORTING STATEMENT
V2: =INDEX(dms_TradingNameFull_List,MATCH(dms_TradingName,dms_TradingName_List)) -> Ausgrid
V3: =CONCATENATE("REGULATORY PERIOD FROM ", FRCP_y1," TO ",dms_MultiYear_FinalYear_Result) -> REGULATORY PERIOD FROM 2024-25 TO 2028-29
V4: BUSINESS & OTHER DETAILS
V6: INSTRUCTIONS
V7: Complete the following business details regulatory template before entering data or values in any other regulatory template. This regulatory template is linked to other cells within the spreadsheet and automatically generates column headings and conditional formatting to distinguish business specific input and non-input cells.
Q9: SUBMISSION PARTICULARS INPUT SHEET
V12: ENTITY DETAILS
V14: Business Name
V16: Short name | AL16: Ausgrid
V17: ACN/ABN | AL17: =INDEX(dms_ABN_List,MATCH(dms_TradingName,dms_TradingName_List)) -> 67505337385
V21: Business Address | BQ21: Postal Address
V23: Address 1 | AL23: =INDEX(dms_Addr1_List,MATCH(dms_TradingName,dms_TradingName_List)) -> 570 George St | BI23: Address 1 | BQ23: =INDEX(dms_PAddr1_List,MATCH(dms_TradingName,dms_TradingName_List)) -> GPO Box 4009
V24: Address 2 | AL24: =IF(ISBLANK(INDEX(dms_Addr2_List,MATCH(dms_TradingName,dms_TradingName_List))),"",(INDEX(dms_Addr2_List,MATCH(dms_TradingName,dms_TradingName_List)))) ->  | BI24: Address 2 | BQ24: =IF(ISBLANK(INDEX(dms_PAddr2_List,MATCH(dms_TradingName,dms_TradingName_List))),"",(INDEX(dms_PAddr2_List,MATCH(dms_TradingName,dms_TradingName_List)))) -> 
V25: Suburb | AL25: =INDEX(dms_Suburb_List,MATCH(dms_TradingName,dms_TradingName_List)) -> SYDNEY | BI25: Suburb | BQ25: =INDEX(dms_PSuburb_List,MATCH(dms_TradingName,dms_TradingName_List)) -> SYDNEY
V26: State | AL26: =INDEX(dms_State_List,MATCH(dms_TradingName,dms_TradingName_List)) -> NSW | AV26: Post code | BI26: State | BQ26: =INDEX(dms_PState_List,MATCH(dms_TradingName,dms_TradingName_List)) -> NSW | CA26: Post code
BA28: `
V30: Contact Names
V32: Name | BI32: Name
V33: Phone | BI33: Phone
V34: Email | BI34: Email
Q39: REGULATORY CONTROL PERIODS
Z42: Forthcoming period | AL42: 2024-25 | AU42: =FRCP_y2 -> 2025-26 | BD42: =FRCP_y3 -> 2026-27 | BM42: =FRCP_y4 -> 2027-28 | BV42: =FRCP_y5 -> 2028-29
AL43: =FRCP_y6 -> 2029-30 | AU43: =FRCP_y7 -> 2030-31 | BD43: =FRCP_y8 -> 2031-32 | BM43: =FRCP_y9 -> 2032-33 | BV43: =FRCP_y10 -> 2033-34
AL44: =FRCP_y11 -> 2034-35 | AU44: =FRCP_y12 -> 2035-36 | BD44: =FRCP_y13 -> 2036-37 | BM44: =FRCP_y14 -> 2037-38 | BV44: =FRCP_y15 -> 2038-39
X46: RESETS | Z46: Current period | AL46: =CRCP_y1 -> 2019-20 | AU46: =CRCP_y2 -> 2020-21 | BD46: =CRCP_y3 -> 2021-22 | BM46: =CRCP_y4 -> 2022-23 | BV46: =CRCP_y5 -> 2023-24
AL47: =CRCP_y6 -> 2024-25 | AU47: =CRCP_y7 -> 2025-26 | BD47: =CRCP_y8 -> 2026-27 | BM47: =CRCP_y9 -> 2027-28 | BV47: =CRCP_y10 -> 2028-29
AL48: =CRCP_y11 -> 2029-30 | AU48: =CRCP_y12 -> 2030-31 | BD48: =CRCP_y13 -> 2031-32 | BM48: =CRCP_y14 -> 2032-33 | BV48: =CRCP_y15 -> 2033-34
Z50: Previous period | AL50: =PRCP_y1 -> 2014-15 | AU50: =PRCP_y2 -> 2015-16 | BD50: =PRCP_y3 -> 2016-17 | BM50: =PRCP_y4 -> 2017-18 | BV50: =PRCP_y5 -> 2018-19
AL51: =PRCP_y6 -> 2019-20 | AU51: =PRCP_y7 -> 2020-21 | BD51: =PRCP_y8 -> 2021-22 | BM51: =PRCP_y9 -> 2022-23 | BV51: =PRCP_y10 -> 2023-24
AL52: =PRCP_y11 -> 2024-25 | AU52: =PRCP_y12 -> 2025-26 | BD52: =PRCP_y13 -> 2026-27 | BM52: =PRCP_y14 -> 2027-28 | BV52: =PRCP_y15 -> 2028-29
Z54: Commencing year | AL54: 2022-23
X55: ANNUAL RINS
Z56: Final year | AL56: 2028-29
Q60: SUBMISSION DETAILS
Z62: RIN type | AL62: =INDIRECT(dms_Model) -> Regulatory Reporting (Reset)
Z64: Source | AL64: Regulatory proposal
X66: THIS FILE | Z66: Data Quality | AL66: Consolidated
Z68: Confidentiality Status | AL68: Public
Z70: Amended RIN Amendment Reason | AL70: .
Z74: Submission Date | AL74: dd/mm/yy | BD74: Please enter date this file submitted to AER

Sheet 2.1 Expenditure summary
B1: =INDEX(dms_Worksheet_List,MATCH(dms_Model,dms_Model_List)) -> REGULATORY REPORTING STATEMENT
B2: =INDEX(dms_TradingNameFull_List,MATCH(dms_TradingName,dms_TradingName_List)) -> Ausgrid
B3: =CONCATENATE("REGULATORY PERIOD FROM ", FRCP_y1," TO ",dms_MultiYear_FinalYear_Result) -> REGULATORY PERIOD FROM 2024-25 TO 2028-29
B4: 2.1 EXPENDITURE SUMMARY & RECONCILIATION
B7: 2.1.1 - STANDARD CONTROL SERVICES CAPEX (including dual function assets)
C8: =CONCATENATE("EXPENDITURE ($0's, real ", dms_DollarReal, ")") -> EXPENDITURE ($0's, real June 2024)
C9: =CRCP_y4 -> 2022-23 | D9: =CRCP_y5 -> 2023-24 | E9: =FRCP_y1 -> 2024-25 | F9: =FRCP_y2 -> 2025-26 | G9: =FRCP_y3 -> 2026-27 | H9: =FRCP_y4 -> 2027-28 | I9: =FRCP_y5 -> 2028-29
B10: Replacement expenditure | C10: =SUM('2.2 Repex'!D12:D182) -> 395566981.5 | D10: =SUM('2.2 Repex'!E12:E182) -> 363892822.4 | E10: =SUM('2.2 Repex'!F12:F182) -> 332589886.1 | F10: =SUM('2.2 Repex'!G12:G182) -> 322525124.5 | G10: =SUM('2.2 Repex'!H12:H182) -> 335465457.4 | H10: =SUM('2.2 Repex'!I12:I182) -> 350191287.3 | I10: =SUM('2.2 Repex'!J12:J182) -> 347145816.3
B11: Connections | C11: =SUM('2.5 Connections'!E123:E136) -> 12928193.01 | D11: =SUM('2.5 Connections'!F123:F136) -> 9153896.983 | E11: =SUM('2.5 Connections'!G123:G136) -> 14304769.07 | F11: =SUM('2.5 Connections'!H123:H136) -> 11381958.97 | G11: =SUM('2.5 Connections'!I123:I136) -> 11201084.75 | H11: =SUM('2.5 Connections'!J123:J136) -> 12093701.29 | I11: =SUM('2.5 Connections'!K123:K136) -> 11760673.92
B12: Augmentation Expenditure | C12: =SUM('2.3 Augex (b)'!D47:D55) -> 23232705.04 | D12: =SUM('2.3 Augex (b)'!E47:E55) -> 29096786.44 | E12: =SUM('2.3 Augex (b)'!F47:F55) -> 45742254.35 | F12: =SUM('2.3 Augex (b)'!G47:G55) -> 39583340.1 | G12: =SUM('2.3 Augex (b)'!H47:H55) -> 40874874.73 | H12: =SUM('2.3 Augex (b)'!I47:I55) -> 38798225.1 | I12: =SUM('2.3 Augex (b)'!J47:J55) -> 36755837.63
B13: Non-network | C13: =SUM('2.6 Non-network'!E32:E50) -> 162807985 | D13: =SUM('2.6 Non-network'!F32:F50) -> 187402595 | E13: =SUM('2.6 Non-network'!G32:G50) -> 177633603 | F13: =SUM('2.6 Non-network'!H32:H50) -> 148587561 | G13: =SUM('2.6 Non-network'!I32:I50) -> 121945978 | H13: =SUM('2.6 Non-network'!J32:J50) -> 86415668 | I13: =SUM('2.6 Non-network'!K32:K50) -> 66757045
B14: Export services | C14: =SUM('7.8 Export Services'!C23:C25) -> 0 | D14: =SUM('7.8 Export Services'!D23:D25) -> 0 | E14: =SUM('7.8 Export Services'!E23:E25) -> 10191492.26 | F14: =SUM('7.8 Export Services'!F23:F25) -> 9715388.81 | G14: =SUM('7.8 Export Services'!G23:G25) -> 5448028.96 | H14: =SUM('7.8 Export Services'!H23:H25) -> 5250526.02 | I14: =SUM('7.8 Export Services'!I23:I25) -> 4980558.66
B15: Public lighting
B16: Metering
B17: Capitalised network overheads | C17: ='2.10 Overheads'!D15 -> 158403726 | D17: ='2.10 Overheads'!E15 -> 153329857 | E17: ='2.10 Overheads'!F15 -> 137923302 | F17: ='2.10 Overheads'!G15 -> 140390232 | G17: ='2.10 Overheads'!H15 -> 144593861 | H17: ='2.10 Overheads'!I15 -> 141358290 | I17: ='2.10 Overheads'!J15 -> 138536973
B18: Capitalised corporate overheads | C18: ='2.10 Overheads'!D30 -> 5819014 | D18: ='2.10 Overheads'!E30 -> 3529789 | E18: ='2.10 Overheads'!F30 -> 5007249 | F18: ='2.10 Overheads'!G30 -> 6531585 | G18: ='2.10 Overheads'!H30 -> 4071473 | H18: ='2.10 Overheads'!I30 -> 2650098 | I18: ='2.10 Overheads'!J30 -> 2514286
B19: capcons (included in the above)
B20: Total | C20: =SUM(C10:C18) -> 758758604.5 | D20: 746405746.8 | E20: 723392555.8 | F20: 678715190.4 | G20: 663600757.8 | H20: 636757795.7 | I20: 608451190.5
B23: 2.1.2 - STANDARD CONTROL SERVICES OPEX BY CATEGORY
C24: =CONCATENATE("EXPENDITURE ($0's, real ", dms_DollarReal, ")") -> EXPENDITURE ($0's, real June 2024)
C25: =CRCP_y4 -> 2022-23 | D25: =CRCP_y5 -> 2023-24
B26: Vegetation management | C26: 39645413.7 | D26: 40880795.23
B27: Maintenance | C27: 45778424.37 | D27: 45194210.35
B28: Emergency response | C28: 23306063.28 | D28: 25877622.1
B29: Non-network | C29: =SUM('2.6 Non-network'!E12:E30) -> 142429858.2 | D29: =SUM('2.6 Non-network'!F12:F30) -> 144615024.5
B30: Export services | C30: =SUM('7.8 Export Services'!C13:C14) -> 0 | D30: =SUM('7.8 Export Services'!D13:D14) -> 0
B31: Metering | C31: 0 | D31: 0
B32: Network overheads | C32: ='2.10 Overheads'!D12 -> 125056607.2 | D32: ='2.10 Overheads'!E12 -> 122392471.2
B33: Corporate overheads | C33: ='2.10 Overheads'!D27 -> 32345733.37 | D33: ='2.10 Overheads'!E27 -> 31656657.98
B34: Total | C34: =SUM(C26:C33) -> 408562100 | D34: =SUM(D26:D33) -> 410616781.4
B37: 2.1.3 - ALTERNATIVE CONTROL SERVICES CAPEX
C38: =CONCATENATE("EXPENDITURE ($0's, real ", dms_DollarReal, ")") -> EXPENDITURE ($0's, real June 2024)
C39: =CRCP_y4 -> 2022-23 | D39: =CRCP_y5 -> 2023-24 | E39: =FRCP_y1 -> 2024-25 | F39: =FRCP_y2 -> 2025-26 | G39: =FRCP_y3 -> 2026-27 | H39: =FRCP_y4 -> 2027-28 | I39: =FRCP_y5 -> 2028-29
B40: Connections | C40: 20689980.91 | D40: 18640639.69 | E40: 11910787.81 | F40: 11314183.59 | G40: 10868549.33 | H40: 10300063.79 | I40: 10073584.21
B41: Metering | C41: 113710.3 | D41: 193814.47 | E41: 6079653.27 | F41: 5039795.77 | G41: 4004696.65 | H41: 2816407.23 | I41: 2149134.57
B42: Public lighting | C42: ='4.1 Public lighting'!D14+'4.1 Public lighting'!D18 -> 32875536 | D42: ='4.1 Public lighting'!E14+'4.1 Public lighting'!E18 -> 26822221 | E42: ='4.1 Public lighting'!F14+'4.1 Public lighting'!F18 -> 22918764 | F42: ='4.1 Public lighting'!G14+'4.1 Public lighting'!G18 -> 21311037 | G42: ='4.1 Public lighting'!H14+'4.1 Public lighting'!H18 -> 8028330 | H42: ='4.1 Public lighting'!I14+'4.1 Public lighting'!I18 -> 6496673 | I42: ='4.1 Public lighting'!J14+'4.1 Public lighting'!J18 -> 5306967
B43: Fee and quoted | C43: 0 | D43: 0 | E43: 0 | F43: 0 | G43: 0 | H43: 0 | I43: 0
B44: Network overheads | C44: ='2.10 Overheads'!D16 -> 12785353.79 | D44: ='2.10 Overheads'!E16 -> 11456299.24 | E44: ='2.10 Overheads'!F16 -> 9151111.1 | F44: ='2.10 Overheads'!G16 -> 9142836.12 | G44: ='2.10 Overheads'!H16 -> 6439058.06 | H44: ='2.10 Overheads'!I16 -> 6391378.54 | I44: ='2.10 Overheads'!J16 -> 6368190.14
B45: Corporate overheads | C45: ='2.10 Overheads'!D31 -> 448722.97 | D45: ='2.10 Overheads'!E31 -> 398461.93 | E45: ='2.10 Overheads'!F31 -> 326665.23 | F45: ='2.10 Overheads'!G31 -> 434490.28 | G45: ='2.10 Overheads'!H31 -> 259705.31 | H45: ='2.10 Overheads'!I31 -> 158684.21 | I45: ='2.10 Overheads'!J31 -> 148838.62
B46: Total | C46: =SUM(C40:C45) -> 66913303.97 | D46: 57511436.33 | E46: 50386981.41 | F46: 47242342.76 | G46: 29600339.35 | H46: 26163206.77 | I46: 24046714.54
B49: 2.1.4 - ALTERNATIVE CONTROL SERVICES OPEX
C50: =CONCATENATE("EXPENDITURE ($0's, real ", dms_DollarReal, ")") -> EXPENDITURE ($0's, real June 2024)
C51: =CRCP_y4 -> 2022-23 | D51: =CRCP_y5 -> 2023-24 | E51: =FRCP_y1 -> 2024-25 | F51: =FRCP_y2 -> 2025-26 | G51: =FRCP_y3 -> 2026-27 | H51: =FRCP_y4 -> 2027-28 | I51: =FRCP_y5 -> 2028-29
B52: Connections | C52: 31378119.74 | D52: 27278941.57 | E52: 29704415.81 | F52: 30323214.46 | G52: 29451474.25 | H52: 29018649.24 | I52: 29029678.88
B53: Metering | C53: ='3.2 Operating expenditure'!K71 -> 36310020.69 | D53: ='3.2 Operating expenditure'!L71 -> 36108509.15 | E53: ='3.2 Operating expenditure'!M71 -> 43805897.55 | F53: ='3.2 Operating expenditure'!N71 -> 41347392.77 | G53: ='3.2 Operating expenditure'!O71 -> 37211283.38 | H53: ='3.2 Operating expenditure'!P71 -> 32631193.44 | I53: ='3.2 Operating expenditure'!Q71 -> 28061272.91
B54: Public lighting | C54: ='3.2 Operating expenditure'!K73 -> 13125924.72 | D54: ='3.2 Operating expenditure'!L73 -> 13829940.09 | E54: ='3.2 Operating expenditure'!M73 -> 10907530.14 | F54: ='3.2 Operating expenditure'!N73 -> 10434198.05 | G54: ='3.2 Operating expenditure'!O73 -> 10263379.52 | H54: ='3.2 Operating expenditure'!P73 -> 10270661.54 | I54: ='3.2 Operating expenditure'!Q73 -> 10295190.94
B55: Fee and quoted | C55: 0 | D55: 0 | E55: 0 | F55: 0 | G55: 0 | H55: 0 | I55: 0
B56: Network overheads | C56: ='2.10 Overheads'!D13 -> 18912019.94 | D56: ='2.10 Overheads'!E13 -> 16746081.67 | E56: ='2.10 Overheads'!F13 -> 19774852.86 | F56: ='2.10 Overheads'!G13 -> 19884908.69 | G56: ='2.10 Overheads'!H13 -> 19068311.95 | H56: ='2.10 Overheads'!I13 -> 18523250.99 | I56: ='2.10 Overheads'!J13 -> 18252570.28
B57: Corporate overheads | C57: ='2.10 Overheads'!D28 -> 15495549.3 | D57: ='2.10 Overheads'!E28 -> 13773596.46 | E57: ='2.10 Overheads'!F28 -> 12731381.7 | F57: ='2.10 Overheads'!G28 -> 12379211.77 | G57: ='2.10 Overheads'!H28 -> 11550036.87 | H57: ='2.10 Overheads'!I28 -> 10689383.44 | I57: ='2.10 Overheads'!J28 -> 9878211.69
B58: Total | C58: =SUM(C52:C57) -> 115221634.4 | D58: 107737068.9 | E58: 116924078.1 | F58: 114368925.7 | G58: 107544486 | H58: 101133138.6 | I58: 95516924.7
B61: 2.1.5 - DUAL FUNCTION ASSETS CAPEX
C62: =CONCATENATE("EXPENDITURE ($0's, real ", dms_DollarReal, ")") -> EXPENDITURE ($0's, real June 2024)
C63: =CRCP_y4 -> 2022-23 | D63: =CRCP_y5 -> 2023-24 | E63: =FRCP_y1 -> 2024-25 | F63: =FRCP_y2 -> 2025-26 | G63: =FRCP_y3 -> 2026-27 | H63: =FRCP_y4 -> 2027-28 | I63: =FRCP_y5 -> 2028-29
B64: Replacement expenditure | C64: 47268164 | D64: 51156238 | E64: 26367258 | F64: 19735422 | G64: 21658472 | H64: 35333635 | I64: 32399470
B65: Connections | C65: 9162 | D65: 170130 | E65: 101432 | F65: 50720 | G65: 430357 | H65: 939610 | I65: 51674
B66: Augmentation expenditure | C66: 8280437 | D66: 3721711 | E66: 8172158 | F66: 4817298 | G66: 3735095 | H66: 3622072 | I66: 3320851
B67: Non-network | C67: 19732328 | D67: 22713195 | E67: 20085340 | F67: 16855276 | G67: 13440451 | H67: 9499972 | I67: 7313959
B68: Export services
B69: Capitalised network overheads | C69: 8084584 | D69: 9715449 | E69: 4034513 | F69: 3558186 | G69: 3271433 | H69: 3062794 | I69: 3379044
B70: Capitalised corporate overheads | C70: 705264 | D70: 427810 | E70: 531140 | F70: 700034 | G70: 426796 | H70: 268897 | I70: 253643
B71: capcons (included in the above)
B72: Total | C72: =SUM(C64:C70) -> 84079939 | D72: 87904533 | E72: 59291841 | F72: 45716936 | G72: 42962604 | H72: 52726980 | I72: 46718641
B75: 2.1.6 - DUAL FUNCTION ASSETS OPEX BY CATEGORY
C76: =CONCATENATE("EXPENDITURE ($0's, real ", dms_DollarReal, ")") -> EXPENDITURE ($0's, real June 2024)
C77: =CRCP_y4 -> 2022-23 | D77: =CRCP_y5 -> 2023-24
B78: Vegetation management | C78: 1902979.857 | D78: 1962278.171
B79: Maintenance | C79: 2197364.37 | D79: 2169322.097
B80: Emergency response | C80: 1118691.037 | D80: 1242125.861
B81: Non-network | C81: 6836633.191 | D81: 6941521.178
B82: Export services | C82: 0 | D82: 0
B83: Metering | C83: 0 | D83: 0
B84: Network overheads | C84: 6002717.143 | D84: 5874838.62
B85: Corporate overheads | C85: 1552595.202 | D85: 1519519.583
B86: Total | C86: =SUM(C78:C85) -> 19610980.8 | D86: =SUM(D78:D85) -> 19709605.51
B89: 2.1.7 - STANDARD CONTROL SERVICES CAPCONS
C90: =CONCATENATE("EXPENDITURE ($0's, real ", dms_DollarReal, ")") -> EXPENDITURE ($0's, real June 2024)
C91: =CRCP_y4 -> 2022-23 | D91: =CRCP_y5 -> 2023-24 | E91: =FRCP_y1 -> 2024-25 | F91: =FRCP_y2 -> 2025-26 | G91: =FRCP_y3 -> 2026-27 | H91: =FRCP_y4 -> 2027-28 | I91: =FRCP_y5 -> 2028-29
B92: Replacement expenditure
B93: Connections | C93: 160058597 | D93: 118969953 | E93: 123681105 | F93: 114757042 | G93: 108775961 | H93: 107479316 | I93: 106136582
B94: Augmentation Expenditure
B95: Non-network
B96: Export services
B97: Capitalised network overheads
B98: Capitalised corporate overheads
B99: Total | C99: =SUM(C92:C98) -> 160058597 | D99: 118969953 | E99: 123681105 | F99: 114757042 | G99: 108775961 | H99: 107479316 | I99: 106136582
B102: 2.1.8 - STANDARD CONTROL SERVICES CAPITALISED OVERHEADS
C103: =CONCATENATE("EXPENDITURE ($0's, real ", dms_DollarReal, ")") -> EXPENDITURE ($0's, real June 2024)
C104: =CRCP_y4 -> 2022-23 | D104: =CRCP_y5 -> 2023-24 | E104: =FRCP_y1 -> 2024-25 | F104: =FRCP_y2 -> 2025-26 | G104: =FRCP_y3 -> 2026-27 | H104: =FRCP_y4 -> 2027-28 | I104: =FRCP_y5 -> 2028-29
B105: Replacement expenditure | C105: 139371203 | D105: 132575407 | E105: 113416786 | F105: 115216606 | G105: 119210222 | H105: 116703286 | I105: 114580906
B106: Connections | C106: 8613958 | D106: 6449670 | E106: 7819630 | F106: 6444484 | G106: 6336315 | H106: 6710469 | I106: 6683706
B107: Augmentation Expenditure | C107: 8586941 | D107: 13163777 | E107: 12755360 | F107: 13861552 | G107: 14764830 | H107: 14299521 | I107: 13824911
B108: Non-network | C108: 7650638 | D108: 4670793 | E108: 7023271 | F108: 9375879 | G108: 6717612 | H108: 4735607 | I108: 4486475
B109: Export services | E109: 1915503 | F109: 2023297 | G109: 1636356 | H109: 1559505 | I109: 1475260
B110: capcons (included in the above)
B111: Total | C111: =SUM(C105:C109) -> 164222740 | D111: 156859647 | E111: 142930550 | F111: 146921818 | G111: 148665335 | H111: 144008388 | I111: 141051258

Sheet 2.2 Repex
B1: =INDEX(dms_Worksheet_List,MATCH(dms_Model,dms_Model_List)) -> REGULATORY REPORTING STATEMENT
B2: =INDEX(dms_TradingNameFull_List,MATCH(dms_TradingName,dms_TradingName_List)) -> Ausgrid
B3: =CONCATENATE("REGULATORY PERIOD FROM ", FRCP_y1," TO ",dms_MultiYear_FinalYear_Result) -> REGULATORY PERIOD FROM 2024-25 TO 2028-29
B4: 2.2 REPEX
B6: There are THREE sub-tables on this worksheet. The table has been sub-grouped for easy navigation. See the Instructions sheet on how to group or ungroup tables.
B8: 2.2.1 - REPLACEMENT EXPENDITURE, VOLUMES AND ASSET FAILURES BY ASSET CATEGORY
B9: EXPENDITURE
D10: =CONCATENATE("EXPENDITURE ($0's, real ", dms_DollarReal, ")") -> EXPENDITURE ($0's, real June 2024)
B11: ASSET GROUP | C11: ASSET CATEGORY | D11: =CRCP_y4 -> 2022-23 | E11: =CRCP_y5 -> 2023-24 | F11: =FRCP_y1 -> 2024-25 | G11: =FRCP_y2 -> 2025-26 | H11: =FRCP_y3 -> 2026-27 | I11: =FRCP_y4 -> 2027-28 | J11: =FRCP_y5 -> 2028-29
B12: POLES BY: HIGHEST OPERATING VOLTAGE ; MATERIAL TYPE | C12: ˂ = 1 kV; Wood | D12: 27097128.96 | E12: 20769242.22 | F12: 15942390.02 | G12: 16136094.69 | H12: 16236887.38 | I12: 16227702.73 | J12: 16322837.79
C13: > 1 kV & < = 11 kV; Wood | D13: 9597736.695 | E13: 7510880.083 | F13: 6472135.392 | G13: 6546287.271 | H13: 6584284.671 | I13: 6578922.931 | J13: 6614839.399
C14: ˃ 11 kV & < = 22 kV; Wood | D14: 0 | E14: 0 | F14: 0 | G14: 0 | H14: 0 | I14: 0 | J14: 0
C15: > 22 kV & < = 66 kV; Wood | D15: 1593541.004 | E15: 1978067.934 | F15: 2550710.901 | G15: 2525378.648 | H15: 2531390.652 | I15: 2523961.773 | J15: 2538621.746
C16: > 66 kV & < = 132 kV; Wood | D16: 284761.7368 | E16: 401864.2122 | F16: 531346.8864 | G16: 537762.0893 | H16: 541072.2206 | I16: 540758.8098 | J16: 543899.7092
C17: > 132 kV; Wood | D17: 0 | E17: 0 | F17: 0 | G17: 0 | H17: 0 | I17: 0 | J17: 0
C18: ˂ = 1 kV; Concrete | D18: 0 | E18: 0 | F18: 0 | G18: 0 | H18: 0 | I18: 0 | J18: 0
C19: > 1 kV & < = 11 kV; Concrete | D19: 0 | E19: 0 | F19: 0 | G19: 0 | H19: 0 | I19: 0 | J19: 0
C20: ˃ 11 kV & < = 22 kV; Concrete | D20: 0 | E20: 0 | F20: 0 | G20: 0 | H20: 0 | I20: 0 | J20: 0
C21: > 22 kV & < = 66 kV; Concrete | D21: 112048.653 | E21: 61093.09252 | F21: 76322.92127 | G21: 255849.4726 | H21: 524187.5289 | I21: 325793.2667 | J21: 110208.0882
C22: > 66 kV & < = 132 kV; Concrete | D22: 0 | E22: 0 | F22: 0 | G22: 0 | H22: 0 | I22: 0 | J22: 0
C23: > 132 kV; Concrete | D23: 0 | E23: 0 | F23: 0 | G23: 0 | H23: 0 | I23: 0 | J23: 0
C24: ˂ = 1 kV; Steel | D24: 70166.17031 | E24: 53633.28719 | F24: 40544.55553 | G24: 41036.16531 | H24: 41292.54171 | I24: 41268.57731 | J24: 41510.07364
C25: > 1 kV & < = 11 kV; Steel | D25: 0 | E25: 0 | F25: 0 | G25: 0 | H25: 0 | I25: 0 | J25: 0
C26: ˃ 11 kV & < = 22 kV; Steel | D26: 0 | E26: 0 | F26: 0 | G26: 0 | H26: 0 | I26: 0 | J26: 0
C27: > 22 kV & < = 66 kV; Steel | D27: 0 | E27: 0 | F27: 0 | G27: 0 | H27: 0 | I27: 0 | J27: 0
C28: > 66 kV & < = 132 kV; Steel | D28: 11851031.6 | E28: 15792613.33 | F28: 1617741.918 | G28: 1632918.291 | H28: 1641006.555 | I28: 1638184.15 | J28: 1645317.2
C29: > 132 kV; Steel | D29: 0 | E29: 0 | F29: 0 | G29: 0 | H29: 0 | I29: 0 | J29: 0
C30: Other | D30: 0 | E30: 0 | F30: 0 | G30: 0 | H30: 0 | I30: 0 | J30: 0
B31: POLE TOP STRUCTURES BY: HIGHEST OPERATING VOLTAGE | C31: ˂ = 1 kV | D31: 5716564.268 | E31: 4846110.31 | F31: 5356100.693 | G31: 5424566.729 | H31: 5459246.194 | I31: 5457858.026 | J31: 5491540.169
C32: > 1 kV & < = 11 kV | D32: 2726361.42 | E32: 2311221.84 | F32: 2554448.023 | G32: 2587101.056 | H32: 2603640.492 | I32: 2602978.443 | J32: 2619042.235
C33: ˃ 11 kV & < = 22 kV | D33: 351788.5703 | E33: 298222.1729 | F33: 329606.1965 | G33: 333819.491 | H33: 335953.6119 | I33: 335868.1862 | J33: 337940.9335
C34: > 22 kV & < = 66 kV | D34: 891987.0361 | E34: 1314813.399 | F34: 1646916.054 | G34: 1664086.286 | H34: 1672053.754 | I34: 1670270.067 | J34: 1678246.7
C35: > 66 kV & < = 132 kV | D35: 599965.9367 | E35: 642455.9982 | F35: 999781.9185 | G35: 1009699.274 | H35: 1014325.555 | I35: 1013018.752 | J35: 1017583.572
C36: > 132 kV | D36: 0 | E36: 0 | F36: 0 | G36: 0 | H36: 0 | I36: 0 | J36: 0
C37: Other | D37: 401493.5281 | E37: 223412.0698 | F37: 223861.9125 | G37: 215864.1619 | H37: 217152.8402 | I37: 217091.6186 | J37: 218382.5749
B38: STAKING WOODEN POLES BY: HIGHEST OPERATING VOLTAGE | C38: ˂ = 1 Kv | D38: 502912.246 | E38: 620901.3553 | F38: 702839.3584 | G38: 712818.4349 | H38: 719022.6941 | I38: 718866.5042 | J38: 724120.081
C39: > 1 kV & < = 11 kV | D39: 101199.5194 | E39: 124942.1132 | F39: 141430.2513 | G39: 143438.3108 | H39: 144686.7752 | I39: 144655.3456 | J39: 145712.5071
C40: ˃ 11 kV & < = 22 kV | D40: 0 | E40: 0 | F40: 0 | G40: 0 | H40: 0 | I40: 0 | J40: 0
C41: > 22 kV & < = 66 kV | D41: 11415.79945 | E41: 14094.07984 | F41: 15954.02225 | G41: 16180.54116 | H41: 16321.37404 | I41: 16317.82862 | J41: 16437.08159
C42: > 66 kV & < = 132 kV | D42: 1542.675601 | E42: 1904.605384 | F42: 2155.948952 | G42: 2186.559616 | H42: 2205.591086 | I42: 2205.111976 | J42: 2221.227242
C43: > 132 kV | D43: 0 | E43: 0 | F43: 0 | G43: 0 | H43: 0 | I43: 0 | J43: 0
B44: OVERHEAD CONDUCTORS BY: Highest operating voltage; Number of phases (at HV) | C44: ˂ = 1 kV | D44: 3340938.001 | E44: 3129842.338 | F44: 9386636.551 | G44: 10389541.49 | H44: 13268418.5 | I44: 12546940.88 | J44: 12083235.45
C45: > 1 kV & < = 11 kV | D45: 5088107.569 | E45: 7541219.039 | F45: 13944105.63 | G45: 16626210.59 | H45: 18530500 | I45: 17446704.41 | J45: 16749517.85
C46: ˃ 11 kV & < = 22 kV ; SWER | D46: 0 | E46: 0 | F46: 0 | G46: 0 | H46: 0 | I46: 0 | J46: 0
C47: ˃ 11 kV & < = 22 kV ; Single-Phase | D47: 0 | E47: 0 | F47: 0 | G47: 0 | H47: 0 | I47: 0 | J47: 0
C48: ˃ 11 kV & < = 22 kV ; Multiple-Phase | D48: 0 | E48: 0 | F48: 0 | G48: 0 | H48: 0 | I48: 0 | J48: 0
C49: > 22 kV & < = 66 kV | D49: 1427872.458 | E49: 956435.1072 | F49: 953428.3894 | G49: 903664.1305 | H49: 1036705.504 | I49: 909223.8352 | J49: 784828.04
C50: > 66 kV & < = 132 kV | D50: 235406.6878 | E50: 139520.184 | F50: 203453.9223 | G50: 59751.60537 | H50: 15399.6874 | I50: 66200.38885 | J50: 99779.8409
C51: > 132 kV | D51: 0 | E51: 0 | F51: 0 | G51: 0 | H51: 0 | I51: 0 | J51: 0
C52: Other | D52: 19271275.27 | E52: 22690621.77 | F52: 28272572.32 | G52: 28569381.98 | H52: 28726589.59 | I52: 28836802.93 | J52: 29051915.72
B53: UNDERGROUND CABLES BY: Highest operating voltage | C53: ˂ = 1 kV | D53: 53013509.21 | E53: 43006143.99 | F53: 35912113.92 | G53: 35899931.57 | H53: 35707386.4 | I53: 35588477.26 | J53: 33974660.4
C54: > 1 kV & < = 11 kV | D54: 24361375.47 | E54: 18611917.36 | F54: 16385621.39 | G54: 16621554.19 | H54: 17241576.99 | I54: 15353150.99 | J54: 13796206.3
C55: > 11 kV & < = 22 kV | D55: 0 | E55: 0 | F55: 0 | G55: 0 | H55: 0 | I55: 0 | J55: 0
C56: > 22 kV & < = 33 kV | D56: 1794893.136 | E56: 1663943.106 | F56: 5802949.922 | G56: 5924588.066 | H56: 3714394.586 | I56: 1190272.973 | J56: 361585.0223
C57: > 33 kV & < = 66 kV | D57: 0 | E57: 0 | F57: 0 | G57: 0 | H57: 0 | I57: 0 | J57: 0
C58: > 66 kV & < = 132 kV | D58: 17723683.88 | E58: 35466500.95 | F58: 16084577.53 | G58: 5457654.965 | H58: 7642082.215 | I58: 39903516.51 | J58: 49001442.8
C59: > 132 kV | D59: 0 | E59: 0 | F59: 0 | G59: 0 | H59: 0 | I59: 0 | J59: 0
C60: Other | D60: 7807595.071 | E60: 5432398.5 | F60: 5891350.574 | G60: 5648686.313 | H60: 5662717.251 | I60: 5611719.299 | J60: 5623014.804
B61: SERVICE LINES BY: Connection voltage; Customer type; Connection complexity | C61: ˂ = 11 kV ; Residential ; Simple Type | D61: 14235888.34 | E61: 1488305.834 | F61: 8376040.533 | G61: 8453958.344 | H61: 8498431.257 | I61: 8529598.994 | J61: 8575404.12
C62: ˂ = 11 kV ; Commercial & Industrial ; Simple Type | D62: 1022298.519 | E62: 106877.2678 | F62: 601494.8722 | G62: 607090.2562 | H62: 610283.9167 | I62: 612522.1143 | J62: 615811.4427
C63: ˂ = 11 kV ; Residential ; Complex Type | D63: 177311.7068 | E63: 175451.8474 | F63: 155962.9267 | G63: 156708.2202 | H63: 157109.7422 | I63: 157415.7694 | J63: 157848.3216
C64: ˂ = 11 kV ; Commercial & Industrial ; Complex Type | D64: 0 | E64: 0 | F64: 0 | G64: 0 | H64: 0 | I64: 0 | J64: 0
C65: ˂ = 11 kV ; Subdivision ; Complex Type | D65: 0 | E65: 0 | F65: 0 | G65: 0 | H65: 0 | I65: 0 | J65: 0
C66: > 11 kV & < = 22 kV ; Commercial & Industrial | D66: 0 | E66: 0 | F66: 0 | G66: 0 | H66: 0 | I66: 0 | J66: 0
C67: > 11 kV & < = 22 kV ; Subdivision | D67: 0 | E67: 0 | F67: 0 | G67: 0 | H67: 0 | I67: 0 | J67: 0
C68: > 22 kV & < = 33 kV ; Commercial & Industrial | D68: 0 | E68: 0 | F68: 0 | G68: 0 | H68: 0 | I68: 0 | J68: 0
C69: > 22 kV & < = 33 kV ; Subdivision | D69: 0 | E69: 0 | F69: 0 | G69: 0 | H69: 0 | I69: 0 | J69: 0
C70: > 33 kV & < = 66 kV ; Commercial & Industrial | D70: 0 | E70: 0 | F70: 0 | G70: 0 | H70: 0 | I70: 0 | J70: 0
C71: > 33 kV & < = 66 kV ; Subdivision | D71: 0 | E71: 0 | F71: 0 | G71: 0 | H71: 0 | I71: 0 | J71: 0
C72: > 66 kV & < = 132 kV ; Commercial & Industrial | D72: 0 | E72: 0 | F72: 0 | G72: 0 | H72: 0 | I72: 0 | J72: 0
C73: > 66 kV & < = 132 kV ; Subdivision | D73: 0 | E73: 0 | F73: 0 | G73: 0 | H73: 0 | I73: 0 | J73: 0
C74: > 132 kV ; Commercial & Industrial | D74: 0 | E74: 0 | F74: 0 | G74: 0 | H74: 0 | I74: 0 | J74: 0
C75: > 132 kV ; Subdivision | D75: 0 | E75: 0 | F75: 0 | G75: 0 | H75: 0 | I75: 0 | J75: 0
C76: Other | D76: 0 | E76: 0 | F76: 0 | G76: 0 | H76: 0 | I76: 0 | J76: 0
B77: TRANSFORMERS BY: Mounting type; Highest operating voltage; Ampere rating; Number of phases (at LV) | C77: Pole Mounted ; < = 22kV ; < = 60 kVA ; Single Phase | D77: 228238.663 | E77: 224530.4128 | F77: 391399.519 | G77: 395709.9515 | H77: 397288.6174 | I77: 394102.4235 | J77: 395483.978
C78: Pole Mounted ; < = 22kV ; > 60 kVA and < = 600 kVA ; Single Phase | D78: 46846.73483 | E78: 46085.6043 | F78: 80336.03373 | G78: 81220.76413 | H78: 81544.79047 | I78: 80890.81374 | J78: 81174.38232
C79: Pole Mounted ; < = 22kV ; > 600 kVA ; Single Phase | D79: 0 | E79: 0 | F79: 0 | G79: 0 | H79: 0 | I79: 0 | J79: 0
C80: Pole Mounted ; < = 22kV ; < = 60 kVA ; Multiple Phase | D80: 410829.5933 | E80: 404154.743 | F80: 704519.1287 | G80: 712277.9072 | H80: 715119.5057 | I80: 709384.3569 | J80: 711871.1548
C81: Pole Mounted ; < = 22kV ; > 60 kVA and < = 600 kVA ; Multiple Phase | D81: 1311708.575 | E81: 1290396.92 | F81: 2249408.999 | G81: 2274181.451 | H81: 2283254.189 | I81: 2264942.84 | J81: 2272882.76
C82: Pole Mounted ; < = 22kV ; > 600 kVA ; Multiple Phase | D82: 0 | E82: 0 | F82: 0 | G82: 0 | H82: 0 | I82: 0 | J82: 0
C83: Kiosk Mounted ; < = 22kV ; < = 60 kVA ; Single Phase | D83: 0 | E83: 0 | F83: 0 | G83: 0 | H83: 0 | I83: 0 | J83: 0
C84: Kiosk Mounted ; < = 22kV ; > 60 kVA and < = 600 kVA ; Single Phase | D84: 0 | E84: 0 | F84: 0 | G84: 0 | H84: 0 | I84: 0 | J84: 0
C85: Kiosk Mounted ; < = 22kV ; > 600 kVA ; Single Phase | D85: 0 | E85: 0 | F85: 0 | G85: 0 | H85: 0 | I85: 0 | J85: 0
C86: Kiosk Mounted ; < = 22kV ; < = 60 kVA ; Multiple Phase | D86: 0 | E86: 0 | F86: 0 | G86: 0 | H86: 0 | I86: 0 | J86: 0
C87: Kiosk Mounted ; < = 22kV ; > 60 kVA and < = 600 kVA ; Multiple Phase | D87: 522121.8344 | E87: 322179.6231 | F87: 386613.8397 | G87: 390262.7337 | H87: 391606.6247 | I87: 388184.3282 | J87: 389226.5811
C88: Kiosk Mounted ; < = 22kV ; > 600 kVA ; Multiple Phase | D88: 73455.21764 | E88: 49141.8 | F88: 46327.03208 | G88: 48887.45891 | H88: 53299.24417 | I88: 51603.6845 | J88: 47185.73363
C89: Ground Outdoor / Indoor Chamber Mounted; ˂ 22 kV ; < = 60 kVA ; Single Phase | D89: 0 | E89: 0 | F89: 0 | G89: 0 | H89: 0 | I89: 0 | J89: 0
C90: Ground Outdoor / Indoor Chamber Mounted; ˂ 22 kV ; > 60 kVA and < = 600 kVA ; Single Phase | D90: 0 | E90: 0 | F90: 0 | G90: 0 | H90: 0 | I90: 0 | J90: 0
C91: Ground Outdoor / Indoor Chamber Mounted; ˂ 22 kV ; > 600 kVA ; Single Phase | D91: 0 | E91: 0 | F91: 0 | G91: 0 | H91: 0 | I91: 0 | J91: 0
C92: Ground Outdoor / Indoor Chamber Mounted; ˂ 22 kV ; < = 60 kVA ; Multiple Phase | D92: 0 | E92: 0 | F92: 0 | G92: 0 | H92: 0 | I92: 0 | J92: 0
C93: Ground Outdoor / Indoor Chamber Mounted; ˂ 22 kV ; > 60 kVA and < = 600 kVA ; Multiple Phase | D93: 730745.1327 | E93: 781797.8142 | F93: 995110.4785 | G93: 1005400.964 | H93: 1009258.904 | I93: 1000828.786 | J93: 1004005.935
C94: Ground Outdoor / Indoor Chamber Mounted; ˂ 22 kV ; > 600 kVA ; Multiple Phase | D94: 1631904.626 | E94: 1764591.02 | F94: 2139537.155 | G94: 2162256.665 | H94: 2170859.424 | I94: 2152969.779 | J94: 2160138.112
C95: Ground Outdoor / Indoor Chamber Mounted; > = 22 kV & < = 33 kV ; < = 15 MVA | D95: 2079095.492 | E95: 1705613.274 | F95: 1305871.912 | G95: 1315164.176 | H95: 1317683.299 | I95: 1305074.102 | J95: 1306770.214
C96: Ground Outdoor / Indoor Chamber Mounted; > = 22 kV & < = 33 kV ; > 15 MVA and < = 40 MVA | D96: 6090871.3 | E96: 4996726.212 | F96: 3831029.869 | G96: 3874726.004 | H96: 3915335.005 | I96: 3868454.408 | J96: 3837922.984
C97: Ground Outdoor / Indoor Chamber Mounted; > = 22 kV & < = 33 kV ; > 40 MVA | D97: 0 | E97: 0 | F97: 0 | G97: 0 | H97: 0 | I97: 0 | J97: 0
C98: Ground Outdoor / Indoor Chamber Mounted; > 33 kV & < = 66 kV ; < = 15 MVA | D98: 380679.4562 | E98: 312295.3882 | F98: 239103.3075 | G98: 240804.708 | H98: 241265.9558 | I98: 238957.2297 | J98: 239267.7853
C99: Ground Outdoor / Indoor Chamber Mounted; > 33 kV & < = 66 kV ; > 15 MVA and < = 40 MVA | D99: 1112755.334 | E99: 912863.4425 | F99: 698917.3635 | G99: 703890.688 | H99: 705238.9509 | I99: 698490.3669 | J99: 699398.1447
C100: Ground Outdoor / Indoor Chamber Mounted; > 33 kV & < = 66 kV ; > 40 MVA | D100: 0 | E100: 0 | F100: 0 | G100: 0 | H100: 0 | I100: 0 | J100: 0
C101: Ground Outdoor / Indoor Chamber Mounted; > 66 kV & < = 132 kV ; < = 100 MVA | D101: 5440369.016 | E101: 4296282.579 | F101: 3285841.999 | G101: 3309222.225 | H101: 3341528.123 | I101: 3348309.046 | J101: 3456766.595
C102: Ground Outdoor / Indoor Chamber Mounted; > 66 kV & < = 132 kV ; > 100 MVA | D102: 477743.9387 | E102: 391885.3717 | F102: 299603.5236 | G102: 301734.3674 | H102: 302311.8566 | I102: 299418.5062 | J102: 299807.0582
C103: Ground Outdoor / Indoor Chamber Mounted; > 132 kV ; < = 100 MVA | D103: 0 | E103: 0 | F103: 0 | G103: 0 | H103: 0 | I103: 0 | J103: 0
C104: Ground Outdoor / Indoor Chamber Mounted; > 132 kV ; > 100 MVA | D104: 0 | E104: 0 | F104: 0 | G104: 0 | H104: 0 | I104: 0 | J104: 0
C105: Other | D105: 748600.2005 | E105: 798544.0807 | F105: 1277723.161 | G105: 1289181.033 | H105: 1292834.097 | I105: 1281446.808 | J105: 1284440.16
B106: SWITCHGEAR BY: Highest operating voltage; Switch function | C106: ˂ = 11 kV ; FUSE | D106: 4441261.924 | E106: 3656209.04 | F106: 2291890.773 | G106: 2050614.621 | H106: 2057859.972 | I106: 2055593.583 | J106: 2062478.839
C107: ˂ = 11 kV ; Switch | D107: 12022288.73 | E107: 11255499.98 | F107: 10521150.23 | G107: 10124462.39 | H107: 10364535.63 | I107: 9877984.139 | J107: 9937535.984
C108: ˂ = 11 kV ; Circuit Breaker | D108: 14918551.17 | E108: 15126501.54 | F108: 15707844.59 | G108: 15889943.09 | H108: 14601622.4 | I108: 12099900.97 | J108: 10820331.16
C109: > 11 kV & < = 22 kV ; Switch | D109: 0 | E109: 0 | F109: 0 | G109: 0 | H109: 0 | I109: 0 | J109: 0
C110: > 11 kV & < = 22 kV ; Circuit Breaker | D110: 0 | E110: 0 | F110: 0 | G110: 0 | H110: 0 | I110: 0 | J110: 0
C111: > 22 kV & < = 33 kV ; Switch | D111: 1446940.16 | E111: 992382.6802 | F111: 945097.4623 | G111: 952403.7738 | H111: 955904.7168 | I111: 955041.9826 | J111: 958452.7975
C112: > 22 kV & < = 33 kV ; Circuit Breaker | D112: 5197002.999 | E112: 3602356.824 | F112: 8923028.264 | G112: 7837276.07 | H112: 9406190.06 | I112: 2772419.876 | J112: 120616.2582
C113: > 33 kV & < = 66 kV ; Switch | D113: 0 | E113: 0 | F113: 0 | G113: 0 | H113: 0 | I113: 0 | J113: 0
C114: > 33 kV & < = 66 kV ; Circuit Breaker | D114: 22762.17573 | E114: 208383.8876 | F114: 402908.5967 | G114: 72349.49441 | H114: 38058.55448 | I114: 52637.25544 | J114: 91992.83449
C115: > 66 kV & < = 132 kV ; Switch | D115: 392973.8147 | E115: 0 | F115: 0 | G115: 0 | H115: 0 | I115: 0 | J115: 0
C116: > 66 kV & < = 132 kV ; Circuit Breaker | D116: 819252.3518 | E116: 48211.7838 | F116: 99635.63745 | G116: 475346.1467 | H116: 2652851.37 | I116: 3468755.669 | J116: 4764689.434
C117: > 132 kV ; Switch | D117: 0 | E117: 0 | F117: 0 | G117: 0 | H117: 0 | I117: 0 | J117: 0
C118: > 132 kV ; Circuit Breaker | D118: 0 | E118: 0 | F118: 0 | G118: 0 | H118: 0 | I118: 0 | J118: 0
C119: Other | D119: 0 | E119: 0 | F119: 0 | G119: 0 | H119: 0 | I119: 0 | J119: 0
B120: PUBLIC LIGHTING BY: Asset type ; Lighting obligation | C120: Luminaires ; Major Road
C121: Luminaires ; Minor Road
C122: Brackets ; Major Road
C123: Brackets ; Minor Road
C124: Lamps ; Major Road
C125: Lamps ; Minor Road
C126: Poles / Columns ; Major Road
C127: Poles / Columns ; Minor Road
C128: Other
B129: SCADA, NETWORK CONTROL AND PROTECTION SYSTEMS BY: Function | C129: Field Devices | D129: 20487289.28 | E129: 16573693.83 | F129: 14580895.4 | G129: 13231150.17 | H129: 13259852.11 | I129: 12007726.37 | J129: 10272871.52
C130: Local Network Wiring Assets | D130: 0 | E130: 0 | F130: 0 | G130: 0 | H130: 0 | I130: 0 | J130: 0
C131: Communications Network Assets | D131: 107144.6424 | E131: 96467.81868 | F131: 222635.7107 | G131: 224123.4942 | H131: 224688.5619 | I131: 223837.711 | J131: 224367.1
C132: Master Station Assets | D132: 328006.6874 | E132: 853026.352 | F132: 1027416.535 | G132: 929081.0095 | H132: 1006182.639 | I132: 970718.1954 | J132: 906362.8545
C133: Communications Site Infrastructure | D133: 0 | E133: 0 | F133: 0 | G133: 0 | H133: 0 | I133: 0 | J133: 0
C134: Communications Linear Assets | D134: 90398.66284 | E134: 58994.14985 | F134: 89054.21383 | G134: 89649.32676 | H134: 89875.35369 | I134: 89535.01359 | J134: 89746.769
C135: AFLC | D135: 141958.2616 | E135: 90066.09484 | F135: 127082.3202 | G135: 139984.5501 | H135: 164467.9299 | I135: 156787.9165 | J135: 131048.513
C136: Other | D136: 46947372 | E136: 53179918.7 | F136: 25434840.06 | G136: 19453610.01 | H136: 20700693.43 | I136: 22845872.52 | J136: 21809150.25
B137: OTHER: | C137: DISTRIBUTION SUBSTATIONS - OTHER | D137: 4966932.519 | E137: 3745522.261 | F137: 6531085.616 | G137: 6576824.133 | H137: 6595193.339 | I137: 6570847.089 | J137: 6587737.465
C138: DISTRIBUTION VOLTAGE REGULATION | D138: 0 | E138: 0 | F138: 0 | G138: 0 | H138: 0 | I138: 0 | J138: 0
C139: OVERHEAD CONDUCTORS - OTHER | D139: 11060615.78 | E139: 6007367.203 | F139: 6854168.505 | G139: 6907409.278 | H139: 6930772.562 | I139: 6906891.837 | J139: 6927929.334
C140: TOWERS - > = 33 KV ; REFURBISHMENT | D140: 410554.1796 | E140: 508881.2626 | F140: 96091.67131 | G140: 96733.81269 | H140: 96977.70127 | I140: 96610.46599 | J140: 96838.95525
C141: TRANSFORMERS - OTHER | D141: 1641670.835 | E141: 1201846.783 | F141: 1600055.76 | G141: 1493184.014 | H141: 14956.16428 | I141: 14899.52826 | J141: 14934.7665
C142: UNDERGROUND CABLES - OTHER | D142: 492613.4921 | E142: 421097.0456 | F142: 478470.3985 | G142: 482494.1138 | H142: 483810.0048 | I142: 451885.7784 | J142: 354518.1418
C143: ZONE & SUBTRANSMISSION SUBSTATIONS - OTHER | D143: 8491156.072 | E143: 6043226.08 | F143: 5246986.749 | G143: 4869064.417 | H143: 4808078.759 | I143: 4826105.536 | J143: 4838140.946
C144: DISTRIBUTION SUBSTATIONS - NOT AGE RELATED | D144: 5933840.339 | E144: 4995869.756 | F144: 3661839.918 | G144: 3158286.853 | H144: 3176922.842 | I144: 3169618.842 | J144: 3185924.191
C145: OVERHEAD CONDUCTORS - NOT AGE RELATED | D145: 3716472.35 | E145: 3175886.411 | F145: 1109770.229 | G145: 1117258.454 | H145: 1120125.685 | I145: 1115909.326 | J145: 1118592.411
C146: ZONE & SUBTRANSMISSION SUBSTATIONS - NOT AGE RELATED | D146: 9164194.333 | E146: 7112161.33 | F146: 9704161.829 | G146: 9945583.548 | H146: 9826148.61 | I146: 9885775.813 | J146: 9747069.321
C147: FIELD DEVICES - NOT AGE RELATED | D147: 1118236.392 | E147: 936036.9253 | F147: 584968.1016 | G147: 591749.6314 | H147: 594796.7652 | I147: 593703.4716 | J147: 596752.6492
C148: UNDERGROUND CABLES - NOT AGE RELATED | D148: 2439940.442 | E148: 2263586.376 | F148: 2310383.629 | G148: 2331351.732 | H148: 2337110.009 | I148: 2311484.752 | J148: 2315829.664
C149: SWITCHGEAR - NOT AGE RELATED | D149: 0 | E149: 0 | F149: 0 | G149: 0 | H149: 0 | I149: 0 | J149: 0
C150: TRANSFORMERS - NOT AGE RELATED | D150: 0 | E150: 0 | F150: 0 | G150: 0 | H150: 0 | I150: 0 | J150: 0
C151: LAND (I.E. STRATEGIC SYSTEM PROPERTY) | D151: 0 | E151: 0 | F151: 829484.5462 | G151: 0 | H151: 0 | I151: 0 | J151: 0
C152: SUBSTATION BUILDINGS | D152: 6067716.131 | E152: 6066017.515 | F152: 5035039.556 | G152: 6327839.877 | H152: 7208250.831 | I152: 6436175.419 | J152: 6092951.418
C153: SUPPORT COSTS (I.E. GIS DATA CAPTURE AND SWITCHING)
C154: BALANCING ITEM (I.E. MULTI-NODE DISCREPANCY)
C155: Switchgear - < = 11 KV ; CIRCUIT BREAKER REFURBISHMENT | D155: 2069.515925 | E155: 1873.052503 | F155: 4309.445876 | G155: 4335.053032 | H155: 4346.051749 | I155: 4339.276437 | J155: 4350.186606
C156: NETWORK RESILIENCE - OTHER | F156: 9063651.608 | G156: 13944285.19 | H156: 17430430.69 | I156: 15338903.02 | J156: 13944549.76
B181: ASSET REPLACEMENTS
D182: VOLUMES (0's)
B183: ASSET GROUP | C183: ASSET CATEGORY | D183: =CRCP_y4 -> 2022-23 | E183: =CRCP_y5 -> 2023-24 | F183: =FRCP_y1 -> 2024-25 | G183: =FRCP_y2 -> 2025-26 | H183: =FRCP_y3 -> 2026-27 | I183: =FRCP_y4 -> 2027-28 | J183: =FRCP_y5 -> 2028-29
B184: POLES BY: HIGHEST OPERATING VOLTAGE ; MATERIAL TYPE | C184: Staking of a wooden pole | D184: 0 | E184: 0 | F184: 0 | G184: 0 | H184: 0 | I184: 0 | J184: 0
C185: ˂ = 1 kV; Wood | D185: 1917.8 | E185: 1594.6 | F185: 1345.38 | G185: 1345.38 | H185: 1345.38 | I185: 1345.38 | J185: 1345.38
C186: > 1 kV & < = 11 kV; Wood | D186: 688 | E186: 598.9 | F186: 548.11 | G186: 548.11 | H186: 548.11 | I186: 548.11 | J186: 548.11
C187: ˃ 11 kV & < = 22 kV; Wood | D187: 0 | E187: 0 | F187: 0 | G187: 0 | H187: 0 | I187: 0 | J187: 0
C188: > 22 kV & < = 66 kV; Wood | D188: 58.2 | E188: 57.1 | F188: 74.4 | G188: 74.36 | H188: 73.4 | I188: 72.8 | J188: 72.8
C189: > 66 kV & < = 132 kV; Wood | D189: 12.3 | E189: 12.1 | F189: 15.6 | G189: 15.6 | H189: 15.6 | I189: 15.6 | J189: 15.6
C190: > 132 kV; Wood | D190: 0 | E190: 0 | F190: 0 | G190: 0 | H190: 0 | I190: 0 | J190: 0
C191: ˂ = 1 kV; Concrete | D191: 0 | E191: 0 | F191: 0 | G191: 0 | H191: 0 | I191: 0 | J191: 0
C192: > 1 kV & < = 11 kV; Concrete | D192: 0 | E192: 0 | F192: 0 | G192: 0 | H192: 0 | I192: 0 | J192: 0
C193: ˃ 11 kV & < = 22 kV; Concrete | D193: 0 | E193: 0 | F193: 0 | G193: 0 | H193: 0 | I193: 0 | J193: 0
C194: > 22 kV & < = 66 kV; Concrete | D194: 3.5 | E194: 2.1 | F194: 2.26 | G194: 7.7 | H194: 15.7 | I194: 9.62 | J194: 3.22
C195: > 66 kV & < = 132 kV; Concrete | D195: 0 | E195: 0 | F195: 0 | G195: 0 | H195: 0 | I195: 0 | J195: 0
C196: > 132 kV; Concrete | D196: 0 | E196: 0 | F196: 0 | G196: 0 | H196: 0 | I196: 0 | J196: 0
C197: ˂ = 1 kV; Steel | D197: 5 | E197: 4.2 | F197: 3.51 | G197: 3.51 | H197: 3.51 | I197: 3.51 | J197: 3.51
C198: > 1 kV & < = 11 kV; Steel | D198: 0 | E198: 0 | F198: 0 | G198: 0 | H198: 0 | I198: 0 | J198: 0
C199: ˃ 11 kV & < = 22 kV; Steel | D199: 0 | E199: 0 | F199: 0 | G199: 0 | H199: 0 | I199: 0 | J199: 0
C200: > 22 kV & < = 66 kV; Steel | D200: 0 | E200: 0 | F200: 0 | G200: 0 | H200: 0 | I200: 0 | J200: 0
C201: > 66 kV & < = 132 kV; Steel | D201: 33 | E201: 40 | F201: 6.3 | G201: 6.3 | H201: 6.3 | I201: 6.3 | J201: 6.3
C202: > 132 kV; Steel | D202: 0 | E202: 0 | F202: 0 | G202: 0 | H202: 0 | I202: 0 | J202: 0
C203: Other | D203: 0 | E203: 0 | F203: 0 | G203: 0 | H203: 0 | I203: 0 | J203: 0
B204: POLE TOP STRUCTURES BY: HIGHEST OPERATING VOLTAGE | C204: ˂ = 1 kV | D204: 1272.1 | E204: 1300 | F204: 1300 | G204: 1300 | H204: 1300 | I204: 1300 | J204: 1300
C205: > 1 kV & < = 11 kV | D205: 606.7 | E205: 620 | F205: 620 | G205: 620 | H205: 620 | I205: 620 | J205: 620
C206: ˃ 11 kV & < = 22 kV | D206: 78.3 | E206: 80 | F206: 80 | G206: 80 | H206: 80 | I206: 80 | J206: 80
C207: > 22 kV & < = 66 kV | D207: 143.8 | E207: 145.7 | F207: 157 | G207: 157 | H207: 157 | I207: 157 | J207: 157
C208: > 66 kV & < = 132 kV | D208: 43.8 | E208: 48.4 | F208: 45.5 | G208: 45.5 | H208: 45.5 | I208: 45.5 | J208: 45.5
C209: > 132 kV | D209: 0 | E209: 0 | F209: 0 | G209: 0 | H209: 0 | I209: 0 | J209: 0
C210: Other | D210: 40 | E210: 22 | F210: 21 | G210: 20 | H210: 20 | I210: 20 | J210: 20
B211: STAKING WOODEN POLES BY: HIGHEST OPERATING VOLTAGE | C211: ˂ = 1 Kv | D211: 501.2 | E211: 661 | F211: 660.96 | G211: 660.96 | H211: 660.96 | I211: 660.96 | J211: 660.96
C212: > 1 kV & < = 11 kV | D212: 100.9 | E212: 133 | F212: 133 | G212: 133 | H212: 133 | I212: 133 | J212: 133
C213: ˃ 11 kV & < = 22 kV | D213: 0 | E213: 0 | F213: 0 | G213: 0 | H213: 0 | I213: 0 | J213: 0
C214: > 22 kV & < = 66 kV | D214: 11.4 | E214: 15 | F214: 15 | G214: 15 | H214: 15 | I214: 15 | J214: 15
C215: > 66 kV & < = 132 kV | D215: 1.5 | E215: 2 | F215: 2.03 | G215: 2.03 | H215: 2.03 | I215: 2.03 | J215: 2.03
C216: > 132 kV
B217: OVERHEAD CONDUCTORS BY: Highest operating voltage; Number of phases (at HV) | C217: ˂ = 1 kV | D217: 181.2 | E217: 157.4 | F217: 597.41 | G217: 589.45 | H217: 602.46 | I217: 602.13 | J217: 602.19
C218: > 1 kV & < = 11 kV | D218: 145.5 | E218: 186.8 | F218: 195.59 | G218: 195.59 | H218: 195.59 | I218: 195.59 | J218: 195.59
C219: ˃ 11 kV & < = 22 kV ; SWER | D219: 0 | E219: 0 | F219: 0 | G219: 0 | H219: 0 | I219: 0 | J219: 0
C220: ˃ 11 kV & < = 22 kV ; Single-Phase | D220: 0 | E220: 0 | F220: 0 | G220: 0 | H220: 0 | I220: 0 | J220: 0
C221: ˃ 11 kV & < = 22 kV ; Multiple-Phase | D221: 0 | E221: 0 | F221: 0 | G221: 0 | H221: 0 | I221: 0 | J221: 0
C222: > 22 kV & < = 66 kV | D222: 3.3 | E222: 3.7 | F222: 3.78 | G222: 4.05 | H222: 4.4 | I222: 4.07 | J222: 3.75
C223: > 66 kV & < = 132 kV | D223: 0.1 | E223: 0.4 | F223: 0.03 | G223: 0 | H223: 0 | I223: 0 | J223: 0
C224: > 132 kV | D224: 0 | E224: 0 | F224: 0 | G224: 0 | H224: 0 | I224: 0 | J224: 0
C225: Other | D225: 584.3 | E225: 636.9 | F225: 0 | G225: 0 | H225: 0 | I225: 0 | J225: 0
B226: UNDERGROUND CABLES BY: Highest operating voltage | C226: ˂ = 1 kV | D226: 88.5 | E226: 78.9 | F226: 58.96 | G226: 58.8 | H226: 57.73 | I226: 57.73 | J226: 56.68
... 254 more rows

Sheet 2.3 Augex (b)
B1: =INDEX(dms_Worksheet_List,MATCH(dms_Model,dms_Model_List)) -> REGULATORY REPORTING STATEMENT
B2: =INDEX(dms_TradingNameFull_List,MATCH(dms_TradingName,dms_TradingName_List)) -> Ausgrid
B3: =CONCATENATE("REGULATORY PERIOD FROM ", FRCP_y1," TO ",dms_MultiYear_FinalYear_Result) -> REGULATORY PERIOD FROM 2024-25 TO 2028-29
B4: 2.3 AUGEX PROJECT DATA
B6: There are FOUR tables on this worksheet. These tables have been 'grouped' (and sub-grouped) for easy navigation. See the Instructions sheet on how to group or ungroup tables.
B8: NOTE: DNSP must provide expenditure information on an 'as incurred' basis.
B9: 2.3.3 - AUGEX DATA - HV/LV FEEDERS AND DISTRIBUTION SUBSTATIONS
D10: VOLUMES (0's)
B11: PROJECT TYPE | C11: UNITS | D11: =CRCP_y4 -> 2022-23 | E11: =CRCP_y5 -> 2023-24 | F11: =FRCP_y1 -> 2024-25 | G11: =FRCP_y2 -> 2025-26 | H11: =FRCP_y3 -> 2026-27 | I11: =FRCP_y4 -> 2027-28 | J11: =FRCP_y5 -> 2028-29
B12: DESCRIPTOR METRICS - UNITS ADDED
B13: HV Feeder Augmentations - Overhead Lines | C13: Circuit Line Length in KM | D13: 0.626 | E13: 5.3 | F13: 3.842 | G13: 3.787 | H13: 3.828 | I13: 3.828 | J13: 3.828
B14: HV Feeder Augmentations - Underground Cables | C14: Circuit Line Length in KM | D14: 1.186 | E14: 10.052 | F14: 8.649 | G14: 8.526 | H14: 8.618 | I14: 8.618 | J14: 8.618
B15: LV Feeder Augmentations - Overhead Lines | C15: Circuit Line Length in KM | D15: 0.013 | E15: 0.03 | F15: 0.035 | G15: 0.035 | H15: 0.035 | I15: 0.035 | J15: 0.035
B16: LV Feeder Augmentations - Underground Cables | C16: Circuit Line Length in KM | D16: 11.832 | E16: 27.594 | F16: 32.779 | G16: 32.779 | H16: 32.779 | I16: 32.779 | J16: 32.779
B17: Distribution Substation Augmentations - Pole Mounted | C17: Number | D17: 0.567 | E17: 1.48 | F17: 1.746 | G17: 1.746 | H17: 1.746 | I17: 1.746 | J17: 1.746
B18: Distribution Substation Augmentations - Ground Mounted | C18: Number | D18: 0.369 | E18: 0.862 | F18: 1.023 | G18: 1.023 | H18: 1.023 | I18: 1.023 | J18: 1.023
B19: Distribution Substation Augmentations - Indoor | C19: Number | D19: 0 | E19: 0 | F19: 0 | G19: 0 | H19: 0 | I19: 0 | J19: 0
B20: DESCRIPTOR METRICS - UNITS UPGRADED
B21: HV Feeder Augmentations - Overhead Lines | C21: Circuit Line Length in KM | D21: 2.003 | E21: 16.971 | F21: 12.302 | G21: 12.126 | H21: 12.258 | I21: 12.258 | J21: 12.258
B22: HV Feeder Augmentations - Underground Cables | C22: Circuit Line Length in KM | D22: 0 | E22: 0 | F22: 0 | G22: 0 | H22: 0 | I22: 0 | J22: 0
B23: LV Feeder Augmentations - Overhead Lines | C23: Circuit Line Length in KM | D23: 0.443 | E23: 1.048 | F23: 1.243 | G23: 1.243 | H23: 1.243 | I23: 1.243 | J23: 1.243
B24: LV Feeder Augmentations - Underground Cables | C24: Circuit Line Length in KM | D24: 0.09 | E24: 0.21 | F24: 0.25 | G24: 0.25 | H24: 0.25 | I24: 0.25 | J24: 0.25
B25: Distribution Substation Augmentations - Pole Mounted | C25: Number | D25: 2.39 | E25: 8.153 | F25: 9.492 | G25: 9.492 | H25: 9.492 | I25: 9.492 | J25: 9.492
B26: Distribution Substation Augmentations - Ground Mounted | C26: Number | D26: 2.042 | E26: 7.885 | F26: 9.006 | G26: 9.006 | H26: 9.006 | I26: 9.006 | J26: 9.006
B27: Distribution Substation Augmentations - Indoor | C27: Number | D27: 0.1 | E27: 0.407 | F27: 0.47 | G27: 0.47 | H27: 0.47 | I27: 0.47 | J27: 0.47
B29: COST METRICS
D30: =CONCATENATE("TOTAL DIRECT EXPENDITURE ($0's, real ", dms_DollarReal,")") -> TOTAL DIRECT EXPENDITURE ($0's, real June 2024)
B31: PROJECT TYPE | D31: =CRCP_y4 -> 2022-23 | E31: =CRCP_y5 -> 2023-24 | F31: =FRCP_y1 -> 2024-25 | G31: =FRCP_y2 -> 2025-26 | H31: =FRCP_y3 -> 2026-27 | I31: =FRCP_y4 -> 2027-28 | J31: =FRCP_y5 -> 2028-29
B32: HV Feeder Augmentations - Overhead Lines | D32: 2738456.69 | E32: 6213026.29 | F32: 9803115.52 | G32: 10055929.19 | H32: 10538096.75 | I32: 10306106.28 | J32: 10740104.99
B33: HV Feeder Augmentations - Underground Cables | D33: 3019517.79 | E33: 9251594.85 | F33: 11312862.46 | G33: 9051551.5 | H33: 8945424.02 | I33: 8974598.2 | J33: 8962582.36
B34: HV Feeder Non-Material Projects | D34: 0 | E34: 0 | F34: 0 | G34: 0 | H34: 0 | I34: 0 | J34: 0
B35: LV Feeder Augmentations - Overhead Lines | D35: 2219991.12 | E35: 3012052.53 | F35: 4635148.61 | G35: 3754216.68 | H35: 3669400 | I35: 3681478.39 | J35: 3674265.4
B36: LV Feeder Augmentations - Underground Cables | D36: 2073350.59 | E36: 1982688.08 | F36: 4713359.46 | G36: 4774098.22 | H36: 5225652.87 | I36: 4937912.6 | J36: 4835870.56
B37: LV Feeder Non-Material Projects | D37: 0 | E37: 0 | F37: 0 | G37: 0 | H37: 0 | I37: 0 | J37: 0
B38: Distribution Substation Augmentations - Pole Mounted | D38: 921357.35 | E38: 1272016.54 | F38: 1774051.71 | G38: 1671459.56 | H38: 1504078.39 | I38: 1466565.45 | J38: 1432721.34
B39: Distribution Substation Augmentations - Ground Mounted | D39: 5011145.76 | E39: 3817566.67 | F39: 3706872.49 | G39: 4719713.85 | H39: 4622510.25 | I39: 4409577.99 | J39: 4587231.2
B40: Distribution Substation Augmentations - Indoor | D40: 139816.17 | E40: 112886.64 | F40: 46435.25 | G40: 37553.65 | H40: 36667.66 | I40: 36769.06 | J40: 36664.26
B44: 2.3.4 - AUGEX - TOTAL EXPENDITURE
D45: =CONCATENATE("TOTAL DIRECT EXPENDITURE ($0's, real ", dms_DollarReal,")") -> TOTAL DIRECT EXPENDITURE ($0's, real June 2024)
D46: =CRCP_y4 -> 2022-23 | E46: =CRCP_y5 -> 2023-24 | F46: =FRCP_y1 -> 2024-25 | G46: =FRCP_y2 -> 2025-26 | H46: =FRCP_y3 -> 2026-27 | I46: =FRCP_y4 -> 2027-28 | J46: =FRCP_y5 -> 2028-29
B47: Subtransmission Substations, Switching Stations, Zone Substations | D47: 4644722.58 | E47: 3279200.05 | F47: 9127145.35 | G47: 5187823.83 | H47: 5842732.17 | I47: 4649324.13 | J47: 2429179.33
B48: Subtransmission Lines | D48: 2464346.99 | E48: 155754.8 | F48: 623263.51 | G48: 330993.61 | H48: 490312.63 | I48: 335893 | J48: 57218.2
B49: HV Feeders | D49: 5757974.48 | E49: 15464621.14 | F49: 21115977.98 | G49: 19107480.69 | H49: 19483520.76 | I49: 19280704.48 | J49: 19702687.35
B50: HV Feeders - Land Purchases and Easements | D50: 0 | E50: 0 | F50: 0 | G50: 0 | H50: 0 | I50: 0 | J50: 0
B51: Distribution Substations | D51: 6072319.28 | E51: 5202469.85 | F51: 5527359.45 | G51: 6428727.07 | H51: 6163256.3 | I51: 5912912.5 | J51: 6056616.79
B52: Distribution Substations - Land Purchases and Easements | D52: 0 | E52: 0 | F52: 0 | G52: 0 | H52: 0 | I52: 0 | J52: 0
B53: LV Feeders | D53: 4293341.71 | E53: 4994740.6 | F53: 9348508.06 | G53: 8528314.9 | H53: 8895052.87 | I53: 8619390.99 | J53: 8510135.96
B54: LV Feeders - Land Purchases and Easements | D54: 0 | E54: 0 | F54: 0 | G54: 0 | H54: 0 | I54: 0 | J54: 0
B55: Other Assets | D55: 0 | E55: 0 | F55: 0 | G55: 0 | H55: 0 | I55: 0 | J55: 0
B59: 2.3.5 - AUGEX - BY DRIVER
D60: =CONCATENATE("TOTAL DIRECT EXPENDITURE ($0's, real ", dms_DollarReal,")") -> TOTAL DIRECT EXPENDITURE ($0's, real June 2024)
D61: =CRCP_y4 -> 2022-23 | E61: =CRCP_y5 -> 2023-24 | F61: =FRCP_y1 -> 2024-25 | G61: =FRCP_y2 -> 2025-26 | H61: =FRCP_y3 -> 2026-27 | I61: =FRCP_y4 -> 2027-28 | J61: =FRCP_y5 -> 2028-29
B62: "Greenfield" driven augex (network expansion capex) | D62: 0 | E62: 0 | F62: 277313.63 | G62: 897645.47 | H62: 2193579.73 | I62: 1814692.66 | J62: 384038.81
B63: Reinforcement driven augex (augmentation of the existing network) | D63: 23232705.03 | E63: 29096786.43 | F63: 45464940.73 | G63: 38685694.63 | H63: 38681295.01 | I63: 36983532.45 | J63: 36371798.82
B67: 2.3.6 - AUGEX - GREENFIELDS DRIVEN
D68: =CONCATENATE("TOTAL DIRECT EXPENDITURE ($0's, real ", dms_DollarReal,")") -> TOTAL DIRECT EXPENDITURE ($0's, real June 2024)
D69: =CRCP_y4 -> 2022-23 | E69: =CRCP_y5 -> 2023-24 | F69: =FRCP_y1 -> 2024-25 | G69: =FRCP_y2 -> 2025-26 | H69: =FRCP_y3 -> 2026-27 | I69: =FRCP_y4 -> 2027-28 | J69: =FRCP_y5 -> 2028-29
B70: Subtransmission Substations, Switching Stations, Zone Substations | D70: 0 | E70: 0 | F70: 236168.33 | G70: 764265.9 | H70: 1867194.65 | I70: 1544577.61 | J70: 326820.61
B71: Subtransmission Lines | D71: 0 | E71: 0 | F71: 41145.3 | G71: 133379.57 | H71: 326385.08 | I71: 270115.05 | J71: 57218.2
B72: HV Feeders | D72: 0 | E72: 0 | F72: 0 | G72: 0 | H72: 0 | I72: 0 | J72: 0
B73: HV Feeders - Land Purchases and Easements | D73: 0 | E73: 0 | F73: 0 | G73: 0 | H73: 0 | I73: 0 | J73: 0
B74: Distribution Substations | D74: 0 | E74: 0 | F74: 0 | G74: 0 | H74: 0 | I74: 0 | J74: 0
B75: Distribution Substations - Land Purchases and Easements | D75: 0 | E75: 0 | F75: 0 | G75: 0 | H75: 0 | I75: 0 | J75: 0
B76: LV Feeders | D76: 0 | E76: 0 | F76: 0 | G76: 0 | H76: 0 | I76: 0 | J76: 0
B77: LV Feeders - Land Purchases and Easements | D77: 0 | E77: 0 | F77: 0 | G77: 0 | H77: 0 | I77: 0 | J77: 0
B78: Other Assets | D78: 0 | E78: 0 | F78: 0 | G78: 0 | H78: 0 | I78: 0 | J78: 0

Sheet 2.5 Connections
B1: =INDEX(dms_Worksheet_List,MATCH(dms_Model,dms_Model_List)) -> REGULATORY REPORTING STATEMENT
B2: =INDEX(dms_TradingNameFull_List,MATCH(dms_TradingName,dms_TradingName_List)) -> Ausgrid
B3: =CONCATENATE("REGULATORY PERIOD FROM ", FRCP_y1," TO ",dms_MultiYear_FinalYear_Result) -> REGULATORY PERIOD FROM 2024-25 TO 2028-29
B4: 2.5 CONNECTIONS
B6: There are THREE tables on this worksheet - each has been 'grouped' (and sub-grouped) for easy navigation. See the Instructions sheet on how to group or ungroup tables.
B8: 2.5.1 - DESCRIPTOR METRICS
B9: VOLUMES AND EXPENDITURE - ALL
B10: CONNECTION SUBCATEGORY | C10: DESCRIPTOR METRIC | D10: Unit of Measure | E10: =CONCATENATE("VOLUMES and EXPENDITURE (0's, real ", dms_DollarReal, ")") -> VOLUMES and EXPENDITURE (0's, real June 2024)
E11: =CRCP_y4 -> 2022-23 | F11: =CRCP_y5 -> 2023-24 | G11: =FRCP_y1 -> 2024-25 | H11: =FRCP_y2 -> 2025-26 | I11: =FRCP_y3 -> 2026-27 | J11: =FRCP_y4 -> 2027-28 | K11: =FRCP_y5 -> 2028-29
B12: RESIDENTIAL | C12: Underground connections | D12: 0's | E12: 9062.862 | F12: 8879.339 | G12: 8737.334 | H12: 8368.604 | I12: 8266.123 | J12: 8299.948 | K12: 8585.622
C13: Overhead connections | D13: 0's | E13: 5166.159 | F13: 5062.102 | G13: 4980.576 | H13: 4770.363 | I13: 4711.939 | J13: 4731.222 | K13: 4894.085
C14: Distribution substations installed | D14: MVA added | E14: 12.94 | F14: 12.68 | G14: 12.476 | H14: 11.949 | I14: 11.803 | J14: 11.851 | K14: 12.259
C15: Distribution substations installed | D15: 0's | E15: 31.356 | F15: 30.724 | G15: 30.23 | H15: 28.954 | I15: 28.599 | J15: 28.716 | K15: 29.705
C16: Distribution substations installed | D16: total spend $0s | E16: 2687855.566 | F16: 2594222.568 | G16: 2495374.9 | H16: 2392672.057 | I16: 2364447.287 | J16: 2373700.696 | K16: 2457198.594
C17: Augmentation HV | D17: net circuit KM added | E17: 0.053 | F17: 0.051 | G17: 0.049 | H17: 0.047 | I17: 0.047 | J17: 0.047 | K17: 0.049
C18: Augmentation HV | D18: total spend $0s | E18: 14955.324 | F18: 14431.921 | G18: 13873.809 | H18: 13288.244 | I18: 13125.498 | J18: 13179.215 | K18: 13632.883
C19: Augmentation LV | D19: net circuit KM added | E19: 86.193 | F19: 83.176 | G19: 79.96 | H19: 76.585 | I19: 75.647 | J19: 75.957 | K19: 78.571
C20: Augmentation LV | D20: total spend $0s | E20: 22378346.34 | F20: 21603521.74 | G20: 20796403.76 | H20: 19968914.99 | I20: 19745059.94 | J20: 19817744.57 | K20: 20534250.67
C21: Mean days to connect residential customer with LV single phase connection | D21: 0's | E21: 0 | F21: 0 | G21: 0 | H21: 0 | I21: 0 | J21: 0 | K21: 0
C22: Volume of GSL breaches for residential customers | D22: 0's | E22: 0 | F22: 0 | G22: 0 | H22: 0 | I22: 0 | J22: 0 | K22: 0
C23: Volume of customer complaints relating to connection services | D23: 0's | E23: 0 | F23: 0 | G23: 0 | H23: 0 | I23: 0 | J23: 0 | K23: 0
C24: GSL payments | D24: $0's | E24: 0 | F24: 0 | G24: 0 | H24: 0 | I24: 0 | J24: 0 | K24: 0
B25: COMMERCIAL/INDUSTRIAL | C25: Underground connections | D25: 0's | E25: 628.865 | F25: 608.94 | G25: 693.91 | H25: 654.925 | I25: 656.687 | J25: 677.696 | K25: 685.705
C26: Overhead connections | D26: 0's | E26: 222.804 | F26: 210.791 | G26: 252.186 | H26: 239.014 | I26: 241.07 | J26: 247.161 | K26: 252.971
C27: Distribution substations installed | D27: MVA added | E27: 242.706 | F27: 246.664 | G27: 249.444 | H27: 237.145 | I27: 239.25 | J27: 245.409 | K27: 251.008
C28: Distribution substations installed | D28: 0's | E28: 252.668 | F28: 256.789 | G28: 259.683 | H28: 246.88 | I28: 249.07 | J28: 255.482 | K28: 261.311
C29: Distribution substations installed | D29: total spend $0s | E29: 36501304.24 | F29: 36562317.05 | G29: 36307312.56 | H29: 34890570.16 | I29: 35320660.65 | J29: 36137051.72 | K29: 37228599.92
C30: Augmentation HV | D30: net circuit KM added | E30: 191.761 | F30: 52.225 | G30: 78.722 | H30: 63.421 | I30: 42.851 | J30: 33.22 | K30: 18.361
C31: Augmentation HV | D31: total spend $0s | E31: 61439623.48 | F31: 18365456.23 | G31: 29964204.19 | H31: 20904981.35 | I31: 14184576.62 | J31: 12681183.79 | K31: 6435288.112
C32: Augmentation LV | D32: net circuit KM added | E32: 54.44 | F32: 53.948 | G32: 54.387 | H32: 51.734 | I32: 52.208 | J32: 53.562 | K32: 54.802
C33: Augmentation LV | D33: total spend $0s | E33: 17710843.01 | F33: 17856859.32 | G33: 18478663.41 | H33: 19289809.38 | I33: 20016716.78 | J33: 20103680.41 | K33: 21794424.53
B34: SUBDIVISION | C34: Underground connections | D34: 0's | E34: 104.88 | F34: 102.768 | G34: 101.113 | H34: 96.845 | I34: 95.659 | J34: 96.05 | K34: 99.357
C35: Overhead connections | D35: 0's | E35: 2.162 | F35: 2.119 | G35: 2.085 | H35: 1.997 | I35: 1.972 | J35: 1.98 | K35: 2.049
C36: Distribution substations installed | D36: MVA added | E36: 23.94 | F36: 23.458 | G36: 23.08 | H36: 22.106 | I36: 21.835 | J36: 21.925 | K36: 22.679
C37: Distribution substations installed | D37: 0's | E37: 41.087 | F37: 40.26 | G37: 39.611 | H37: 37.939 | I37: 37.475 | J37: 37.628 | K37: 38.923
C38: Distribution substations installed | D38: total spend $0s | E38: 11850185.66 | F38: 11435455.61 | G38: 10993223.22 | H38: 10529237.29 | I38: 10400282.59 | J38: 10442846.25 | K38: 10802319.88
C39: Augmentation HV | D39: net circuit KM added | E39: 62.914 | F39: 60.713 | G39: 58.365 | H39: 55.901 | I39: 55.217 | J39: 55.443 | K39: 57.351
C40: Augmentation HV | D40: total spend $0s | E40: 17643895.27 | F40: 17026398.3 | G40: 16367952.76 | H40: 15677118.09 | I40: 15485115.75 | J40: 15548489.34 | K40: 16083714.31
C41: Augmentation LV | D41: net circuit KM added | E41: 10.574 | F41: 10.204 | G41: 9.809 | H41: 9.395 | I41: 9.28 | J41: 9.318 | K41: 9.639
C42: Augmentation LV | D42: total spend $0s | E42: 2729999.944 | F42: 2634456.037 | G42: 2532576.251 | H42: 2425684.966 | I42: 2395976.88 | J42: 2405782.532 | K42: 2488596.678
C43: Cost per lot | D43: $0's | E43: 0 | F43: 0 | G43: 0 | H43: 0 | I43: 0 | J43: 0 | K43: 0
B44: EMBEDDED GENERATION | C44: Underground connections | D44: 0's | E44: 0 | F44: 0 | G44: 0 | H44: 0 | I44: 0 | J44: 0 | K44: 0
C45: Overhead connections | D45: 0's | E45: 0 | F45: 0 | G45: 0 | H45: 0 | I45: 0 | J45: 0 | K45: 0
C46: Distribution substations installed | D46: MVA added | E46: 0 | F46: 0 | G46: 0 | H46: 0 | I46: 0 | J46: 0 | K46: 0
C47: Distribution substations installed | D47: 0's | E47: 0 | F47: 0 | G47: 0 | H47: 0 | I47: 0 | J47: 0 | K47: 0
C48: Distribution substations installed | D48: total spend $0's | E48: 0 | F48: 0 | G48: 0 | H48: 0 | I48: 0 | J48: 0 | K48: 0
C49: Augmentation HV | D49: net circuit KM added | E49: 0 | F49: 0 | G49: 0 | H49: 0 | I49: 0 | J49: 0 | K49: 0
C50: Augmentation HV | D50: total spend $0s | E50: 0 | F50: 0 | G50: 0 | H50: 0 | I50: 0 | J50: 0 | K50: 0
C51: Augmentation LV | D51: net circuit KM added | E51: 0 | F51: 0 | G51: 0 | H51: 0 | I51: 0 | J51: 0 | K51: 0
C52: Augmentation LV | D52: total spend $0s | E52: 29781.063 | F52: 30731.252 | G52: 36289.659 | H52: 46724.65 | I52: 51083.834 | J52: 49358.683 | K52: 59230.082
B54: VOLUMES AND EXPENDITURE - STANDARD CONTROL SERVICES
B55: CONNECTION SUBCATEGORY | C55: DESCRIPTOR METRIC | D55: Unit of Measure | E55: =CONCATENATE("VOLUMES and EXPENDITURE (0's, real ", dms_DollarReal, ")") -> VOLUMES and EXPENDITURE (0's, real June 2024)
E56: =CRCP_y4 -> 2022-23 | F56: =CRCP_y5 -> 2023-24 | G56: =FRCP_y1 -> 2024-25 | H56: =FRCP_y2 -> 2025-26 | I56: =FRCP_y3 -> 2026-27 | J56: =FRCP_y4 -> 2027-28 | K56: =FRCP_y5 -> 2028-29
B57: RESIDENTIAL | C57: Underground connections | D57: 0's | E57: 1 | F57: 0 | G57: 1 | H57: 1 | I57: 1 | J57: 1 | K57: 1
C58: Overhead connections | D58: 0's | E58: 0 | F58: 0 | G58: 0 | H58: 0 | I58: 0 | J58: 0 | K58: 0
C59: Distribution substations installed | D59: MVA added | E59: 0 | F59: 0 | G59: 0 | H59: 0 | I59: 0 | J59: 0 | K59: 0
C60: Distribution substations installed | D60: 0's | E60: 0 | F60: 0 | G60: 0 | H60: 0 | I60: 0 | J60: 0 | K60: 0
C61: Distribution substations installed | D61: total spend $0s | E61: 6516.09 | F61: 6723.991 | G61: 7940.169 | H61: 10223.343 | I61: 11177.131 | J61: 10799.668 | K61: 12959.528
C62: Augmentation HV | D62: net circuit KM added | E62: 0 | F62: 0 | G62: 0 | H62: 0 | I62: 0 | J62: 0 | K62: 0
C63: Augmentation HV | D63: total spend $0s | E63: 0 | F63: 0 | G63: 0 | H63: 0 | I63: 0 | J63: 0 | K63: 0
C64: Augmentation LV | D64: net circuit KM added | E64: 0 | F64: 0 | G64: 0 | H64: 0 | I64: 0 | J64: 0 | K64: 0
C65: Augmentation LV | D65: total spend $0s | E65: 125069.429 | F65: 129059.871 | G65: 152403.121 | H65: 196226.215 | I65: 214533.174 | J65: 207288.179 | K65: 248744.395
C66: Mean days to connect residential customer with LV single phase connection | D66: 0's | E66: 0 | F66: 0 | G66: 0 | H66: 0 | I66: 0 | J66: 0 | K66: 0
C67: Volume of GSL breaches for residential customers | D67: 0's | E67: 0 | F67: 0 | G67: 0 | H67: 0 | I67: 0 | J67: 0 | K67: 0
C68: Volume of customer complaints relating to connection services | D68: 0's | E68: 0 | F68: 0 | G68: 0 | H68: 0 | I68: 0 | J68: 0 | K68: 0
C69: GSL payments | D69: $0's | E69: 0 | F69: 0 | G69: 0 | H69: 0 | I69: 0 | J69: 0 | K69: 0
B70: COMMERCIAL/INDUSTRIAL | C70: Underground connections | D70: 0's | E70: 193 | F70: 162 | G70: 242 | H70: 228 | I70: 227 | J70: 235 | K70: 237
C71: Overhead connections | D71: 0's | E71: 101 | F71: 85 | G71: 126 | H71: 120 | I71: 121 | J71: 124 | K71: 127
C72: Distribution substations installed | D72: MVA added | E72: 0 | F72: 0 | G72: 0 | H72: 0 | I72: 0 | J72: 0 | K72: 0
C73: Distribution substations installed | D73: 0's | E73: 0 | F73: 0 | G73: 0 | H73: 0 | I73: 0 | J73: 0 | K73: 0
C74: Distribution substations installed | D74: total spend $0s | E74: 909524.956 | F74: 938544.085 | G74: 1108299.947 | H74: 1426988.521 | I74: 1560119.661 | J74: 1507432.892 | K74: 1808909.149
C75: Augmentation HV | D75: net circuit KM added | E75: 0 | F75: 0 | G75: 0 | H75: 0 | I75: 0 | J75: 0 | K75: 0
C76: Augmentation HV | D76: total spend $0s | E76: 7661593.305 | F76: 3719262.154 | G76: 7887163.774 | H76: 3118989.083 | I76: 2167219.654 | J76: 3364918.67 | K76: 1286194.537
C77: Augmentation LV | D77: net circuit KM added | E77: 2.092 | F77: 1.553 | G77: 2.616 | H77: 2.516 | I77: 2.554 | J77: 2.63 | K77: 2.708
C78: Augmentation LV | D78: total spend $0s | E78: 4195708.168 | F78: 4329575.631 | G78: 5112672.402 | H78: 6582807.163 | I78: 7196951.293 | J78: 6953903.198 | K78: 8344636.224
B79: SUBDIVISION | C79: Underground connections | D79: 0's | E79: 0 | F79: 0 | G79: 0 | H79: 0 | I79: 0 | J79: 0 | K79: 0
C80: Overhead connections | D80: 0's | E80: 0 | F80: 0 | G80: 0 | H80: 0 | I80: 0 | J80: 0 | K80: 0
C81: Distribution substations installed | D81: MVA added | E81: 0 | F81: 0 | G81: 0 | H81: 0 | I81: 0 | J81: 0 | K81: 0
C82: Distribution substations installed | D82: 0's | E82: 0 | F82: 0 | G82: 0 | H82: 0 | I82: 0 | J82: 0 | K82: 0
C83: Distribution substations installed | D83: total spend $0s | E83: 0 | F83: 0 | G83: 0 | H83: 0 | I83: 0 | J83: 0 | K83: 0
C84: Augmentation HV | D84: net circuit KM added | E84: 0 | F84: 0 | G84: 0 | H84: 0 | I84: 0 | J84: 0 | K84: 0
C85: Augmentation HV | D85: total spend $0s | E85: 0 | F85: 0 | G85: 0 | H85: 0 | I85: 0 | J85: 0 | K85: 0
C86: Augmentation LV | D86: net circuit KM added | E86: 0 | F86: 0 | G86: 0 | H86: 0 | I86: 0 | J86: 0 | K86: 0
C87: Augmentation LV | D87: total spend $0s | E87: 0 | F87: 0 | G87: 0 | H87: 0 | I87: 0 | J87: 0 | K87: 0
C88: Cost per lot | D88: $0's | E88: 0 | F88: 0 | G88: 0 | H88: 0 | I88: 0 | J88: 0 | K88: 0
B89: EMBEDDED GENERATION | C89: Underground connections | D89: 0's | E89: 0 | F89: 0 | G89: 0 | H89: 0 | I89: 0 | J89: 0 | K89: 0
C90: Overhead connections | D90: 0's | E90: 0 | F90: 0 | G90: 0 | H90: 0 | I90: 0 | J90: 0 | K90: 0
C91: Distribution substations installed | D91: MVA added | E91: 0 | F91: 0 | G91: 0 | H91: 0 | I91: 0 | J91: 0 | K91: 0
C92: Distribution substations installed | D92: 0's | E92: 0 | F92: 0 | G92: 0 | H92: 0 | I92: 0 | J92: 0 | K92: 0
C93: Distribution substations installed | D93: total spend $0s | E93: 0 | F93: 0 | G93: 0 | H93: 0 | I93: 0 | J93: 0 | K93: 0
C94: Augmentation HV | D94: net circuit KM added | E94: 0 | F94: 0 | G94: 0 | H94: 0 | I94: 0 | J94: 0 | K94: 0
C95: Augmentation HV | D95: total spend $0s | E95: 0 | F95: 0 | G95: 0 | H95: 0 | I95: 0 | J95: 0 | K95: 0
C96: Augmentation LV | D96: net circuit KM added | E96: 0 | F96: 0 | G96: 0 | H96: 0 | I96: 0 | J96: 0 | K96: 0
C97: Augmentation LV | D97: total spend $0s | E97: 29781.063 | F97: 30731.252 | G97: 36289.659 | H97: 46724.65 | I97: 51083.834 | J97: 49358.683 | K97: 59230.082
B101: 2.5.2 - COST METRICS BY CONNECTION CLASSIFICATION
B102: EXPENDITURE - ALL
B103: CONNECTION SUBCATEGORY | C103: CONNECTION CLASSICIATION | E103: =CONCATENATE("EXPENDITURE ($0's, real ", dms_DollarReal, ")") -> EXPENDITURE ($0's, real June 2024)
E104: =CRCP_y4 -> 2022-23 | F104: =CRCP_y5 -> 2023-24 | G104: =FRCP_y1 -> 2024-25 | H104: =FRCP_y2 -> 2025-26 | I104: =FRCP_y3 -> 2026-27 | J104: =FRCP_y4 -> 2027-28 | K104: =FRCP_y5 -> 2028-29
B105: RESIDENTIAL | C105: Simple connection LV | E105: 19996663.67 | F105: 19296825.06 | G105: 18550577.49 | H105: 17767621.77 | I105: 17550016.42 | J105: 17621840.71 | K105: 18228436.56
C106: Complex connection LV | E106: 2381682.668 | F106: 2306696.681 | G106: 2245826.275 | H106: 2201293.219 | I106: 2195043.525 | J106: 2195903.864 | K106: 2305814.111
C107: Complex connection HV | E107: 2702810.89 | F107: 2608654.489 | G107: 2509248.709 | H107: 2405960.3 | I107: 2377572.785 | J107: 2386879.911 | K107: 2470831.477
B108: COMMERCIAL/INDUSTRIAL | C108: Simple connection LV | E108: 11028959.65 | F108: 10532635.69 | G108: 11419251.6 | H108: 10883651.23 | I108: 10994794.24 | J108: 11287333.19 | K108: 11562392.42
C109: Complex connection HV (customer connected at LV, minor HV works) | E109: 9694288.645 | F109: 9725413.965 | G109: 9753246.6 | H109: 9569055.513 | I109: 9749705.109 | J109: 9926902.089 | K109: 10365628.69
C110: Complex connection HV (customer connected at LV, upstream asset works) | E110: 36174734.88 | F110: 36194354.97 | G110: 35908251.97 | H110: 34610787.93 | I110: 35011506.97 | J110: 35763060.26 | K110: 36778981.98
C111: Complex connection HV (customer connected at HV) | E111: 1617386.699 | F111: 1638831.613 | G111: 1747557.329 | H111: 1926037.695 | I111: 2028524.781 | J111: 2014927.39 | K111: 2250223.954
C112: Complex connection sub-transmission | E112: 57136400.84 | F112: 14693396.36 | G112: 25921872.66 | H112: 18095828.51 | I112: 11737422.96 | J112: 9929692.994 | K112: 4501085.51
B113: SUBDIVISION | C113: Complex connection LV | E113: 2729999.944 | F113: 2634456.037 | G113: 2532576.251 | H113: 2425684.966 | I113: 2395976.88 | J113: 2405782.532 | K113: 2488596.678
C114: Complex connection HV (no upstream asset works) | E114: 11850185.66 | F114: 11435455.61 | G114: 10993223.22 | H114: 10529237.29 | I114: 10400282.59 | J114: 10442846.25 | K114: 10802319.88
C115: Complex connection HV (with upstream asset works) | E115: 17643895.27 | F115: 17026398.3 | G115: 16367952.76 | H115: 15677118.09 | I115: 15485115.75 | J115: 15548489.34 | K115: 16083714.31
B116: EMBEDDED GENERATION | C116: Simple connection LV | E116: 29781.063 | F116: 30731.252 | G116: 36289.659 | H116: 46724.65 | I116: 51083.834 | J116: 49358.683 | K116: 59230.082
C117: Complex connection HV (small capacity) | E117: 0 | F117: 0 | G117: 0 | H117: 0 | I117: 0 | J117: 0 | K117: 0
C118: Complex connection HV (large capacity) | E118: 0 | F118: 0 | G118: 0 | H118: 0 | I118: 0 | J118: 0 | K118: 0
B120: EXPENDITURE - STANDARD CONTROL SERVICES
E121: =CONCATENATE("EXPENDITURE ($0's, real ", dms_DollarReal, ")") -> EXPENDITURE ($0's, real June 2024)
E122: =CRCP_y4 -> 2022-23 | F122: =CRCP_y5 -> 2023-24 | G122: =FRCP_y1 -> 2024-25 | H122: =FRCP_y2 -> 2025-26 | I122: =FRCP_y3 -> 2026-27 | J122: =FRCP_y4 -> 2027-28 | K122: =FRCP_y5 -> 2028-29
B123: RESIDENTIAL | C123: Simple connection LV | E123: 0 | F123: 0 | G123: 0 | H123: 0 | I123: 0 | J123: 0 | K123: 0
C124: Complex connection LV | E124: 125069.429 | F124: 129059.871 | G124: 152403.121 | H124: 196226.215 | I124: 214533.174 | J124: 207288.179 | K124: 248744.395
C125: Complex connection HV | E125: 6516.09 | F125: 6723.991 | G125: 7940.169 | H125: 10223.343 | I125: 11177.131 | J125: 10799.668 | K125: 12959.528
B126: COMMERCIAL/INDUSTRIAL | C126: Simple connection LV | E126: 1958230.064 | F126: 1453752.363 | G126: 2448620.412 | H126: 2355302.657 | I126: 2390764.196 | J126: 2461814.639 | K126: 2535520.387
C127: Complex connection HV (customer connected at LV, minor HV works) | E127: 722776.486 | F127: 745837.254 | G127: 880737.945 | H127: 1133991.697 | I127: 1239787.649 | J127: 1197918.805 | K127: 1437494.364
C128: Complex connection HV (customer connected at LV, upstream asset works) | E128: 866093.984 | F128: 893727.413 | G128: 1055377.217 | H128: 1358848.007 | I128: 1485621.967 | J128: 1435451.058 | K128: 1722531.441
C129: Complex connection HV (customer connected at HV) | E129: 644728.53 | F129: 665299.115 | G129: 785632.754 | H129: 1011539.272 | I129: 1105911.002 | J129: 1068563.305 | K129: 1282268.649
C130: Complex connection sub-transmission | E130: 8574997.366 | F130: 5228765.724 | G130: 8937767.795 | H130: 5269103.134 | I130: 4702205.795 | J130: 5662506.954 | K130: 4461925.069
B131: SUBDIVISION | C131: Complex connection LV | E131: 0 | F131: 0 | G131: 0 | H131: 0 | I131: 0 | J131: 0 | K131: 0
C132: Complex connection HV (no upstream asset works) | E132: 0 | F132: 0 | G132: 0 | H132: 0 | I132: 0 | J132: 0 | K132: 0
C133: Complex connection HV (with upstream asset works) | E133: 0 | F133: 0 | G133: 0 | H133: 0 | I133: 0 | J133: 0 | K133: 0
B134: EMBEDDED GENERATION | C134: Simple connection LV | E134: 29781.063 | F134: 30731.252 | G134: 36289.659 | H134: 46724.65 | I134: 51083.834 | J134: 49358.683 | K134: 59230.082
C135: Complex connection HV (small capacity) | E135: 0 | F135: 0 | G135: 0 | H135: 0 | I135: 0 | J135: 0 | K135: 0
C136: Complex connection HV (large capacity) | E136: 0 | F136: 0 | G136: 0 | H136: 0 | I136: 0 | J136: 0 | K136: 0
B138: EXPENDITURE - STANDARD CONTROL SERVICES - CAPITAL CONTRIBUTIONS
E139: =CONCATENATE("EXPENDITURE ($0's, real ", dms_DollarReal, ")") -> EXPENDITURE ($0's, real June 2024)
E140: =CRCP_y4 -> 2022-23 | F140: =CRCP_y5 -> 2023-24 | G140: =FRCP_y1 -> 2024-25 | H140: =FRCP_y2 -> 2025-26 | I140: =FRCP_y3 -> 2026-27 | J140: =FRCP_y4 -> 2027-28 | K140: =FRCP_y5 -> 2028-29
B141: RESIDENTIAL | C141: Simple connection LV | E141: 19996663.67 | F141: 19296825.06 | G141: 18550577.49 | H141: 17767621.77 | I141: 17550016.42 | J141: 17621840.71 | K141: 18228436.56
C142: Complex connection LV | E142: 2256613.239 | F142: 2177636.81 | G142: 2093423.155 | H142: 2005067.003 | I142: 1980510.351 | J142: 1988615.685 | K142: 2057069.716
C143: Complex connection HV | E143: 2696294.8 | F143: 2601930.498 | G143: 2501308.54 | H143: 2395736.958 | I143: 2366395.654 | J143: 2376080.243 | K143: 2457871.949
B144: COMMERCIAL/INDUSTRIAL | C144: Simple connection LV | E144: 9070729.591 | F144: 9078883.33 | G144: 8970631.19 | H144: 8528348.577 | I144: 8604030.04 | J144: 8825518.549 | K144: 9026872.037
C145: Complex connection HV (customer connected at LV, minor HV works) | E145: 8971512.16 | F145: 8979576.711 | G145: 8872508.654 | H145: 8435063.816 | I145: 8509917.46 | J145: 8728983.284 | K145: 8928134.328
C146: Complex connection HV (customer connected at LV, upstream asset works) | E146: 35308640.9 | F146: 35300627.55 | G146: 34852874.76 | H146: 33251939.92 | I146: 33525885 | J146: 34327609.2 | K146: 35056450.54
C147: Complex connection HV (customer connected at HV) | E147: 972658.169 | F147: 973532.498 | G147: 961924.575 | H147: 914498.424 | I147: 922613.779 | J147: 946364.085 | K147: 967955.305
C148: Complex connection sub-transmission | E148: 48561403.48 | F148: 9464630.632 | G148: 16984104.86 | H148: 12826725.38 | I148: 7035217.164 | J148: 4267186.04 | K148: 39160.441
B149: SUBDIVISION | C149: Complex connection LV | E149: 2729999.944 | F149: 2634456.037 | G149: 2532576.251 | H149: 2425684.966 | I149: 2395976.88 | J149: 2405782.532 | K149: 2488596.678
C150: Complex connection HV (no upstream asset works) | E150: 11850185.66 | F150: 11435455.61 | G150: 10993223.22 | H150: 10529237.29 | I150: 10400282.59 | J150: 10442846.25 | K150: 10802319.88
C151: Complex connection HV (with upstream asset works) | E151: 17643895.27 | F151: 17026398.3 | G151: 16367952.76 | H151: 15677118.09 | I151: 15485115.75 | J151: 15548489.34 | K151: 16083714.31
B152: EMBEDDED GENERATION | C152: Simple connection LV | E152: 0 | F152: 0 | G152: 0 | H152: 0 | I152: 0 | J152: 0 | K152: 0
C153: Complex connection HV (small capacity) | E153: 0 | F153: 0 | G153: 0 | H153: 0 | I153: 0 | J153: 0 | K153: 0
C154: Complex connection HV (large capacity) | E154: 0 | F154: 0 | G154: 0 | H154: 0 | I154: 0 | J154: 0 | K154: 0
B158: 2.5.3 - VOLUMES BY CONNECTION CLASSIFICATION
B159: NEW CONNECTIONS - ALL
E160: VOLUMES (0's)
E161: =CRCP_y4 -> 2022-23 | F161: =CRCP_y5 -> 2023-24 | G161: =FRCP_y1 -> 2024-25 | H161: =FRCP_y2 -> 2025-26 | I161: =FRCP_y3 -> 2026-27 | J161: =FRCP_y4 -> 2027-28 | K161: =FRCP_y5 -> 2028-29
B162: RESIDENTIAL | C162: Simple connection LV | E162: 14183 | F162: 13897 | G162: 13673 | H162: 13096 | I162: 12936 | J162: 12989 | K162: 13436
C163: Complex connection LV | E163: 20 | F163: 20 | G163: 20 | H163: 19 | I163: 19 | J163: 19 | K163: 19
C164: Complex connection HV | E164: 26 | F164: 25 | G164: 25 | H164: 24 | I164: 24 | J164: 24 | K164: 25
B165: COMMERCIAL/INDUSTRIAL | C165: Simple connection LV | E165: 509 | F165: 462 | G165: 568 | H165: 540 | I165: 545 | J165: 558 | K165: 572
C166: Complex connection HV (customer connected at LV, minor HV works) | E166: 182 | F166: 186 | G166: 203 | H166: 193 | I166: 195 | J166: 200 | K166: 205
C167: Complex connection HV (customer connected at LV, upstream asset works) | E167: 146 | F167: 148 | G167: 150 | H167: 143 | I167: 144 | J167: 148 | K167: 151
C168: Complex connection HV (customer connected at HV) | E168: 6 | F168: 7 | G168: 7 | H168: 7 | I168: 7 | J168: 7 | K168: 7
C169: Complex connection sub-transmission | E169: 9 | F169: 15 | G169: 18 | H169: 11 | I169: 7 | J169: 12 | K169: 4
B170: SUBDIVISION | C170: Complex connection LV | E170: 11 | F170: 11 | G170: 10 | H170: 10 | I170: 10 | J170: 10 | K170: 10
C171: Complex connection HV (no upstream asset works) | E171: 19 | F171: 19 | G171: 19 | H171: 18 | I171: 18 | J171: 18 | K171: 18
C172: Complex connection HV (with upstream asset works) | E172: 77 | F172: 75 | G172: 74 | H172: 71 | I172: 70 | J172: 70 | K172: 73
B173: EMBEDDED GENERATION | C173: Simple connection LV | E173: 0 | F173: 0 | G173: 0 | H173: 0 | I173: 0 | J173: 0 | K173: 0
C174: Complex connection HV (small capacity) | E174: 0 | F174: 0 | G174: 0 | H174: 0 | I174: 0 | J174: 0 | K174: 0
C175: Complex connection HV (large capacity) | E175: 0 | F175: 0 | G175: 0 | H175: 0 | I175: 0 | J175: 0 | K175: 0
B177: NEW CONNECTIONS - STANDARD CONTROL SERVICES
E178: VOLUMES (0's)
E179: =CRCP_y4 -> 2022-23 | F179: =CRCP_y5 -> 2023-24 | G179: =FRCP_y1 -> 2024-25 | H179: =FRCP_y2 -> 2025-26 | I179: =FRCP_y3 -> 2026-27 | J179: =FRCP_y4 -> 2027-28 | K179: =FRCP_y5 -> 2028-29
B180: RESIDENTIAL | C180: Simple connection LV | E180: 0 | F180: 0 | G180: 0 | H180: 0 | I180: 0 | J180: 0 | K180: 0
C181: Complex connection LV | E181: 1 | F181: 1 | G181: 1 | H181: 1 | I181: 1 | J181: 1 | K181: 1
C182: Complex connection HV | E182: 0 | F182: 0 | G182: 0 | H182: 0 | I182: 0 | J182: 0 | K182: 0
B183: COMMERCIAL/INDUSTRIAL | C183: Simple connection LV | E183: 200 | F183: 148 | G183: 250 | H183: 238 | I183: 240 | J183: 246 | K183: 252
C184: Complex connection HV (customer connected at LV, minor HV works) | E184: 87 | F184: 90 | G184: 106 | H184: 101 | I184: 102 | J184: 104 | K184: 107
C185: Complex connection HV (customer connected at LV, upstream asset works) | E185: 2 | F185: 2 | G185: 2 | H185: 2 | I185: 2 | J185: 2 | K185: 2
C186: Complex connection HV (customer connected at HV) | E186: 2 | F186: 3 | G186: 3 | H186: 3 | I186: 3 | J186: 3 | K186: 3
C187: Complex connection sub-transmission | E187: 3 | F187: 3 | G187: 7 | H187: 4 | I187: 1 | J187: 4 | K187: 0
B188: SUBDIVISION | C188: Complex connection LV | E188: 0 | F188: 0 | G188: 0 | H188: 0 | I188: 0 | J188: 0 | K188: 0
C189: Complex connection HV (no upstream asset works) | E189: 0 | F189: 0 | G189: 0 | H189: 0 | I189: 0 | J189: 0 | K189: 0
C190: Complex connection HV (with upstream asset works) | E190: 0 | F190: 0 | G190: 0 | H190: 0 | I190: 0 | J190: 0 | K190: 0
B191: EMBEDDED GENERATION | C191: Simple connection LV | E191: 0 | F191: 0 | G191: 0 | H191: 0 | I191: 0 | J191: 0 | K191: 0
C192: Complex connection HV (small capacity) | E192: 0 | F192: 0 | G192: 0 | H192: 0 | I192: 0 | J192: 0 | K192: 0
C193: Complex connection HV (large capacity) | E193: 0 | F193: 0 | G193: 0 | H193: 0 | I193: 0 | J193: 0 | K193: 0
B195: EXISTING CONNECTIONS
E196: VOLUMES (0's)
E197: =CRCP_y4 -> 2022-23 | F197: =CRCP_y5 -> 2023-24 | G197: =FRCP_y1 -> 2024-25 | H197: =FRCP_y2 -> 2025-26 | I197: =FRCP_y3 -> 2026-27 | J197: =FRCP_y4 -> 2027-28 | K197: =FRCP_y5 -> 2028-29
B198: RESIDENTIAL | C198: Simple connection LV | E198: 0 | F198: 0
C199: Complex connection LV | E199: 1 | F199: 1
C200: Complex connection HV | E200: 0 | F200: 0
B201: COMMERCIAL/INDUSTRIAL | C201: Simple connection LV | E201: 239 | F201: 200
C202: Complex connection HV (customer connected at LV, minor HV works) | E202: 101 | F202: 87
C203: Complex connection HV (customer connected at LV, upstream asset works) | E203: 2 | F203: 2
C204: Complex connection HV (customer connected at HV) | E204: 3 | F204: 2
C205: Complex connection sub-transmission | E205: 3 | F205: 3
B206: SUBDIVISION | C206: Complex connection LV | E206: 0 | F206: 0
C207: Complex connection HV (no upstream asset works) | E207: 0 | F207: 0
C208: Complex connection HV (with upstream asset works) | E208: 0 | F208: 0
B209: EMBEDDED GENERATION | C209: Simple connection LV | E209: 0 | F209: 0
C210: Complex connection HV (small capacity) | E210: 0 | F210: 0
C211: Complex connection HV (large capacity) | E211: 0 | F211: 0

Sheet 2.6 Non-network
B1: =INDEX(dms_Worksheet_List,MATCH(dms_Model,dms_Model_List)) -> REGULATORY REPORTING STATEMENT
B2: =INDEX(dms_TradingNameFull_List,MATCH(dms_TradingName,dms_TradingName_List)) -> Ausgrid
B3: =CONCATENATE("REGULATORY PERIOD FROM ", FRCP_y1," TO ",dms_MultiYear_FinalYear_Result) -> REGULATORY PERIOD FROM 2024-25 TO 2028-29
B4: 2.6 NON-NETWORK EXPENDITURE
B6: There are THREE tables on this worksheet - each has been 'grouped' (and sub-grouped) for easy navigation. See the Instructions sheet on how to group or ungroup tables.
B8: 2.6.1 - NON-NETWORK EXPENDITURE
E9: =CONCATENATE("EXPENDITURE ($0's, real ", dms_DollarReal, ")") -> EXPENDITURE ($0's, real June 2024)
B10: SERVICE SUBCATEGORY | C10: ASSET CATEGORY | E10: =CRCP_y4 -> 2022-23 | F10: =CRCP_y5 -> 2023-24 | G10: =FRCP_y1 -> 2024-25 | H10: =FRCP_y2 -> 2025-26 | I10: =FRCP_y3 -> 2026-27 | J10: =FRCP_y4 -> 2027-28 | K10: =FRCP_y5 -> 2028-29
B11: OPEX
B12: IT & COMMUNICATIONS | C12: Total IT and communications | E12: 76588797 | F12: 77003649 | G12: 112053213 | H12: 115656877 | I12: 116530438 | J12: 117870050 | K12: 119138178
B13: MOTOR VEHICLES | C13: Car | E13: 624314 | F13: 674347 | G13: 679477 | H13: 684565 | I13: 686803 | J13: 691157 | K13: 696062
C14: Light commercial vehicle | E14: 6943124 | F14: 7499552 | G14: 7556609 | H14: 7613194 | I14: 7638077 | J14: 7686500 | K14: 7741050
C15: Elevated work platform (LCV) | E15: 0 | F15: 0 | G15: 0 | H15: 0 | I15: 0 | J15: 0 | K15: 0
C16: Elevated work platform (HCV) | E16: 6167461 | F16: 6661727 | G16: 6712410 | H16: 6762674 | I16: 6784777 | J16: 6827790 | K16: 6876246
C17: Heavy commercial vehicle | E17: 2535091 | F17: 2738256 | G17: 2759089 | H17: 2779749 | I17: 2788835 | J17: 2806515 | K17: 2826432
B18: BUILDINGS AND PROPERTY | C18: Total buildings and property expenditure | E18: 46922468.16 | F18: 47176629.51 | G18: 44628928.39 | H18: 44984883.89 | I18: 45141415.07 | J18: 45446023.86 | K18: 45789174.95
B19: OTHER | C19: Other expenditure
B20: OTHER - DNSP nominated | C20: Office furniture and equipment
C21: Plant and equipment
C22: Crane borer plant HCV | E22: 1267546 | F22: 1369128 | G22: 1379544 | H22: 1389875 | I22: 1394417 | J22: 1403258 | K22: 1413216
C23: Other fleet assets | E23: 1381057 | F23: 1491736 | G23: 1503086 | H23: 1514341 | I23: 1519291 | J23: 1528922 | K23: 1539773
C24: EWP Hired
C25: Car Hired
C26: LCV Hired
C27: Other Hire
B31: CAPEX
B32: IT & COMMUNICATIONS | C32: Total IT and communications | E32: 92365295 | F32: 56028404 | G32: 72595757 | H32: 97517491 | I32: 62468901 | J32: 39234271 | K32: 36837893
B33: MOTOR VEHICLES | C33: Car | E33: 2432750 | F33: 1500902 | G33: 1462158 | H33: 0 | I33: 63135 | J33: 1898947 | K33: 1211290
C34: Light commercial vehicle | E34: 9320517 | F34: 8388728 | G34: 8741627 | H34: 10855995 | I34: 8943585 | J34: 2667146 | K34: 7560910
C35: Elevated work platform (LCV) | E35: 0 | F35: 0 | G35: 0 | H35: 0 | I35: 0 | J35: 0 | K35: 0
C36: Elevated work platform (HCV) | E36: 9593134 | F36: 22123251 | G36: 12318847 | H36: 10514145 | I36: 10312332 | J36: 10202997 | K36: 9657226
C37: Heavy commercial vehicle | E37: 2365877 | F37: 4070513 | G37: 2357773 | H37: 2928949 | I37: 2457018 | J37: 2809461 | K37: 1035898
B38: BUILDINGS AND PROPERTY | C38: Total buildings and property expenditure | E38: 37392272 | F38: 84470791 | G38: 68021932 | H38: 14790214 | I38: 29599460 | J38: 24661936 | K38: 7990908
B39: OTHER | C39: Other expenditure
B40: OTHER - DNSP nominated | C40: Crane borer plant HCV | E40: 2264011 | F40: 5935902 | G40: 5600314 | H40: 4987412 | I40: 3030041 | J40: 589078 | K40: 0
C41: Other fleet assets | E41: 3694077 | F41: 3126274 | G41: 4726335 | H41: 5234990 | I41: 3362302 | J41: 2690428 | K41: 847971
C42: Minor Assets | E42: 3380052 | F42: 1757830 | G42: 1808860 | H42: 1758365 | I42: 1709204 | J42: 1661404 | K42: 1614949
B54: 2.6.2 - ANNUAL DESCRIPTOR METRICS
B55: IT & COMMUNICATIONS
E56: VOLUMES (0's)
E57: =CRCP_y4 -> 2022-23 | F57: =CRCP_y5 -> 2023-24 | G57: =FRCP_y1 -> 2024-25 | H57: =FRCP_y2 -> 2025-26 | I57: =FRCP_y3 -> 2026-27 | J57: =FRCP_y4 -> 2027-28 | K57: =FRCP_y5 -> 2028-29
B58: Employee numbers | E58: 2482 | F58: 2482 | G58: 2678 | H58: 2650 | I58: 2697 | J58: 2687 | K58: 2680
B59: User numbers | E59: 2502 | F59: 2502 | G59: 2699 | H59: 2671 | I59: 2719 | J59: 2708 | K59: 2702
B60: Number of devices | E60: 6046 | F60: 6046 | G60: 6523 | H60: 6456 | I60: 6570 | J60: 6545 | K60: 6529
B62: MOTOR VEHICLES
E63: VOLUMES (0's or %)
B64: ASSET CATEGORY | C64: DESCRIPTOR METRIC | D64: UNITS | E64: =CRCP_y4 -> 2022-23 | F64: =CRCP_y5 -> 2023-24 | G64: =FRCP_y1 -> 2024-25 | H64: =FRCP_y2 -> 2025-26 | I64: =FRCP_y3 -> 2026-27 | J64: =FRCP_y4 -> 2027-28 | K64: =FRCP_y5 -> 2028-29
B65: CAR | C65: Average kilometres travelled | D65: 0's | E65: 8751 | F65: 9189 | G65: 9648 | H65: 10130 | I65: 10637 | J65: 11169 | K65: 11727
C66: Number purchased | D66: 0's | E66: 68 | F66: 45 | G66: 48 | H66: 48 | I66: 2 | J66: 68 | K66: 45
C67: Number leased | D67: 0's | E67: 0 | F67: 0 | G67: 0 | H67: 0 | I67: 0 | J67: 0 | K67: 0
C68: Number in fleet | D68: 0's | E68: 163 | F68: 163 | G68: 163 | H68: 163 | I68: 163 | J68: 163 | K68: 163
C69: Proportion of total fleet expenditure allocated as regulatory expenditure | D69: % | E69: 100 | F69: 100 | G69: 96.6 | H69: 96.6 | I69: 96.6 | J69: 96.6 | K69: 96.6
B70: LIGHT COMMERCIAL VEHICLE | C70: Average kilometres travelled | D70: 0's | E70: 15713 | F70: 16499 | G70: 17324 | H70: 18190 | I70: 19100 | J70: 20055 | K70: 21057
C71: Number purchased | D71: 0's | E71: 138 | F71: 131 | G71: 151 | H71: 199 | I71: 170 | J71: 51 | K71: 154
C72: Number leased | D72: 0's | E72: 0 | F72: 0 | G72: 0 | H72: 0 | I72: 0 | J72: 0 | K72: 0
C73: Number in fleet | D73: 0's | E73: 889 | F73: 889 | G73: 880 | H73: 871 | I73: 862 | J73: 853 | K73: 844
C74: Proportion of total fleet expenditure allocated as regulatory expenditure | D74: % | E74: 100 | F74: 100 | G74: 96.6 | H74: 96.6 | I74: 96.6 | J74: 96.6 | K74: 96.6
B75: ELEVATED WORK PLATFORM (LCV) | C75: Average kilometres travelled | D75: 0's
C76: Number purchased | D76: 0's
C77: Number leased | D77: 0's
C78: Number in fleet | D78: 0's | E78: 0 | F78: 0 | G78: 0 | H78: 0 | I78: 0 | J78: 0 | K78: 0
C79: Proportion of total fleet expenditure allocated as regulatory expenditure | D79: %
B80: ELEVATED WORK PLATFORM (HCV) | C80: Average kilometres travelled | D80: 0's | E80: 8120 | F80: 8283 | G80: 8448 | H80: 8617 | I80: 8790 | J80: 8965 | K80: 9145
C81: Number purchased | D81: 0's | E81: 9 | F81: 38 | G81: 22 | H81: 22 | I81: 23 | J81: 25 | K81: 22
C82: Number leased | D82: 0's | E82: 0 | F82: 0 | G82: 0 | H82: 0 | I82: 0 | J82: 0 | K82: 0
C83: Number in fleet | D83: 0's | E83: 179 | F83: 179 | G83: 179 | H83: 179 | I83: 179 | J83: 179 | K83: 179
C84: Proportion of total fleet expenditure allocated as regulatory expenditure | D84: % | E84: 100 | F84: 100 | G84: 96.6 | H84: 96.6 | I84: 96.6 | J84: 96.6 | K84: 96.6
B85: HEAVY COMMERCIAL VEHICLE | C85: Average kilometres travelled | D85: 0's | E85: 6846 | F85: 7188 | G85: 7548 | H85: 7925 | I85: 8321 | J85: 8737 | K85: 9174
C86: Number purchased | D86: 0's | E86: 15 | F86: 23 | G86: 14 | H86: 19 | I86: 16 | J86: 19 | K86: 8
C87: Number leased | D87: 0's | E87: 0 | F87: 0 | G87: 0 | H87: 0 | I87: 0 | J87: 0 | K87: 0
C88: Number in fleet | D88: 0's | E88: 230 | F88: 230 | G88: 230 | H88: 230 | I88: 230 | J88: 230 | K88: 230
C89: Proportion of total fleet expenditure allocated as regulatory expenditure | D89: % | E89: 100 | F89: 100 | G89: 96.6 | H89: 96.6 | I89: 96.6 | J89: 96.6 | K89: 96.6
B92: Table 2.6.4 intentionally omitted
B94: 2.6.5 - INFORMATION & COMMUNICATIONS TECHNOLOGY - CAPEX
E95: =CONCATENATE("EXPENDITURE ($0's, real ", dms_DollarReal, ")") -> EXPENDITURE ($0's, real June 2024)
E96: =CRCP_y4 -> 2022-23 | F96: =CRCP_y5 -> 2023-24 | G96: =FRCP_y1 -> 2024-25 | H96: =FRCP_y2 -> 2025-26 | I96: =FRCP_y3 -> 2026-27 | J96: =FRCP_y4 -> 2027-28 | K96: =FRCP_y5 -> 2028-29
B97: RECURRENT
B98: ICT Asset Extension | E98: 5335938 | F98: 3824148 | G98: 8127239 | H98: 7020408 | I98: 9195588 | J98: 7059942 | K98: 6847610
B99: ICT Asset Remediation | E99: 2089247 | F99: 730380 | G99: 220996 | H99: 215757 | I99: 210666 | J99: 205718 | K99: 200909
B100: ICT Asset Replacement | E100: 17315222 | F100: 7421045 | G100: 12263743 | H100: 19013297 | I100: 13183187 | J100: 8718098 | K100: 9296506
B101: ICT Capability Growth | E101: 3765914 | F101: 5720053 | G101: 3237501 | H101: 1240911 | I101: 629349 | J101: 1798784 | K101: 1050683
B102: ICT - OTI | E102: 0 | F102: 0 | G102: 1304839 | H102: 1321237 | I102: 1331574 | J102: 1337810 | K102: 1347678
B103: ICT - Resilience | E103: 0 | F103: 0 | G103: 1258841 | H103: 1936706 | I103: 2420893 | J103: 2130403 | K103: 1936743
B108: NON-RECURRENT
B109: Complying with Regulatory requirements | E109: 13714820 | F109: 7793153 | G109: 6581511 | H109: 5375007 | I109: 4804390 | J109: 6991316 | K109: 6756451
B110: Maintaining existing functionalities | E110: 13172223 | F110: 2175614 | G110: 1082963 | H110: 12077506 | I110: 6290430 | J110: 655417 | K110: 3148036
B111: New or expanded ICT functionality | E111: 36971931 | F111: 28364011 | G111: 38518124 | H111: 49316662 | I111: 24402823 | J111: 10336784 | K111: 6253276

Sheet 2.10 Overheads
B1: =INDEX(dms_Worksheet_List,MATCH(dms_Model,dms_Model_List)) -> REGULATORY REPORTING STATEMENT
B2: =INDEX(dms_TradingNameFull_List,MATCH(dms_TradingName,dms_TradingName_List)) -> Ausgrid
B3: =CONCATENATE("REGULATORY PERIOD FROM ", FRCP_y1," TO ",dms_MultiYear_FinalYear_Result) -> REGULATORY PERIOD FROM 2024-25 TO 2028-29
B4: 2.10 OVERHEADS
B6: There are TWO tables on this worksheet. Each table has been 'grouped' (and sub-grouped) for easy navigation. See the Instructions sheet on how to group or ungroup data.
B8: 2.10.1 - NETWORK OVERHEADS EXPENDITURE
D9: =CONCATENATE("EXPENDITURE ($0's, real ", dms_DollarReal, ")") -> EXPENDITURE ($0's, real June 2024)
D10: =CRCP_y4 -> 2022-23 | E10: =CRCP_y5 -> 2023-24 | F10: =FRCP_y1 -> 2024-25 | G10: =FRCP_y2 -> 2025-26 | H10: =FRCP_y3 -> 2026-27 | I10: =FRCP_y4 -> 2027-28 | J10: =FRCP_y5 -> 2028-29
B11: OPEX
B12: Standard Control Services | C12: Total | D12: 125056607.2 | E12: 122392471.2 | F12: 136072857.5 | G12: 138348914.2 | H12: 139898108.5 | I12: 141122757.7 | J12: 142548604.8
B13: Alternative Control Services | C13: Total | D13: 18912019.94 | E13: 16746081.67 | F13: 19774852.86 | G13: 19884908.69 | H13: 19068311.95 | I13: 18523250.99 | J13: 18252570.28
B14: CAPEX
B15: Standard Control Services | C15: Total | D15: 158403726 | E15: 153329857 | F15: 137923302 | G15: 140390232 | H15: 144593861 | I15: 141358290 | J15: 138536973
B16: Alternative Control Services | C16: Total | D16: 12785353.79 | E16: 11456299.24 | F16: 9151111.1 | G16: 9142836.12 | H16: 6439058.06 | I16: 6391378.54 | J16: 6368190.14
B17: OTHER DISTRIBUTION SERVICES
B18: Negotiated Services | C18: Total | D18: 0 | E18: 0 | F18: 0 | G18: 0 | H18: 0 | I18: 0 | J18: 0
B19: Unregulated Distribution Services | C19: Total | D19: 0 | E19: 0 | F19: 0 | G19: 0 | H19: 0 | I19: 0 | J19: 0
B23: 2.10.2 - CORPORATE OVERHEADS EXPENDITURE
D24: =CONCATENATE("EXPENDITURE ($0's, real ", dms_DollarReal, ")") -> EXPENDITURE ($0's, real June 2024)
D25: =CRCP_y4 -> 2022-23 | E25: =CRCP_y5 -> 2023-24 | F25: =FRCP_y1 -> 2024-25 | G25: =FRCP_y2 -> 2025-26 | H25: =FRCP_y3 -> 2026-27 | I25: =FRCP_y4 -> 2027-28 | J25: =FRCP_y5 -> 2028-29
B26: OPEX
B27: Standard Control Services | C27: Total | D27: 32345733.37 | E27: 31656657.98 | F27: 34533981.2 | G27: 35787472.27 | H27: 36426411.86 | I27: 36765385.46 | J27: 36603307.23
B28: Alternative Control Services | C28: Total | D28: 15495549.3 | E28: 13773596.46 | F28: 12731381.7 | G28: 12379211.77 | H28: 11550036.87 | I28: 10689383.44 | J28: 9878211.69
B29: CAPEX
B30: Standard Control Services | C30: Total | D30: 5819014 | E30: 3529789 | F30: 5007249 | G30: 6531585 | H30: 4071473 | I30: 2650098 | J30: 2514286
B31: Alternative Control Services | C31: Total | D31: 448722.97 | E31: 398461.93 | F31: 326665.23 | G31: 434490.28 | H31: 259705.31 | I31: 158684.21 | J31: 148838.62
B32: OTHER DISTRIBUTION SERVICES
B33: Negotiated Services | C33: Total | D33: 0 | E33: 0 | F33: 0 | G33: 0 | H33: 0 | I33: 0 | J33: 0
B34: Unregulated Distribution Services | C34: Total | D34: 5356950.308 | E34: 5385966.891 | F34: 5426943.361 | G34: 5467581.375 | H34: 5485451.913 | I34: 5520227.879 | J34: 5559404.065

Sheet 2.11 Labour
B1: =INDEX(dms_Worksheet_List,MATCH(dms_Model,dms_Model_List)) -> REGULATORY REPORTING STATEMENT
B2: =INDEX(dms_TradingNameFull_List,MATCH(dms_TradingName,dms_TradingName_List)) -> Ausgrid
B3: =CONCATENATE("REGULATORY PERIOD FROM ", FRCP_y1," TO ",dms_MultiYear_FinalYear_Result) -> REGULATORY PERIOD FROM 2024-25 TO 2028-29
B4: 2.11 LABOUR
B6: Table numbering on this worksheet starts at 2.11.3.
B8: 2.11.3 - LABOUR / NON-LABOUR EXPENDITURE SPLIT - STANDARD CONTROL SERVICES
C9: =CONCATENATE("EXPENDITURE ($0's, real ", dms_DollarReal, ")") -> EXPENDITURE ($0's, real June 2024)
C10: =CRCP_y4 -> 2022-23 | D10: =CRCP_y5 -> 2023-24 | E10: =FRCP_y1 -> 2024-25 | F10: =FRCP_y2 -> 2025-26 | G10: =FRCP_y3 -> 2026-27 | H10: =FRCP_y4 -> 2027-28 | I10: =FRCP_y5 -> 2028-29
B11: OPEX
B12: In-house labour expenditure | C12: 205601465.1 | D12: 206635446.2 | E12: 228794934.9 | F12: 232994742.7 | G12: 234804526.9 | H12: 236818740.4 | I12: 238723255.3
B13: Labour expenditure outsourced to related parties | C13: 7964614.728 | D13: 8004669.215 | E13: 8791949.901 | F13: 8953336.776 | G13: 9022881.727 | H13: 9100282.321 | I13: 9173467.506
B14: Labour expenditure outsourced to unrelated parties | C14: 0 | D14: 0 | E14: 0 | F14: 0 | G14: 0 | H14: 0 | I14: 0
B15: Controllable non-labour expenditure | C15: 153242558.6 | D15: 154013223.8 | E15: 179917997.5 | F15: 183220609.9 | G15: 184643774.1 | H15: 186227695.8 | I15: 187725353.5
B16: Uncontrollable non-labour expenditure | C16: 41753461.64 | D16: 41963442.1 | E16: 46090659.18 | F16: 46936708.97 | G16: 47301289.38 | H16: 47707051.98 | I16: 48090715.83
B17: Total | C17: =SUM(C12:C16) -> 408562100 | D17: 410616781.4 | E17: 463595541.5 | F17: 472105398.3 | G17: 475772472.2 | H17: 479853770.5 | I17: 483712792.2
B18: CAPEX
B19: In-house labour expenditure | C19: 365074739 | D19: 353068991 | E19: 298380509 | F19: 308215258 | G19: 312432410 | H19: 300229898 | I19: 292485030
B20: Labour expenditure outsourced to related parties | C20: 21456076 | D20: 21106763 | E20: 20832340 | F20: 19545716 | G20: 19110449 | H20: 18337422 | I20: 17522245
B21: Labour expenditure outsourced to unrelated parties | C21: 0 | D21: 0 | E21: 0 | F21: 0 | G21: 0 | H21: 0 | I21: 0
B22: Controllable non-labour expenditure | C22: 372227789 | D22: 372229995 | E22: 404179713 | F22: 350954227 | G22: 332057905 | H22: 318190480 | I22: 298443917
B23: Uncontrollable non-labour expenditure
B24: Total | C24: =SUM(C19:C23) -> 758758604 | D24: 746405749 | E24: 723392562 | F24: 678715201 | G24: 663600764 | H24: 636757800 | I24: 608451192

Sheet 2.14 Forecast price changes
B1: =INDEX(dms_Worksheet_List,MATCH(dms_Model,dms_Model_List)) -> REGULATORY REPORTING STATEMENT
B2: =INDEX(dms_TradingNameFull_List,MATCH(dms_TradingName,dms_TradingName_List)) -> Ausgrid
B3: =CONCATENATE("REGULATORY PERIOD FROM ", FRCP_y1," TO ",dms_MultiYear_FinalYear_Result) -> REGULATORY PERIOD FROM 2024-25 TO 2028-29
B4: 2.14 FORECAST PRICE CHANGES
B6: There is ONE table on this worksheet.
B8: Instructions
B9: =CONCATENATE(dms_TradingName, " must provide all forecast price changes used to forecast opex and capex, including forecast changes in CPI. Forecast price changes must be expressed in real terms, except for CPI. "&"If the same escalators are not used for capex and opex, report capex and opex escalators separately. Add additional rows as required. If price changes for a given year were not used to forecast either opex or capex enter '0' for that year.") -> Ausgrid must provide all forecast price changes used to forecast opex and capex, including forecast changes in CPI. Forecast price changes must be expressed in real terms, except for CPI. If the same escalators are not used for capex and opex, report capex and opex escalators separately. Add additional rows as required. If price changes for a given year were not used to forecast either opex or capex enter '0' for that year.
B11: 2.14.2 - FORECAST CAPEX AND OPEX PRICE CHANGES
C12: Price changes (% YoY real) Current regulatory period | E12: Price changes (%YoY real) Forthcoming regulatory period
C13: Forecast
B14: DESCRIPTION | C14: =CRCP_y4 -> 2022-23 | D14: =CRCP_y5 -> 2023-24 | E14: =FRCP_y1 -> 2024-25 | F14: =FRCP_y2 -> 2025-26 | G14: =FRCP_y3 -> 2026-27 | H14: =FRCP_y4 -> 2027-28 | I14: =FRCP_y5 -> 2028-29
B15: OPEX
B16: CPI | C16: 6.30% | D16: 4.20% | E16: 2.87% | F16: 2.87% | G16: 2.87% | H16: 2.87% | I16: 2.87%
B17: Labour - EGWWS (real) (Average of BISOE and KPMG, plus super guarantee increases) | C17: 0.00% | D17: 0.00% | E17: 1.65% | F17: 1.50% | G17: 0.66% | H17: 0.50% | I17: 0.71%
B19: CAPEX
B20: CPI | C20: 8.00% | D20: 4.75% | E20: 2.87% | F20: 2.87% | G20: 2.87% | H20: 2.87% | I20: 2.87%
B21: Labour - EGWWS (real) (Average of BISOE and KPMG) | C21: -3.96% | D21: -0.23% | E21: 1.40% | F21: 1.25% | G21: 0.66% | H21: 0.50% | I21: 0.71%
B22: Contract Costs - Construction WPI (real) (BISOE Construction WPI - NSW) | C22: -4.43% | D22: -0.98% | E22: 1.30% | F22: 1.27% | G22: 0.90% | H22: 0.44% | I22: 0.77%

Sheet 2.16 Opex Summary
B1: =INDEX(dms_Worksheet_List,MATCH(dms_Model,dms_Model_List)) -> REGULATORY REPORTING STATEMENT
B2: =INDEX(dms_TradingNameFull_List,MATCH(dms_TradingName,dms_TradingName_List)) -> Ausgrid
B3: =CONCATENATE("REGULATORY PERIOD FROM ", FRCP_y1," TO ",dms_MultiYear_FinalYear_Result) -> REGULATORY PERIOD FROM 2024-25 TO 2028-29
B4: 2.16 OPEX SUMMARY
B6: There are FOUR tables on this worksheet. Each table has been 'grouped' (and 'sub-grouped') for easy navigation. See the Instructions sheet on how to group or ungroup data.
B8: Instructions | J8: IMPORTANT!
B9: =CONCATENATE("Complete the tables below in accordance with the regulatory information notice. ",dms_TradingName,"'s total forecast opex must reconcile to Table 2.16.1 (and if ",dms_TradingName," owns any dual function assets Table 2.16.3). If ",dms_TradingName," did not forecast its total opex using a Base Year approach, total forecast opex must reconcile to Table 2.16.2 (and if ",dms_TradingName," owns any dual function assets Table 2.16.4).") -> Complete the tables below in accordance with the regulatory information notice. Ausgrid's total forecast opex must reconcile to Table 2.16.1 (and if Ausgrid owns any dual function assets Table 2.16.3). If Ausgrid did not forecast its total opex using a Base Year approach, total forecast opex must reconcile to Table 2.16.2 (and if Ausgrid owns any dual function assets Table 2.16.4). | J9: =CONCATENATE("Has ",dms_TradingName," used a base-step-trend model to derive its opex forecast? ") -> Has Ausgrid used a base-step-trend model to derive its opex forecast? | L9: Yes
B10: =CONCATENATE("If ",dms_TradingName," does not own any dual function assets,Table 2.16.3 and 2.16.4 may be left blank.") -> If Ausgrid does not own any dual function assets,Table 2.16.3 and 2.16.4 may be left blank. | J10: Yes / No
B11: The total step changes in Table 2.16.1 and Table 2.16.3 must "&"reconcile (in each year) to the total step changes for each year in Table 2.17.1 and Table 2.17.3 of worksheet '2.17 Step Changes', respectively.") | J11: Please nominate the base year. | L11: 2022-23
B14: 2.16.1 - STANDARD CONTROL SERVICES - OPEX BY DRIVER
C15: =CONCATENATE("EXPENDITURE ($0's, real ", dms_DollarReal, ")") -> EXPENDITURE ($0's, real June 2024)
C16: =CRCP_y1 -> 2019-20 | D16: =CRCP_y2 -> 2020-21 | E16: =CRCP_y3 -> 2021-22 | F16: =CRCP_y4 -> 2022-23 | G16: =CRCP_y5 -> 2023-24 | H16: =FRCP_y1 -> 2024-25 | I16: =FRCP_y2 -> 2025-26 | J16: =FRCP_y3 -> 2026-27 | K16: =FRCP_y4 -> 2027-28 | L16: =FRCP_y5 -> 2028-29
B17: Base year total opex, excluding category specific | F17: 408562100 | G17: 408562100 | H17: 408562100 | I17: 408562100 | J17: 408562100 | K17: 408562100 | L17: 408562100
B18: Increment from base year to final year | G18: 44687088.84 | H18: 44687088.84 | I18: 44687088.84 | J18: 44687088.84 | K18: 44687088.84 | L18: 44687088.84
B19: Price growth | H19: 4447604.128 | I19: 8543137.741 | J19: 10413712.96 | K19: 11904424.31 | L19: 13995998.37
B20: Output growth | H20: 1295680.959 | I20: 2960939.106 | J20: 4952465.38 | K20: 8802401.833 | L20: 12473009.83
B21: Productivity growth | H21: -2294962.37 | I21: -4635913.826 | J21: -6994142.933 | K21: -9408263.58 | L21: -11873623.53
B22: Step changes | H22: 6898029.86 | I22: 11988046.45 | J22: 14151247.88 | K22: 15306019.07 | L22: 15868218.63
B23: Category specific | H23: 9013310.678 | I23: 9080997.862 | J23: 9110888.273 | K23: 9119465.122 | L23: 9109618.138
B24: Total opex | C24: =SUM(C17:C23) -> 0 | D24: 0 | E24: 0 | F24: 408562100 | G24: 453249188.9 | H24: 472608852.1 | I24: 481186396.2 | J24: 484883360.4 | K24: 488973235.6 | L24: 492822410.3
B27: 2.16.2 - STANDARD CONTROL SERVICES - OPEX BY CATEGORY
C28: =CONCATENATE("EXPENDITURE ($0's, real ", dms_DollarReal, ")") -> EXPENDITURE ($0's, real June 2024)
C29: =CRCP_y1 -> 2019-20 | D29: =CRCP_y2 -> 2020-21 | E29: =CRCP_y3 -> 2021-22 | F29: =CRCP_y4 -> 2022-23 | G29: =CRCP_y5 -> 2023-24 | H29: =FRCP_y1 -> 2024-25 | I29: =FRCP_y2 -> 2025-26 | J29: =FRCP_y3 -> 2026-27 | K29: =FRCP_y4 -> 2027-28 | L29: =FRCP_y5 -> 2028-29
B30: Vegetation management
B31: Maintenance
B32: Emergency response
B33: Non-network
B34: Metering
B35: Network overheads
B36: Corporate overheads
B37: Total opex | C37: =SUM(C30:C36) -> 0 | D37: 0 | E37: 0 | F37: 0 | G37: 0 | H37: 0 | I37: 0 | J37: 0 | K37: 0 | L37: 0
B40: 2.16.3 - DUAL FUNCTION ASSETS - OPEX BY DRIVER
C41: =CONCATENATE("EXPENDITURE ($0's, real ", dms_DollarReal, ")") -> EXPENDITURE ($0's, real June 2024)
C42: 2017 | D42: 2018 | E42: 2019 | F42: 2020 | G42: 2021 | H42: =FRCP_y1 -> 2024-25 | I42: =FRCP_y2 -> 2025-26 | J42: =FRCP_y3 -> 2026-27 | K42: =FRCP_y4 -> 2027-28 | L42: =FRCP_y5 -> 2028-29
B43: Base year total opex, excluding category specific | F43: 19610980.8 | G43: 19610980.8 | H43: 19610980.8 | I43: 19610980.8 | J43: 19610980.8 | K43: 19610980.8 | L43: 19610980.8
B44: Increment from base year to final year | G44: 2144980.264 | H44: 2144980.264 | I44: 2144980.264 | J44: 2144980.264 | K44: 2144980.264 | L44: 2144980.264
B45: Price growth | H45: 213484.9982 | I45: 410070.6116 | J45: 499858.2221 | K45: 571412.367 | L45: 671807.9219
B46: Output growth | H46: 62192.686 | I46: 142125.0771 | J46: 237718.3382 | K46: 422515.288 | L46: 598704.4721
B47: Productivity growth | H47: -110158.1938 | I47: -222523.8636 | J47: -335718.8608 | K47: -451596.6518 | L47: -569933.9293
B48: Step changes | H48: 331105.4333 | I48: 575426.2295 | J48: 679259.8983 | K48: 734688.9153 | L48: 761674.494
B49: Category specific | H49: 1215506.855 | I49: 1207726.336 | J49: 1191719.585 | K49: 1173044.537 | L49: 1158993.956
B50: Total opex | C50: =SUM(C43:C49) -> 0 | D50: 0 | E50: 0 | F50: 19610980.8 | G50: 21755961.07 | H50: 23468092.84 | I50: 23868785.46 | J50: 24028798.25 | K50: 24206025.52 | L50: 24377207.98
B53: 2.16.4 - DUAL FUNCTION ASSETS - OPEX BY CATEGORY
C54: =CONCATENATE("EXPENDITURE ($0's, real ", dms_DollarReal, ")") -> EXPENDITURE ($0's, real June 2024)
C55: =CRCP_y1 -> 2019-20 | D55: =CRCP_y2 -> 2020-21 | E55: =CRCP_y3 -> 2021-22 | F55: =CRCP_y4 -> 2022-23 | G55: =CRCP_y5 -> 2023-24 | H55: =FRCP_y1 -> 2024-25 | I55: =FRCP_y2 -> 2025-26 | J55: =FRCP_y3 -> 2026-27 | K55: =FRCP_y4 -> 2027-28 | L55: =FRCP_y5 -> 2028-29
B56: Vegetation management
B57: Maintenance
B58: Emergency response
B59: Non-network
B60: Metering
B61: Network overheads
B62: Corporate overheads
B63: Total opex | C63: =SUM(C56:C62) -> 0 | D63: 0 | E63: 0 | F63: 0 | G63: 0 | H63: 0 | I63: 0 | J63: 0 | K63: 0 | L63: 0

Sheet 2.17 Step Changes
B1: =INDEX(dms_Worksheet_List,MATCH(dms_Model,dms_Model_List)) -> REGULATORY REPORTING STATEMENT
B2: =INDEX(dms_TradingNameFull_List,MATCH(dms_TradingName,dms_TradingName_List)) -> Ausgrid
B3: =CONCATENATE("REGULATORY PERIOD FROM ", FRCP_y1," TO ",dms_MultiYear_FinalYear_Result) -> REGULATORY PERIOD FROM 2024-25 TO 2028-29
B4: 2.17 STEP CHANGES
B6: There are FIVE tables on this worksheet. Each table has been 'grouped' (and 'sub-grouped') for easy navigation. See the Instructions sheet on how to group or ungroup data.
B8: 2.17.1 - STEP CHANGES FOR STANDARD CONTROL SERVICES - FORECAST OPEX
E9: =CONCATENATE("EXPENDITURE ($0's, real ", dms_DollarReal, ")") -> EXPENDITURE ($0's, real June 2024)
B10: STEP CHANGE | C10: DESCRIPTION | E10: =CRCP_y4 -> 2022-23 | F10: =CRCP_y5 -> 2023-24 | G10: =FRCP_y1 -> 2024-25 | H10: =FRCP_y2 -> 2025-26 | I10: =FRCP_y3 -> 2026-27 | J10: =FRCP_y4 -> 2027-28 | K10: =FRCP_y5 -> 2028-29
B11: Cyber security | C11: Uplift our capability to respond to the frequency and severity of cyber attacks | G11: 2353241.171 | H11: 3991990.668 | I11: 4357664.121 | J11: 4742602.066 | K11: 5147865.811
B12: Insurance premiums | C12: Insurance premium increases | G12: 812483.6466 | H12: 1813461.333 | I12: 2341358.546 | J12: 2464243.913 | K12: 2058735.855
B13: Community resilience | C13: Delivery of community resilience programs | G13: 1097356.122 | H13: 1688240.188 | I13: 2110300.235 | J13: 1857064.207 | K13: 1688240.188
B14: Smart meter data | C14: Purchase of smart meter data to improve safety and reduce CER curtailment | G14: 3599849.5 | H14: 4308742.94 | I14: 5006559.92 | J14: 5648994.6 | K14: 6302505.74
B15: Network innovation program | C15: Enable research and development through partnership | G15: 1000000 | H15: 1000000 | I15: 1000000 | J15: 1000000 | K15: 1000000
B16: ICT enablement for CER integration | C16: Delivering some projects in the CER ICT program as opex rather than capex | G16: 941720.6292 | H16: 2092232.529 | I16: 2241986.269 | J16: 2499735.493 | K16: 2577492.242
B17: Property | C17: Remove opex associated with property disposals in the current period | G17: -2906621.21 | H17: -2906621.21 | I17: -2906621.21 | J17: -2906621.21 | K17: -2906621.21
B21: Total | E21: =SUM(E11:E20) -> 0 | F21: 0 | G21: 6898029.859 | H21: 11988046.45 | I21: 14151247.88 | J21: 15306019.07 | K21: 15868218.63
B22: Check | G22: =IF(ROUND(G$21,0)-ROUND('2.16 Opex Summary'!H$22,0)=0,"OK","Error") -> OK | H22: =IF(ROUND(H$21,0)-ROUND('2.16 Opex Summary'!I$22,0)=0,"OK","Error") -> OK | I22: =IF(ROUND(I$21,0)-ROUND('2.16 Opex Summary'!J$22,0)=0,"OK","Error") -> OK | J22: =IF(ROUND(J$21,0)-ROUND('2.16 Opex Summary'!K$22,0)=0,"OK","Error") -> OK | K22: =IF(ROUND(K$21,0)-ROUND('2.16 Opex Summary'!L$22,0)=0,"OK","Error") -> OK
B24: 2.17.2 - STEP CHANGES FOR STANDARD CONTROL SERVICES - FORECAST CAPEX
E25: =CONCATENATE("EXPENDITURE ($0's, real ", dms_DollarReal, ")") -> EXPENDITURE ($0's, real June 2024)
B26: STEP CHANGE | C26: DESCRIPTION | E26: =CRCP_y4 -> 2022-23 | F26: =CRCP_y5 -> 2023-24 | G26: =FRCP_y1 -> 2024-25 | H26: =FRCP_y2 -> 2025-26 | I26: =FRCP_y3 -> 2026-27 | J26: =FRCP_y4 -> 2027-28 | K26: =FRCP_y5 -> 2028-29
B27: N/A | C27: N/A | E27: 0 | F27: 0 | G27: 0 | H27: 0 | I27: 0 | J27: 0 | K27: 0
B37: Total | E37: =SUM(E27:E36) -> 0 | F37: 0 | G37: 0 | H37: 0 | I37: 0 | J37: 0 | K37: 0
B39: 2.17.3 - STEP CHANGES FOR DUAL FUNCTION ASSETS - FORECAST OPEX
E40: =CONCATENATE("EXPENDITURE ($0's, real ", dms_DollarReal, ")") -> EXPENDITURE ($0's, real June 2024)
B41: STEP CHANGE | C41: DESCRIPTION | E41: =CRCP_y4 -> 2022-23 | F41: =CRCP_y5 -> 2023-24 | G41: =FRCP_y1 -> 2024-25 | H41: =FRCP_y2 -> 2025-26 | I41: =FRCP_y3 -> 2026-27 | J41: =FRCP_y4 -> 2027-28 | K41: =FRCP_y5 -> 2028-29
B42: Cyber security | C42: Uplift our capability to respond to the frequency and severity of cyber attacks | G42: 112955.5762 | H42: 191615.5521 | I42: 209167.8778 | J42: 227644.8992 | K42: 247097.5589
B43: Insurance premiums | C43: Insurance premium increases | G43: 38999.215 | H43: 87046.144 | I43: 112385.2102 | J43: 118283.7078 | K43: 98819.321
B44: Community resilience | C44: Delivery of community resilience programs | G44: 52673.0939 | H44: 81035.529 | I44: 101294.4113 | J44: 89139.0819 | K44: 81035.529
B45: Smart meter data | C45: Purchase of smart data to improve safety and reduce CER curtailment | G45: 172792.776 | H45: 206819.6611 | I45: 240314.8762 | J45: 271151.7408 | K45: 302520.2755
B46: Network innovation program | C46: Enable research and development through partnership | G46: 48000 | H46: 48000 | I46: 48000 | J46: 48000 | K46: 48000
B47: ICT enablement for CER integration | C47: Delivering some projects in the CER ICT program as opex rather than capex | G47: 45202.5902 | H47: 100427.1614 | I47: 107615.3409 | J47: 119987.3037 | K47: 123719.6276
B48: Property | C48: Remove opex associated with property disposals in the current period | G48: -139517.8181 | H48: -139517.8181 | I48: -139517.8181 | J48: -139517.8181 | K48: -139517.8181
B52: Total | E52: =SUM(E42:E51) -> 0 | F52: 0 | G52: 331105.4332 | H52: 575426.2295 | I52: 679259.8983 | J52: 734688.9153 | K52: 761674.4939
B53: Check | G53: =IF(ROUND(G$21,0)-ROUND('2.16 Opex Summary'!H$48,0)=0,"OK","Error") -> Error | H53: =IF(ROUND(H$21,0)-ROUND('2.16 Opex Summary'!I$48,0)=0,"OK","Error") -> Error | I53: =IF(ROUND(I$21,0)-ROUND('2.16 Opex Summary'!J$48,0)=0,"OK","Error") -> Error | J53: =IF(ROUND(J$21,0)-ROUND('2.16 Opex Summary'!K$48,0)=0,"OK","Error") -> Error | K53: =IF(ROUND(K$21,0)-ROUND('2.16 Opex Summary'!L$48,0)=0,"OK","Error") -> Error
B55: 2.17.4 - STEP CHANGES FOR DUAL FUNCTION ASSETS - FORECAST CAPEX
E56: =CONCATENATE("EXPENDITURE ($0's, real ", dms_DollarReal, ")") -> EXPENDITURE ($0's, real June 2024)
B57: STEP CHANGE | C57: DESCRIPTION | E57: =CRCP_y4 -> 2022-23 | F57: =CRCP_y5 -> 2023-24 | G57: =FRCP_y1 -> 2024-25 | H57: =FRCP_y2 -> 2025-26 | I57: =FRCP_y3 -> 2026-27 | J57: =FRCP_y4 -> 2027-28 | K57: =FRCP_y5 -> 2028-29
B58: N/A | C58: N/A | E58: 0 | F58: 0 | G58: 0 | H58: 0 | I58: 0 | J58: 0 | K58: 0
B68: Total | E68: =SUM(E58:E67) -> 0 | F68: 0 | G68: 0 | H68: 0 | I68: 0 | J68: 0 | K68: 0
B71: 2.17.5 - FORECAST CATEGORY SPECIFIC OPEX
D72: EXPENDITURE ($0's, real June 2024)
B73: CATEGORY | C73: DESCRIPTION | D73: =CRCP_y3 -> 2021-22 | E73: =CRCP_y4 -> 2022-23 | F73: =CRCP_y5 -> 2023-24 | G73: =FRCP_y1 -> 2024-25 | H73: =FRCP_y2 -> 2025-26 | I73: =FRCP_y3 -> 2026-27 | J73: =FRCP_y4 -> 2027-28 | K73: =FRCP_y5 -> 2028-29
B74: Debt raising costs - distribution | H74: 7797804 | I74: 7873272 | J74: 7919169 | K74: 7946421
B75: Debt raising costs - dual function assets | H75: 1215507 | I75: 1207726 | J75: 1191720 | K75: 1173045
B84: Total | D84: =SUM(D74:D83) -> 0 | E84: 0 | F84: 0 | G84: 0 | H84: 9013311 | I84: 9080998 | J84: 9110889 | K84: 9119466

Sheet 3.1 Revenue
B1: =INDEX(dms_Worksheet_List,MATCH(dms_Model,dms_Model_List)) -> REGULATORY REPORTING STATEMENT
B2: =INDEX(dms_TradingNameFull_List,MATCH(dms_TradingName,dms_TradingName_List)) -> Ausgrid
B3: =CONCATENATE("REGULATORY PERIOD FROM ", FRCP_y1," TO ",dms_MultiYear_FinalYear_Result) -> REGULATORY PERIOD FROM 2024-25 TO 2028-29
B4: 3.1 REVENUE
B6: There are THREE tables on this worksheet. Each table has been 'grouped' (and 'sub-grouped') for easy navigation. See the Instructions sheet on how to group or ungroup data.
B8: 3.1.1 - REVENUE GROUPING BY CHARGEABLE QUANTITY
C9: Standard control services | K9: Alternative control services
C10: =CONCATENATE("REVENUE Forecast ($0's, real ", dms_DollarReal,")") -> REVENUE Forecast ($0's, real June 2024) | K10: =CONCATENATE("REVENUE Forecast ($0's, real ", dms_DollarReal,")") -> REVENUE Forecast ($0's, real June 2024)
C11: =CRCP_y4 -> 2022-23 | D11: =CRCP_y5 -> 2023-24 | E11: =FRCP_y1 -> 2024-25 | F11: =FRCP_y2 -> 2025-26 | G11: =FRCP_y3 -> 2026-27 | H11: =FRCP_y4 -> 2027-28 | I11: =FRCP_y5 -> 2028-29 | K11: =CRCP_y4 -> 2022-23 | L11: =CRCP_y5 -> 2023-24 | M11: =FRCP_y1 -> 2024-25 | N11: =FRCP_y2 -> 2025-26 | O11: =FRCP_y3 -> 2026-27 | P11: =FRCP_y4 -> 2027-28 | Q11: =FRCP_y5 -> 2028-29
A12: DREV0101 | B12: Revenue from Fixed Customer Charges | C12: 456643081.8 | D12: 468874369.2 | E12: 459621011.6 | F12: 463126251.8 | G12: 470878789 | H12: 478469296.1 | I12: 489512675.3
A13: DREV0102 | B13: Revenue from Energy Delivery charges where time of use is not a determinant | C13: 215673785.7 | D13: 188168468.7 | E13: 169500160.8 | F13: 161362748.3 | G13: 147690730.9 | H13: 132423205.9 | I13: 114939053.2
A14: DREV0103 | B14: Revenue from On–Peak Energy Delivery charges | C14: 131480766.3 | D14: 120333973.1 | E14: 150959181.6 | F14: 158740306.7 | G14: 166996630.1 | H14: 175622825.8 | I14: 183307517.6
A15: DREV0104 | B15: Revenue from Shoulder period Energy Delivery Charges | C15: 132129838.8 | D15: 113854771.3 | E15: 68239645.58 | F15: 68059011.18 | G15: 67712721.25 | H15: 64333429.08 | I15: 62363513.25
A16: DREV0105 | B16: Revenue from Off–Peak Energy Delivery charges | C16: 53057640.34 | D16: 46942815.98 | E16: 60579193.18 | F16: 60066981.63 | G16: 59528419.46 | H16: 57809690.63 | I16: 56034648.4
A17: DREV0106 | B17: Revenue from controlled load customer charges | C17: 0 | D17: 0 | E17: 0 | F17: 0 | G17: 0 | H17: 0 | I17: 0
A18: DREV0107 | B18: Revenue from unmetered supplies | C18: 9062695.7 | D18: 8784689.1 | E18: 8866499.45 | F18: 8998511.99 | G18: 9505244.74 | H18: 9942076.7 | I18: 10398984.13
A19: DREV0108 | B19: Revenue from Contracted Maximum Demand charges | C19: 0 | D19: 0 | E19: 0 | F19: 0 | G19: 0 | H19: 0 | I19: 0
A20: DREV0109 | B20: Revenue from Measured Maximum Demand charges | C20: 491017460.5 | D20: 511037592 | E20: 578911097.7 | F20: 627941009.3 | G20: 681061608.4 | H20: 741831377.5 | I20: 802971163.8
A21: DREV0110 | B21: Revenue from metering charges | C21: 0 | D21: 0 | E21: 0 | F21: 0 | G21: 0 | H21: 0 | I21: 0 | K21: 74199241.93 | L21: 69707210.4 | M21: 66295548.65 | N21: 64253712.94 | O21: 60927455.31 | P21: 56656773.18 | Q21: 51892829.79
A22: DREV0111 | B22: Revenue from connection charges | C22: 0 | D22: 0 | E22: 0 | F22: 0 | G22: 0 | H22: 0 | I22: 0 | K22: 58276255.21 | L22: 58944348.63 | M22: 62639756.15 | N22: 63045438.35 | O22: 63574076.94 | P22: 64101931.48 | Q22: 64557748.68
A23: DREV0112 | B23: Revenue from public lighting charges | C23: 0 | D23: 0 | E23: 0 | F23: 0 | G23: 0 | H23: 0 | I23: 0 | K23: 38065560.23 | L23: 38352369.23 | M23: 31330368.43 | N23: 32224753.63 | O23: 32647787.17 | P23: 32623156.62 | Q23: 32536779.62
A24: DREV0113 | B24: Revenue from other Sources | C24: 102727003.2 | D24: 115471347.8 | E24: 150619173.5 | F24: 166152875.6 | G24: 181398407.3 | H24: 198023565.2 | I24: 216167032.2
A25: DREV01 | B25: Total revenue by chargeable quantity | C25: =SUM(C12:C24) -> 1591792272 | D25: 1573468027 | E25: 1647295964 | F25: 1714447696 | G25: 1784772551 | H25: 1858455467 | I25: 1935694588 | K25: =SUM(K12:K24) -> 170541057.4 | L25: 167003928.3 | M25: 160265673.2 | N25: 159523904.9 | O25: 157149319.4 | P25: 153381861.3 | Q25: 148987358.1
B28: 3.1.2 - REVENUE GROUPING BY CUSTOMER TYPE OR CLASS
C29: Standard control services | K29: Alternative control services
C30: =CONCATENATE("REVENUE Forecast ($0's, real ", dms_DollarReal,")") -> REVENUE Forecast ($0's, real June 2024) | K30: =CONCATENATE("REVENUE Forecast ($0's, real ", dms_DollarReal,")") -> REVENUE Forecast ($0's, real June 2024)
C31: =CRCP_y4 -> 2022-23 | D31: =CRCP_y5 -> 2023-24 | E31: =FRCP_y1 -> 2024-25 | F31: =FRCP_y2 -> 2025-26 | G31: =FRCP_y3 -> 2026-27 | H31: =FRCP_y4 -> 2027-28 | I31: =FRCP_y5 -> 2028-29 | K31: =CRCP_y4 -> 2022-23 | L31: =CRCP_y5 -> 2023-24 | M31: =FRCP_y1 -> 2024-25 | N31: =FRCP_y2 -> 2025-26 | O31: =FRCP_y3 -> 2026-27 | P31: =FRCP_y4 -> 2027-28 | Q31: =FRCP_y5 -> 2028-29
A32: DREV0201 | B32: Revenue from residential Customers | C32: 661379178.2 | D32: 642498304.5 | E32: 649355150.5 | F32: 669786921.3 | G32: 696127002.2 | H32: 716059750.3 | I32: 739195886.2
A33: DREV0202 | B33: Revenue from Non residential customers not on demand tariffs | C33: 136731965.7 | D33: 135423277.7 | E33: 137254000.5 | F33: 139823870.2 | G33: 140979112.7 | H33: 142640452.5 | I33: 143520136
A34: DREV0203 | B34: Revenue from Non-residential low voltage demand tariff customers | C34: 588218372.2 | D34: 581366784 | E34: 607188494.6 | F34: 629780287.8 | G34: 650588670.2 | H34: 679244254.7 | I34: 707198800.6
A35: DREV0204 | B35: Revenue from Non-residential high voltage demand tariff customers | C35: 93109423.83 | D35: 89341557.29 | E35: 93762379.67 | F35: 101311110.7 | G35: 107671459.5 | H35: 114119874.3 | I35: 120861576.7
A36: DREV0205 | B36: Revenue from unmetered supplies | C36: 9062695.7 | D36: 8784689.1 | E36: 8866499.45 | F36: 8998511.99 | G36: 9505244.74 | H36: 9942076.7 | I36: 10398984.13
A37: DREV0206 | B37: Revenue from Other Customers | C37: 103290636.6 | D37: 116053414.5 | E37: 150869438.8 | F37: 164746994.5 | G37: 179901061.6 | H37: 196449058.5 | I37: 214519204.3
A38: DREV02 | B38: Total revenue by customer class | C38: =SUM(C32:C37) -> 1591792272 | D38: 1573468027 | E38: 1647295964 | F38: 1714447696 | G38: 1784772551 | H38: 1858455467 | I38: 1935694588 | K38: =SUM(K32:K37) -> 0 | L38: 0 | M38: 0 | N38: 0 | O38: 0 | P38: 0 | Q38: 0
B41: 3.1.3 - REVENUE (penalties) ALLOWED (deducted) THROUGH INCENTIVE SCHEMES
C42: Standard control services | K42: Alternative control services
C43: =CONCATENATE("REVENUE Forecast ($0's, real ", dms_DollarReal,")") -> REVENUE Forecast ($0's, real June 2024) | K43: =CONCATENATE("REVENUE Forecast ($0's, real ", dms_DollarReal,")") -> REVENUE Forecast ($0's, real June 2024)
C44: =CRCP_y4 -> 2022-23 | D44: =CRCP_y5 -> 2023-24 | E44: =FRCP_y1 -> 2024-25 | F44: =FRCP_y2 -> 2025-26 | G44: =FRCP_y3 -> 2026-27 | H44: =FRCP_y4 -> 2027-28 | I44: =FRCP_y5 -> 2028-29 | K44: =CRCP_y4 -> 2022-23 | L44: =CRCP_y5 -> 2023-24 | M44: =FRCP_y1 -> 2024-25 | N44: =FRCP_y2 -> 2025-26 | O44: =FRCP_y3 -> 2026-27 | P44: =FRCP_y4 -> 2027-28 | Q44: =FRCP_y5 -> 2028-29
A45: DREV0301 | B45: EBSS | C45: 0 | D45: 0 | E45: 149181507 | F45: 195460623.2 | G45: 58547734.77 | H45: -4890123.85 | I45: 0 | K45: 0 | L45: 0 | M45: 0 | N45: 0 | O45: 0 | P45: 0 | Q45: 0
A46: DREV0302 | B46: STPIS | C46: 11315550.13 | D46: 4573326.54 | E46: 0 | F46: 0 | G46: 0 | H46: 0 | I46: 0 | K46: 0 | L46: 0 | M46: 0 | N46: 0 | O46: 0 | P46: 0 | Q46: 0
A47: DREV0303 | B47: F-Factor | C47: 0 | D47: 0 | E47: 0 | F47: 0 | G47: 0 | H47: 0 | I47: 0 | K47: 0 | L47: 0 | M47: 0 | N47: 0 | O47: 0 | P47: 0 | Q47: 0
A48: DREV0304 | B48: S-Factor True up | C48: 0 | D48: 0 | E48: 0 | F48: 0 | G48: 0 | H48: 0 | I48: 0 | K48: 0 | L48: 0 | M48: 0 | N48: 0 | O48: 0 | P48: 0 | Q48: 0
A49: DREV0305 | B49: Other | C49: 22074531 | D49: 22051285.69 | E49: 1403669.25 | F49: 35264331.33 | G49: 35198686.41 | H49: 35173993.91 | I49: 35179032.5 | K49: 0 | L49: 0 | M49: 0 | N49: 0 | O49: 0 | P49: 0 | Q49: 0
A50: DREV03 | B50: Total revenue of incentive schemes | C50: =SUM(C45:C49) -> 33390081.13 | D50: 26624612.23 | E50: 150585176.2 | F50: 230724954.6 | G50: 93746421.18 | H50: 30283870.06 | I50: 35179032.5 | K50: =SUM(K45:K49) -> 0 | L50: 0 | M50: 0 | N50: 0 | O50: 0 | P50: 0 | Q50: 0

Sheet 3.2 Operating expenditure
B1: =INDEX(dms_Worksheet_List,MATCH(dms_Model,dms_Model_List)) -> REGULATORY REPORTING STATEMENT
B2: =INDEX(dms_TradingNameFull_List,MATCH(dms_TradingName,dms_TradingName_List)) -> Ausgrid
B3: =CONCATENATE("REGULATORY PERIOD FROM ", FRCP_y1," TO ",dms_MultiYear_FinalYear_Result) -> REGULATORY PERIOD FROM 2024-25 TO 2028-29
B4: 3.2 OPERATING EXPENDITURE
B6: There are TWO tables on this worksheet. Both ROWS and COLUMNS have been grouped for ease of navigation. see the Instructions sheet on how to group or ungroup tables.
B8: 3.2.1 - OPEX CATEGORIES
B9: CURRENT OPEX CATEGORIES AND COST ALLOCATIONS
C10: Standard control services | K10: Alternative control services
C11: =CONCATENATE("EXPENDITURE ($0's, real ", dms_DollarReal, ")") -> EXPENDITURE ($0's, real June 2024) | K11: =CONCATENATE("EXPENDITURE ($0's, real ", dms_DollarReal, ")") -> EXPENDITURE ($0's, real June 2024)
C12: =CRCP_y4 -> 2022-23 | D12: =CRCP_y5 -> 2023-24 | E12: =FRCP_y1 -> 2024-25 | F12: =FRCP_y2 -> 2025-26 | G12: =FRCP_y3 -> 2026-27 | H12: =FRCP_y4 -> 2027-28 | I12: =FRCP_y5 -> 2028-29 | K12: =CRCP_y4 -> 2022-23 | L12: =CRCP_y5 -> 2023-24 | M12: =FRCP_y1 -> 2024-25 | N12: =FRCP_y2 -> 2025-26 | O12: =FRCP_y3 -> 2026-27 | P12: =FRCP_y4 -> 2027-28 | Q12: =FRCP_y5 -> 2028-29
A13: DOPEX0101 | B13: Vegetation management | C13: 39645413.7 | D13: 40880795.23 | E13: 41191816.58 | F13: 41500268.96 | G13: 41635910.68 | H13: 41899868.69 | I13: 42197225.45
A14: DOPEX0102 | B14: Maintenance | C14: 45778424.37 | D14: 45194210.35 | E14: 45538048.19 | F14: 45879046 | G14: 46028999.55 | H14: 46320808.31 | I14: 46649539.78
A15: DOPEX0103 | B15: Emergency response | C15: 23306063.28 | D15: 25877622.1 | E15: 28986481.63 | F15: 29203538.08 | G15: 29298988.5 | H15: 29484734.47 | I15: 29693982.98
A16: DOPEX0104 | B16: Non-network | C16: 142429858.2 | D16: 144615024.5 | E16: 177272356.4 | F16: 181386158.9 | G16: 182484053.1 | H16: 184260215.9 | I16: 186020132
A17: DOPEX0105 | B17: Network overheads | C17: 125056607.2 | D17: 122392471.2 | E17: 136072857.5 | F17: 138348914.2 | G17: 139898108.5 | H17: 141122757.7 | I17: 142548604.8
A18: DOPEX0106 | B18: Corporate overheads | C18: 32345733.37 | D18: 31656657.98 | E18: 34533981.2 | F18: 35787472.27 | G18: 36426411.86 | H18: 36765385.46 | I18: 36603307.23
A19: DOPEX0107 | B19: Connections | K19: 31378119.74 | L19: 27278941.57 | M19: 29704415.81 | N19: 30323214.46 | O19: 29451474.25 | P19: 29018649.24 | Q19: 29029678.88
A20: DOPEX0108 | B20: Metering | K20: 34193785.53 | L20: 34014825.49 | M20: 33452092.41 | N20: 31594897.11 | O20: 28476244.33 | P20: 25003351.85 | Q20: 21526499.24
A21: DOPEX0109 | B21: Public lighting | K21: 11209539.71 | L21: 11810768.83 | M21: 9315030.74 | N21: 8910805.13 | O21: 8764926.11 | P21: 8771144.96 | Q21: 8792093.06
A22: DOPEX0110 | B22: Fee and quoted
A23: DOPEX0111 | B23: Network overheads | K23: 18912019.94 | L23: 16746081.67 | M23: 19774852.86 | N23: 19884908.69 | O23: 19068311.95 | P23: 18523250.99 | Q23: 18252570.28
A24: DOPEX0112 | B24: Corporate overheads | K24: 15495549.3 | L24: 13773596.46 | M24: 12731381.7 | N24: 12379211.77 | O24: 11550036.87 | P24: 10689383.44 | Q24: 9878211.69
A25: DOPEX0113
A26: DOPEX0114
A27: DOPEX0115
A28: DOPEX0116
A29: DOPEX0117
A30: DOPEX0118
A31: DOPEX0119
A32: DOPEX0120
A33: DOPEX0121
A34: DOPEX0122
A35: DOPEX0123
A36: DOPEX0124
A37: DOPEX0125
A38: DOPEX0126
A39: DOPEX0127
A40: DOPEX0128
A41: DOPEX0129
A42: DOPEX0130
A43: DOPEX0131
A44: DOPEX0132
A45: DOPEX0133
A46: DOPEX0134
A47: DOPEX0135
A48: DOPEX0136
A49: DOPEX0137
A50: DOPEX0138
A51: DOPEX0139
A52: DOPEX0140
A53: DOPEX0141
A54: DOPEX0142
A55: DOPEX0143
A56: DOPEX0144
A57: DOPEX0145
A58: DOPEX0146
A59: DOPEX0147
A60: DOPEX0148
A61: DOPEX0149
A62: DOPEX01 | B62: Total opex | C62: =SUM(C13:C61) -> 408562100 | D62: 410616781.4 | E62: 463595541.5 | F62: 472105398.3 | G62: 475772472.2 | H62: 479853770.5 | I62: 483712792.2 | K62: =SUM(K13:K61) -> 111189014.2 | L62: 103624214 | M62: 104977773.5 | N62: 103093037.2 | O62: 97310993.51 | P62: 92005780.48 | Q62: 87479053.15
B65: 3.2.2 - OPEX CONSISTENCY
B66: OPEX CONSISTENCY - CURRENT COST ALLOCATION APPROACH
C67: Standard control services | K67: Alternative control services
C68: =CONCATENATE("EXPENDITURE ($0's, real ", dms_DollarReal, ")") -> EXPENDITURE ($0's, real June 2024) | K68: =CONCATENATE("EXPENDITURE ($0's, real ", dms_DollarReal, ")") -> EXPENDITURE ($0's, real June 2024)
C69: =CRCP_y4 -> 2022-23 | D69: =CRCP_y5 -> 2023-24 | E69: =FRCP_y1 -> 2024-25 | F69: =FRCP_y2 -> 2025-26 | G69: =FRCP_y3 -> 2026-27 | H69: =FRCP_y4 -> 2027-28 | I69: =FRCP_y5 -> 2028-29 | K69: =CRCP_y4 -> 2022-23 | L69: =CRCP_y5 -> 2023-24 | M69: =FRCP_y1 -> 2024-25 | N69: =FRCP_y2 -> 2025-26 | O69: =FRCP_y3 -> 2026-27 | P69: =FRCP_y4 -> 2027-28 | Q69: =FRCP_y5 -> 2028-29
A70: DOPEX0201 | B70: Opex for network services | C70: 408562100 | D70: 410616781.4 | E70: 463595541.5 | F70: 472105398.3 | G70: 475772472.2 | H70: 479853770.5 | I70: 483712792.2
A71: DOPEX0202 | B71: Opex for metering | K71: 36310020.69 | L71: 36108509.15 | M71: 43805897.55 | N71: 41347392.77 | O71: 37211283.38 | P71: 32631193.44 | Q71: 28061272.91
A72: DOPEX0203 | B72: Opex for connection services | K72: 61753068.81 | L72: 53685764.78 | M72: 50264345.83 | N72: 51311446.35 | O72: 49836330.6 | P72: 49103925.48 | Q72: 49122589.3
A73: DOPEX0204 | B73: Opex for public lighting | K73: 13125924.72 | L73: 13829940.09 | M73: 10907530.14 | N73: 10434198.05 | O73: 10263379.52 | P73: 10270661.54 | Q73: 10295190.94
A74: DOPEX0205 | B74: Opex for amounts payable for easement levy or similar direct charges on DNSP
A75: DOPEX0207 | B75: Opex for transmission connection point planning

Sheet 3.3 Assets (RAB)
B1: =INDEX(dms_Worksheet_List,MATCH(dms_Model,dms_Model_List)) -> REGULATORY REPORTING STATEMENT
B2: =INDEX(dms_TradingNameFull_List,MATCH(dms_TradingName,dms_TradingName_List)) -> Ausgrid
B3: =CONCATENATE("REGULATORY PERIOD FROM ", FRCP_y1," TO ",dms_MultiYear_FinalYear_Result) -> REGULATORY PERIOD FROM 2024-25 TO 2028-29
B4: 3.3 ASSETS
B6: There are FOUR tables on this worksheet. Both ROWS and COLUMNS in each have been grouped (and sub-grouped) for ease of navigation. see the Instructions sheet on how to group or ungroup tables.
B8: 3.3.1 - REGULATORY ASSET BASE VALUES
C9: Network services | K9: Standard control services | S9: Alternative control services
C10: =CONCATENATE(" VALUE Forecast ($0's, real ", dms_DollarReal, ")") -> VALUE Forecast ($0's, real June 2024) | K10: =CONCATENATE(" VALUE Forecast ($0's, real ", dms_DollarReal, ")") -> VALUE Forecast ($0's, real June 2024) | S10: =CONCATENATE(" VALUE Forecast ($0's, real ", dms_DollarReal, ")") -> VALUE Forecast ($0's, real June 2024)
C11: =CRCP_y4 -> 2022-23 | D11: =CRCP_y5 -> 2023-24 | E11: =FRCP_y1 -> 2024-25 | F11: =FRCP_y2 -> 2025-26 | G11: =FRCP_y3 -> 2026-27 | H11: =FRCP_y4 -> 2027-28 | I11: =FRCP_y5 -> 2028-29 | K11: =CRCP_y4 -> 2022-23 | L11: =CRCP_y5 -> 2023-24 | M11: =FRCP_y1 -> 2024-25 | N11: =FRCP_y2 -> 2025-26 | O11: =FRCP_y3 -> 2026-27 | P11: =FRCP_y4 -> 2027-28 | Q11: =FRCP_y5 -> 2028-29 | S11: =CRCP_y4 -> 2022-23 | T11: =CRCP_y5 -> 2023-24 | U11: =FRCP_y1 -> 2024-25 | V11: =FRCP_y2 -> 2025-26 | W11: =FRCP_y3 -> 2026-27 | X11: =FRCP_y4 -> 2027-28 | Y11: =FRCP_y5 -> 2028-29
B12: For total asset base:
A13: DRAB0101 | B13: Opening value | C13: 1.836100255e+10 | D13: 1.833405879e+10 | E13: 1.854590674e+10 | F13: 1.868518079e+10 | G13: 1.874668369e+10 | H13: 1.876433153e+10 | I13: 1.874407024e+10 | K13: 1.836100255e+10 | L13: 1.833405879e+10 | M13: 1.854590674e+10 | N13: 1.868518079e+10 | O13: 1.874668369e+10 | P13: 1.876433153e+10 | Q13: 1.874407024e+10 | S13: 184565586.6 | T13: 151986823.7 | U13: 116020621.7 | V13: 95251723.18 | W13: 69616372.34 | X13: 44101767.68 | Y13: 18904452.66
A14: DRAB0102 | B14: Inflation addition | C14: 0 | D14: 0 | E14: 0 | F14: 0 | G14: 0 | H14: 0 | I14: 0 | K14: 0 | L14: 0 | M14: 0 | N14: 0 | O14: 0 | P14: 0 | Q14: 0 | S14: 0 | T14: 0 | U14: 0 | V14: 0 | W14: 0 | X14: 0 | Y14: 0
A15: DRAB0103 | B15: Straight line depreciation | C15: -625935674.8 | D15: -638652497.1 | E15: -588253450.7 | F15: -622058556.1 | G15: -653415615.8 | H15: -664978447 | I15: -648159844.7 | K15: -625827085.3 | L15: -637771809.7 | M15: -587622347.6 | N15: -621961334.4 | O15: -653317038 | P15: -664880183.6 | Q15: -648061694.8 | S15: -32449163.4 | T15: -29833418.44 | U15: -25728860.53 | V15: -29841065.71 | W15: -28856249.84 | X15: -27536285.64 | Y15: -15971986.62
A16: DRAB0105 | B16: Actual additions (recognised in RAB) | C16: 768434592.5 | D16: 854143146.3 | E16: 733330201.5 | F16: 688200155.6 | G16: 673115288.6 | H16: 646126658.8 | I16: 617671275.3 | K16: 768326003 | L16: 852938940.2 | M16: 732699098.4 | N16: 688102933.9 | O16: 673016710.9 | P16: 646028395.5 | Q16: 617573125.3 | S16: 40208.21 | T16: -6132783.54 | U16: 5119431.59 | V16: 4333195.61 | W16: 3398033.93 | X16: 2377706.66 | Y16: 1830082.79
A17: DRAB0106 | B17: Disposals | C17: -169442685.3 | D17: -3642691.04 | E17: -5802708.44 | F17: -4638696.32 | G17: -2051835.16 | H17: -1409495.94 | I17: -582483.76 | K17: -169442685.3 | L17: -3319172.36 | M17: -5802708.44 | N17: -4638696.32 | O17: -2051835.16 | P17: -1409495.94 | Q17: -582483.76 | S17: -169807.72 | T17: 0 | U17: -159469.61 | V17: -127480.73 | W17: -56388.75 | X17: -38736.05 | Y17: -16007.99
A18: DRAB0107 | B18: Closing value | C18: =SUM(C13+C14+C15+C16+C17) -> 1.833405879e+10 | D18: 1.854590674e+10 | E18: 1.868518079e+10 | F18: 1.874668369e+10 | G18: 1.876433153e+10 | H18: 1.874407024e+10 | I18: 1.871299919e+10 | K18: =SUM(K13+K14+K15+K16+K17) -> 1.833405879e+10 | L18: 1.854590674e+10 | M18: 1.868518079e+10 | N18: 1.874668369e+10 | O18: 1.876433153e+10 | P18: 1.874407024e+10 | Q18: 1.871299919e+10 | S18: =SUM(S13+S14+S15+S16+S17) -> 151986823.7 | T18: 116020621.7 | U18: 95251723.17 | V18: 69616372.35 | W18: 44101767.68 | X18: 18904452.65 | Y18: 4746540.84
B21: 3.3.2 - ASSET VALUE ROLL FORWARD
C22: Network services | K22: Standard control services | S22: Alternative control services
C23: =CONCATENATE(" VALUE Forecast ($0's, real ", dms_DollarReal, ")") -> VALUE Forecast ($0's, real June 2024) | K23: =CONCATENATE(" VALUE Forecast ($0's, real ", dms_DollarReal, ")") -> VALUE Forecast ($0's, real June 2024) | S23: =CONCATENATE(" VALUE Forecast ($0's, real ", dms_DollarReal, ")") -> VALUE Forecast ($0's, real June 2024)
C24: =CRCP_y4 -> 2022-23 | D24: =CRCP_y5 -> 2023-24 | E24: =FRCP_y1 -> 2024-25 | F24: =FRCP_y2 -> 2025-26 | G24: =FRCP_y3 -> 2026-27 | H24: =FRCP_y4 -> 2027-28 | I24: =FRCP_y5 -> 2028-29 | K24: =CRCP_y4 -> 2022-23 | L24: =CRCP_y5 -> 2023-24 | M24: =FRCP_y1 -> 2024-25 | N24: =FRCP_y2 -> 2025-26 | O24: =FRCP_y3 -> 2026-27 | P24: =FRCP_y4 -> 2027-28 | Q24: =FRCP_y5 -> 2028-29 | S24: =CRCP_y4 -> 2022-23 | T24: =CRCP_y5 -> 2023-24 | U24: =FRCP_y1 -> 2024-25 | V24: =FRCP_y2 -> 2025-26 | W24: =FRCP_y3 -> 2026-27 | X24: =FRCP_y4 -> 2027-28 | Y24: =FRCP_y5 -> 2028-29
B25: For overhead network assets less than 33kV:
A26: DRAB0201 | B26: Opening value | C26: 2202955415 | D26: 2231851377 | E26: 2249002992 | F26: 2275786971 | G26: 2304175789 | H26: 2334709060 | I26: 2362339239 | K26: 2202955415 | L26: 2231851377 | M26: 2249002992 | N26: 2275786971 | O26: 2304175789 | P26: 2334709060 | Q26: 2362339239 | S26: 0 | T26: 0 | U26: 0 | V26: 0 | W26: 0 | X26: 0 | Y26: 0
A27: DRAB0202 | B27: Inflation addition | C27: 0 | D27: 0 | E27: 0 | F27: 0 | G27: 0 | H27: 0 | I27: 0 | K27: 0 | L27: 0 | M27: 0 | N27: 0 | O27: 0 | P27: 0 | Q27: 0 | S27: 0 | T27: 0 | U27: 0 | V27: 0 | W27: 0 | X27: 0 | Y27: 0
A28: DRAB0203 | B28: Straight line depreciation | C28: -41720888.62 | D28: -44095166.87 | E28: -45387164.99 | F28: -46729187.77 | G28: -48124877.94 | H28: -49585878.54 | I28: -51020775.81 | K28: -41720888.62 | L28: -44095166.87 | M28: -45387164.99 | N28: -46729187.77 | O28: -48124877.94 | P28: -49585878.54 | Q28: -51020775.81 | S28: 0 | T28: 0 | U28: 0 | V28: 0 | W28: 0 | X28: 0 | Y28: 0
A29: DRAB0205 | B29: Actual additions (recognised in RAB) | C29: 70616850.32 | D29: 61246782.52 | E29: 72171143.28 | F29: 75118006.62 | G29: 78658148.49 | H29: 77216057.57 | I29: 75916151.96 | K29: 70616850.32 | L29: 61246782.52 | M29: 72171143.28 | N29: 75118006.62 | O29: 78658148.49 | P29: 77216057.57 | Q29: 75916151.96 | S29: 0 | T29: 0 | U29: 0 | V29: 0 | W29: 0 | X29: 0 | Y29: 0
A30: DRAB0206 | B30: Disposals | C30: 0 | D30: 0 | E30: 0 | F30: 0 | G30: 0 | H30: 0 | I30: 0 | K30: 0 | L30: 0 | M30: 0 | N30: 0 | O30: 0 | P30: 0 | Q30: 0 | S30: 0 | T30: 0 | U30: 0 | V30: 0 | W30: 0 | X30: 0 | Y30: 0
A31: DRAB0207 | B31: Closing value | C31: =SUM(C26+C27+C28+C29+C30) -> 2231851377 | D31: 2249002992 | E31: 2275786971 | F31: 2304175789 | G31: 2334709060 | H31: 2362339239 | I31: 2387234615 | K31: =SUM(K26+K27+K28+K29+K30) -> 2231851377 | L31: 2249002992 | M31: 2275786971 | N31: 2304175789 | O31: 2334709060 | P31: 2362339239 | Q31: 2387234615 | S31: =SUM(S26+S27+S28+S29+S30) -> 0 | T31: 0 | U31: 0 | V31: 0 | W31: 0 | X31: 0 | Y31: 0
B32: For underground network assets less than 33kV:
A33: DRAB0301 | B33: Opening value | C33: 5016730439 | D33: 5087819649 | E33: 5148779760 | F33: 5210763251 | G33: 5277772934 | H33: 5351034518 | I33: 5415869763 | K33: 5016730439 | L33: 5087819649 | M33: 5148779760 | N33: 5210763251 | O33: 5277772934 | P33: 5351034518 | Q33: 5415869763 | S33: 0 | T33: 0 | U33: 0 | V33: 0 | W33: 0 | X33: 0 | Y33: 0
A34: DRAB0302 | B34: Inflation addition | C34: 0 | D34: 0 | E34: 0 | F34: 0 | G34: 0 | H34: 0 | I34: 0 | K34: 0 | L34: 0 | M34: 0 | N34: 0 | O34: 0 | P34: 0 | Q34: 0 | S34: 0 | T34: 0 | U34: 0 | V34: 0 | W34: 0 | X34: 0 | Y34: 0
A35: DRAB0303 | B35: Straight line depreciation | C35: -128035555.4 | D35: -134993073.5 | E35: -139905347.7 | F35: -143632433.9 | G35: -147517638.8 | H35: -151588389.8 | I35: -155580924.3 | K35: -128035555.4 | L35: -134993073.5 | M35: -139905347.7 | N35: -143632433.9 | O35: -147517638.8 | P35: -151588389.8 | Q35: -155580924.3 | S35: 0 | T35: 0 | U35: 0 | V35: 0 | W35: 0 | X35: 0 | Y35: 0
A36: DRAB0305 | B36: Actual additions (recognised in RAB) | C36: 199124765.6 | D36: 195953183.9 | E36: 201888839.5 | F36: 210642116.5 | G36: 220779222.2 | H36: 216423634.8 | I36: 212706773.6 | K36: 199124765.6 | L36: 195953183.9 | M36: 201888839.5 | N36: 210642116.5 | O36: 220779222.2 | P36: 216423634.8 | Q36: 212706773.6 | S36: 0 | T36: 0 | U36: 0 | V36: 0 | W36: 0 | X36: 0 | Y36: 0
A37: DRAB0306 | B37: Disposals | C37: 0 | D37: 0 | E37: 0 | F37: 0 | G37: 0 | H37: 0 | I37: 0 | K37: 0 | L37: 0 | M37: 0 | N37: 0 | O37: 0 | P37: 0 | Q37: 0 | S37: 0 | T37: 0 | U37: 0 | V37: 0 | W37: 0 | X37: 0 | Y37: 0
A38: DRAB0307 | B38: Closing value | C38: =SUM(C33+C34+C35+C36+C37) -> 5087819649 | D38: 5148779760 | E38: 5210763251 | F38: 5277772934 | G38: 5351034518 | H38: 5415869763 | I38: 5472995612 | K38: =SUM(K33+K34+K35+K36+K37) -> 5087819649 | L38: 5148779760 | M38: 5210763251 | N38: 5277772934 | O38: 5351034518 | P38: 5415869763 | Q38: 5472995612 | S38: =SUM(S33+S34+S35+S36+S37) -> 0 | T38: 0 | U38: 0 | V38: 0 | W38: 0 | X38: 0 | Y38: 0
B39: For distribution substations and transformers:
A40: DRAB0401 | B40: Opening value | C40: 3172778067 | D40: 3135420051 | E40: 3093673119 | F40: 3058448365 | G40: 3019437918 | H40: 2982705119 | I40: 2938363280 | K40: 3172778067 | L40: 3135420051 | M40: 3093673119 | N40: 3058448365 | O40: 3019437918 | P40: 2982705119 | Q40: 2938363280 | S40: 0 | T40: 0 | U40: 0 | V40: 0 | W40: 0 | X40: 0 | Y40: 0
A41: DRAB0402 | B41: Inflation addition | C41: 0 | D41: 0 | E41: 0 | F41: 0 | G41: 0 | H41: 0 | I41: 0 | K41: 0 | L41: 0 | M41: 0 | N41: 0 | O41: 0 | P41: 0 | Q41: 0 | S41: 0 | T41: 0 | U41: 0 | V41: 0 | W41: 0 | X41: 0 | Y41: 0
A42: DRAB0403 | B42: Straight line depreciation | C42: -107916702.8 | D42: -112731234.5 | E42: -112573729.4 | F42: -114156717 | G42: -115755635.2 | H42: -117437162.4 | I42: -118992105.4 | K42: -107916702.8 | L42: -112731234.5 | M42: -112573729.4 | N42: -114156717 | O42: -115755635.2 | P42: -117437162.4 | Q42: -118992105.4 | S42: 0 | T42: 0 | U42: 0 | V42: 0 | W42: 0 | X42: 0 | Y42: 0
A43: DRAB0405 | B43: Actual additions (recognised in RAB) | C43: 70558687.51 | D43: 66744333.19 | E43: 77348976.03 | F43: 75146270.16 | G43: 79022835.56 | H43: 73095323.55 | I43: 70716285.11 | K43: 70558687.51 | L43: 66744333.19 | M43: 77348976.03 | N43: 75146270.16 | O43: 79022835.56 | P43: 73095323.55 | Q43: 70716285.11 | S43: 0 | T43: 0 | U43: 0 | V43: 0 | W43: 0 | X43: 0 | Y43: 0
A44: DRAB0406 | B44: Disposals | C44: 0 | D44: 4239968.67 | E44: 0 | F44: 0 | G44: 0 | H44: 0 | I44: 0 | K44: 0 | L44: 4239968.67 | M44: 0 | N44: 0 | O44: 0 | P44: 0 | Q44: 0 | S44: 0 | T44: 0 | U44: 0 | V44: 0 | W44: 0 | X44: 0 | Y44: 0
A45: DRAB0407 | B45: Closing value | C45: =SUM(C40+C41+C42+C43+C44) -> 3135420051 | D45: 3093673119 | E45: 3058448365 | F45: 3019437918 | G45: 2982705119 | H45: 2938363280 | I45: 2890087460 | K45: =SUM(K40+K41+K42+K43+K44) -> 3135420051 | L45: 3093673119 | M45: 3058448365 | N45: 3019437918 | O45: 2982705119 | P45: 2938363280 | Q45: 2890087460 | S45: =SUM(S40+S41+S42+S43+S44) -> 0 | T45: 0 | U45: 0 | V45: 0 | W45: 0 | X45: 0 | Y45: 0
B46: For overhead network assets 33kV and above:
A47: DRAB0501 | B47: Opening value | C47: 1047925203 | D47: 1049575793 | E47: 1139066250 | F47: 1129002809 | G47: 1116927735 | H47: 1104137972 | I47: 1096331734 | K47: 1047925203 | L47: 1049575793 | M47: 1139066250 | N47: 1129002809 | O47: 1116927735 | P47: 1104137972 | Q47: 1096331734 | S47: 0 | T47: 0 | U47: 0 | V47: 0 | W47: 0 | X47: 0 | Y47: 0
A48: DRAB0502 | B48: Inflation addition | C48: 0 | D48: 0 | E48: 0 | F48: 0 | G48: 0 | H48: 0 | I48: 0 | K48: 0 | L48: 0 | M48: 0 | N48: 0 | O48: 0 | P48: 0 | Q48: 0 | S48: 0 | T48: 0 | U48: 0 | V48: 0 | W48: 0 | X48: 0 | Y48: 0
A49: DRAB0503 | B49: Straight line depreciation | C49: -30508330.19 | D49: -31808283.03 | E49: -30802121.26 | F49: -31245979.46 | G49: -31655946.14 | H49: -32059293.82 | I49: -32578976.61 | K49: -30508330.19 | L49: -31808283.03 | M49: -30802121.26 | N49: -31245979.46 | O49: -31655946.14 | P49: -32059293.82 | Q49: -32578976.61 | S49: 0 | T49: 0 | U49: 0 | V49: 0 | W49: 0 | X49: 0 | Y49: 0
A50: DRAB0505 | B50: Actual additions (recognised in RAB) | C50: 32158919.75 | D50: 51125612.17 | E50: 20738680.03 | F50: 19170905.57 | G50: 18866183.15 | H50: 24253055.5 | I50: 27945793.27 | K50: 32158919.75 | L50: 51125612.17 | M50: 20738680.03 | N50: 19170905.57 | O50: 18866183.15 | P50: 24253055.5 | Q50: 27945793.27 | S50: 0 | T50: 0 | U50: 0 | V50: 0 | W50: 0 | X50: 0 | Y50: 0
A51: DRAB0506 | B51: Disposals | C51: 0 | D51: 70173128.72 | E51: 0 | F51: 0 | G51: 0 | H51: 0 | I51: 0 | K51: 0 | L51: 70173128.72 | M51: 0 | N51: 0 | O51: 0 | P51: 0 | Q51: 0 | S51: 0 | T51: 0 | U51: 0 | V51: 0 | W51: 0 | X51: 0 | Y51: 0
A52: DRAB0507 | B52: Closing value | C52: =SUM(C47+C48+C49+C50+C51) -> 1049575793 | D52: 1139066251 | E52: 1129002809 | F52: 1116927735 | G52: 1104137972 | H52: 1096331734 | I52: 1091698551 | K52: =SUM(K47+K48+K49+K50+K51) -> 1049575793 | L52: 1139066251 | M52: 1129002809 | N52: 1116927735 | O52: 1104137972 | P52: 1096331734 | Q52: 1091698551 | S52: =SUM(S47+S48+S49+S50+S51) -> 0 | T52: 0 | U52: 0 | V52: 0 | W52: 0 | X52: 0 | Y52: 0
B53: For underground network assets 33kV and above:
A54: DRAB0601 | B54: Opening value | C54: 1752522796 | D54: 1737914089 | E54: 1697780812 | F54: 1666253863 | G54: 1625095009 | H54: 1582504971 | I54: 1561932376 | K54: 1752522796 | L54: 1737914089 | M54: 1697780812 | N54: 1666253863 | O54: 1625095009 | P54: 1582504971 | Q54: 1561932376 | S54: 0 | T54: 0 | U54: 0 | V54: 0 | W54: 0 | X54: 0 | Y54: 0
A55: DRAB0602 | B55: Inflation addition | C55: 0 | D55: 0 | E55: 0 | F55: 0 | G55: 0 | H55: 0 | I55: 0 | K55: 0 | L55: 0 | M55: 0 | N55: 0 | O55: 0 | P55: 0 | Q55: 0 | S55: 0 | T55: 0 | U55: 0 | V55: 0 | W55: 0 | X55: 0 | Y55: 0
A56: DRAB0603 | B56: Straight line depreciation | C56: -58030146.88 | D56: -60534721.53 | E56: -65692548.79 | F56: -66436921.9 | G56: -66985346.85 | H56: -67514503.23 | I56: -68539524.07 | K56: -58030146.88 | L56: -60534721.53 | M56: -65692548.79 | N56: -66436921.9 | O56: -66985346.85 | P56: -67514503.23 | Q56: -68539524.07 | S56: 0 | T56: 0 | U56: 0 | V56: 0 | W56: 0 | X56: 0 | Y56: 0
A57: DRAB0605 | B57: Actual additions (recognised in RAB) | C57: 43421439.82 | D57: 90574573.52 | E57: 34165599.55 | F57: 25278067.93 | G57: 24395308.93 | H57: 46941908.21 | I57: 50096752.18 | K57: 43421439.82 | L57: 90574573.52 | M57: 34165599.55 | N57: 25278067.93 | O57: 24395308.93 | P57: 46941908.21 | Q57: 50096752.18 | S57: 0 | T57: 0 | U57: 0 | V57: 0 | W57: 0 | X57: 0 | Y57: 0
A58: DRAB0606 | B58: Disposals | C58: 0 | D58: -70173128.72 | E58: 0 | F58: 0 | G58: 0 | H58: 0 | I58: 0 | K58: 0 | L58: -70173128.72 | M58: 0 | N58: 0 | O58: 0 | P58: 0 | Q58: 0 | S58: 0 | T58: 0 | U58: 0 | V58: 0 | W58: 0 | X58: 0 | Y58: 0
A59: DRAB0607 | B59: Closing value | C59: =SUM(C54+C55+C56+C57+C58) -> 1737914089 | D59: 1697780812 | E59: 1666253863 | F59: 1625095009 | G59: 1582504971 | H59: 1561932376 | I59: 1543489604 | K59: =SUM(K54+K55+K56+K57+K58) -> 1737914089 | L59: 1697780812 | M59: 1666253863 | N59: 1625095009 | O59: 1582504971 | P59: 1561932376 | Q59: 1543489604 | S59: =SUM(S54+S55+S56+S57+S58) -> 0 | T59: 0 | U59: 0 | V59: 0 | W59: 0 | X59: 0 | Y59: 0
B60: Zone substations and transformers
A61: DRAB0701 | B61: Opening value | C61: 4126788670 | D61: 4083770332 | E61: 4026446086 | F61: 3990060585 | G61: 3943661530 | H61: 3897990975 | I61: 3845003040 | K61: 4126788670 | L61: 4083770332 | M61: 4026446086 | N61: 3990060585 | O61: 3943661530 | P61: 3897990975 | Q61: 3845003040 | S61: 0 | T61: 0 | U61: 0 | V61: 0 | W61: 0 | X61: 0 | Y61: 0
A62: DRAB0702 | B62: Inflation addition | C62: 0 | D62: 0 | E62: 0 | F62: 0 | G62: 0 | H62: 0 | I62: 0 | K62: 0 | L62: 0 | M62: 0 | N62: 0 | O62: 0 | P62: 0 | Q62: 0 | S62: 0 | T62: 0 | U62: 0 | V62: 0 | W62: 0 | X62: 0 | Y62: 0
A63: DRAB0703 | B63: Straight line depreciation | C63: -117836657.7 | D63: -124408128.9 | E63: -118234265.5 | F63: -120677661.9 | G63: -122978261.7 | H63: -125355046.8 | I63: -127570543.9 | K63: -117836657.7 | L63: -124408128.9 | M63: -118234265.5 | N63: -120677661.9 | O63: -122978261.7 | P63: -125355046.8 | Q63: -127570543.9 | S63: 0 | T63: 0 | U63: 0 | V63: 0 | W63: 0 | X63: 0 | Y63: 0
A64: DRAB0705 | B64: Actual additions (recognised in RAB) | C64: 74818319.87 | D64: 70389107.56 | E64: 81848764.04 | F64: 74278606.97 | G64: 77307706.6 | H64: 72367111.98 | I64: 68284457.12 | K64: 74818319.87 | L64: 70389107.56 | M64: 81848764.04 | N64: 74278606.97 | O64: 77307706.6 | P64: 72367111.98 | Q64: 68284457.12 | S64: 0 | T64: 0 | U64: 0 | V64: 0 | W64: 0 | X64: 0 | Y64: 0
A65: DRAB0706 | B65: Disposals | C65: 0 | D65: -3305224.59 | E65: 0 | F65: 0 | G65: 0 | H65: 0 | I65: 0 | K65: 0 | L65: -3305224.59 | M65: 0 | N65: 0 | O65: 0 | P65: 0 | Q65: 0 | S65: 0 | T65: 0 | U65: 0 | V65: 0 | W65: 0 | X65: 0 | Y65: 0
A66: DRAB0707 | B66: Closing value | C66: =SUM(C61+C62+C63+C64+C65) -> 4083770332 | D66: 4026446086 | E66: 3990060585 | F66: 3943661530 | G66: 3897990975 | H66: 3845003040 | I66: 3785716953 | K66: =SUM(K61+K62+K63+K64+K65) -> 4083770332 | L66: 4026446086 | M66: 3990060585 | N66: 3943661530 | O66: 3897990975 | P66: 3845003040 | Q66: 3785716953 | S66: =SUM(S61+S62+S63+S64+S65) -> 0 | T66: 0 | U66: 0 | V66: 0 | W66: 0 | X66: 0 | Y66: 0
B67: For easements:
A68: DRAB0801 | B68: Opening value | C68: 104360123.9 | D68: 104468713.4 | E68: 105025882.1 | F68: 105656985.2 | G68: 105754206.9 | H68: 105852784.7 | I68: 105951048 | K68: 104360123.9 | L68: 104468713.4 | M68: 105025882.1 | N68: 105656985.2 | O68: 105754206.9 | P68: 105852784.7 | Q68: 105951048 | S68: 0 | T68: 0 | U68: 0 | V68: 0 | W68: 0 | X68: 0 | Y68: 0
A69: DRAB0802 | B69: Inflation addition | C69: 0 | D69: 0 | E69: 0 | F69: 0 | G69: 0 | H69: 0 | I69: 0 | K69: 0 | L69: 0 | M69: 0 | N69: 0 | O69: 0 | P69: 0 | Q69: 0 | S69: 0 | T69: 0 | U69: 0 | V69: 0 | W69: 0 | X69: 0 | Y69: 0
A70: DRAB0803 | B70: Actual additions (recognised in RAB) | C70: 108589.51 | D70: 880687.41 | E70: 631103.08 | F70: 97221.75 | G70: 98577.75 | H70: 98263.36 | I70: 98149.95 | K70: 108589.51 | L70: 880687.41 | M70: 631103.08 | N70: 97221.75 | O70: 98577.75 | P70: 98263.36 | Q70: 98149.95 | S70: 0 | T70: 0 | U70: 0 | V70: 0 | W70: 0 | X70: 0 | Y70: 0
A71: DRAB0804 | B71: Disposals | C71: 0 | D71: -323518.68 | E71: 0 | F71: 0 | G71: 0 | H71: 0 | I71: 0 | K71: 0 | L71: -323518.68 | M71: 0 | N71: 0 | O71: 0 | P71: 0 | Q71: 0 | S71: 0 | T71: 0 | U71: 0 | V71: 0 | W71: 0 | X71: 0 | Y71: 0
A72: DRAB0805 | B72: Closing value | C72: =SUM(C68+C69+C70+C71) -> 104468713.4 | D72: 105025882.1 | E72: 105656985.2 | F72: 105754206.9 | G72: 105852784.7 | H72: 105951048 | I72: 106049198 | K72: =SUM(K68+K69+K70+K71) -> 104468713.4 | L72: 105025882.1 | M72: 105656985.2 | N72: 105754206.9 | O72: 105852784.7 | P72: 105951048 | Q72: 106049198 | S72: =SUM(S68+S69+S70+S71) -> 0 | T72: 0 | U72: 0 | V72: 0 | W72: 0 | X72: 0 | Y72: 0
B73: For meters:
A74: DRAB0901 | B74: Opening value | C74: 0 | D74: 0 | E74: 0 | F74: 0 | G74: 0 | H74: 0 | I74: 0 | K74: 0 | L74: 0 | M74: 0 | N74: 0 | O74: 0 | P74: 0 | Q74: 0 | S74: 158544764.2 | T74: 135801288.4 | U74: 112347758.6 | V74: 87782619.68 | W74: 63217480.74 | X74: 38652341.8 | Y74: 14087202.86
A75: DRAB0902 | B75: Inflation addition | C75: 0 | D75: 0 | E75: 0 | F75: 0 | G75: 0 | H75: 0 | I75: 0 | K75: 0 | L75: 0 | M75: 0 | N75: 0 | O75: 0 | P75: 0 | Q75: 0 | S75: 0 | T75: 0 | U75: 0 | V75: 0 | W75: 0 | X75: 0 | Y75: 0
A76: DRAB0903 | B76: Straight line depreciation | C76: 0 | D76: 0 | E76: 0 | F76: 0 | G76: 0 | H76: 0 | I76: 0 | K76: 0 | L76: 0 | M76: 0 | N76: 0 | O76: 0 | P76: 0 | Q76: 0 | S76: -22743475.85 | T76: -23449120.68 | U76: -24565138.94 | V76: -24565138.94 | W76: -24565138.94 | X76: -24565138.94 | Y76: -14087202.86
A77: DRAB0905 | B77: Actual additions (recognised in RAB) | C77: 0 | D77: 0 | E77: 0 | F77: 0 | G77: 0 | H77: 0 | I77: 0 | K77: 0 | L77: 0 | M77: 0 | N77: 0 | O77: 0 | P77: 0 | Q77: 0 | S77: 0 | T77: -4409.11 | U77: 0 | V77: 0 | W77: 0 | X77: 0 | Y77: 0
A78: DRAB0906 | B78: Disposals | C78: 0 | D78: 0 | E78: 0 | F78: 0 | G78: 0 | H78: 0 | I78: 0 | K78: 0 | L78: 0 | M78: 0 | N78: 0 | O78: 0 | P78: 0 | Q78: 0 | S78: 0 | T78: 0 | U78: 0 | V78: 0 | W78: 0 | X78: 0 | Y78: 0
A79: DRAB0907 | B79: Closing value | C79: =SUM(C74+C75+C76+C77+C78) -> 0 | D79: 0 | E79: 0 | F79: 0 | G79: 0 | H79: 0 | I79: 0 | K79: =SUM(K74+K75+K76+K77+K78) -> 0 | L79: 0 | M79: 0 | N79: 0 | O79: 0 | P79: 0 | Q79: 0 | S79: =SUM(S74+S75+S76+S77+S78) -> 135801288.4 | T79: 112347758.6 | U79: 87782619.68 | V79: 63217480.74 | W79: 38652341.8 | X79: 14087202.86 | Y79: 0
B80: For “other” asset items with long lives:
A81: DRAB1001 | B81: Opening value | C81: 761841600.6 | D81: 660073634.7 | E81: 840989671.5 | F81: 981506970.4 | G81: 1067663669 | H81: 1154263373 | I81: 1216902172 | K81: 761841600.6 | L81: 660073634.7 | M81: 840989671.5 | N81: 981506970.4 | O81: 1067663669 | P81: 1154263373 | Q81: 1216902172 | S81: 24927044 | T81: 18903604.4 | U81: 10132943.1 | V81: 10574160.3 | W81: 7625123.31 | X81: 6683801.13 | Y81: 5242478.19
A82: DRAB1002 | B82: Inflation addition | C82: 0 | D82: 0 | E82: 0 | F82: 0 | G82: 0 | H82: 0 | I82: 0 | K82: 0 | L82: 0 | M82: 0 | N82: 0 | O82: 0 | P82: 0 | Q82: 0 | S82: 0 | T82: 0 | U82: 0 | V82: 0 | W82: 0 | X82: 0 | Y82: 0
A83: DRAB1003 | B83: Straight line depreciation | C83: -45068482.68 | D83: -47336998.4 | E83: -7461738.33 | F83: -14546696.75 | G83: -16431506.9 | H83: -21707816.47 | I83: -24039064.59 | K83: -45068482.68 | L83: -47336998.4 | M83: -7461738.33 | N83: -14546696.75 | O83: -16431506.9 | P83: -21707816.47 | Q83: -24039064.59 | S83: -5893840.09 | T83: -4463550.08 | U83: -2325608.38 | V83: -4244677.15 | W83: -2542922.97 | X83: -2718312.14 | Y83: -2310012.15
A84: DRAB1005 | B84: Actual additions (recognised in RAB) | C84: 112743202.1 | D84: 232506951.6 | E84: 153781745.7 | F84: 105342091.2 | G84: 105083046.6 | H84: 85756111 | I84: 66706025.93 | K84: 112743202.1 | L84: 232506951.6 | M84: 153781745.7 | N84: 105342091.2 | O84: 105083046.6 | P84: 85756111 | Q84: 66706025.93 | S84: 40208.21 | T84: -4307111.23 | U84: 2926295.19 | V84: 1423120.9 | W84: 1657989.55 | X84: 1315725.24 | Y84: 834705.55
A85: DRAB1006 | B85: Disposals | C85: -169442685.3 | D85: -4253916.44 | E85: -5802708.44 | F85: -4638696.32 | G85: -2051835.16 | H85: -1409495.94 | I85: -582483.76 | K85: -169442685.3 | L85: -4253916.44 | M85: -5802708.44 | N85: -4638696.32 | O85: -2051835.16 | P85: -1409495.94 | Q85: -582483.76 | S85: -169807.72 | T85: 0 | U85: -159469.61 | V85: -127480.73 | W85: -56388.75 | X85: -38736.05 | Y85: -16007.99
A86: DRAB1007 | B86: Closing value | C86: =SUM(C81+C82+C83+C84+C85) -> 660073634.7 | D86: 840989671.5 | E86: 981506970.4 | F86: 1067663668 | G86: 1154263373 | H86: 1216902172 | I86: 1258986649 | K86: =SUM(K81+K82+K83+K84+K85) -> 660073634.7 | L86: 840989671.5 | M86: 981506970.4 | N86: 1067663668 | O86: 1154263373 | P86: 1216902172 | Q86: 1258986649 | S86: =SUM(S81+S82+S83+S84+S85) -> 18903604.4 | T86: 10132943.09 | U86: 10574160.3 | V86: 7625123.32 | W86: 6683801.14 | X86: 5242478.18 | Y86: 3751163.6
B87: For “other” asset items with short lives:
A88: DRAB1101 | B88: Opening value | C88: 175100239.3 | D88: 243165146.8 | E88: 245142170.9 | F88: 267700986.6 | G88: 286194898.1 | H88: 251132755.2 | I88: 201377592.1 | K88: 175100239.3 | L88: 243165146.8 | M88: 245142170.9 | N88: 267700986.6 | O88: 286194898.1 | P88: 251132755.2 | Q88: 201377592.1 | S88: 1093778.37 | T88: -2718069.1 | U88: -6460079.99 | V88: -3105056.8 | W88: -1226231.71 | X88: -1234375.25 | Y88: -425228.4
A89: DRAB1102 | B89: Inflation addition | C89: 0 | D89: 0 | E89: 0 | F89: 0 | G89: 0 | H89: 0 | I89: 0 | K89: 0 | L89: 0 | M89: 0 | N89: 0 | O89: 0 | P89: 0 | Q89: 0 | S89: 0 | T89: 0 | U89: 0 | V89: 0 | W89: 0 | X89: 0 | Y89: 0
A90: DRAB1103 | B90: Straight line depreciation | C90: -96818910.51 | D90: -82744890.3 | E90: -68196534.68 | F90: -84632957.38 | G90: -103966402.2 | H90: -99730355.96 | I90: -69837929.96 | K90: -96818910.51 | L90: -82744890.3 | M90: -68196534.68 | N90: -84632957.38 | O90: -103966402.2 | P90: -99730355.96 | Q90: -69837929.96 | S90: -3811847.47 | T90: -1920747.68 | U90: 1161886.78 | V90: -1031249.62 | W90: -1748187.93 | X90: -252834.57 | Y90: 425228.4
A91: DRAB1105 | B91: Actual additions (recognised in RAB) | C91: 164883818 | D91: 84721914.43 | E91: 90755350.31 | F91: 103126868.9 | G91: 68904259.32 | H91: 49975192.82 | I91: 45200886.1 | K91: 164883818 | L91: 84721914.43 | M91: 90755350.31 | N91: 103126868.9 | O91: 68904259.32 | P91: 49975192.82 | Q91: 45200886.1 | S91: 0 | T91: -1821263.21 | U91: 2193136.41 | V91: 2910074.71 | W91: 1740044.39 | X91: 1061981.42 | Y91: 995377.24
A92: DRAB1106 | B92: Disposals | C92: 0 | D92: 0 | E92: 0 | F92: 0 | G92: 0 | H92: 0 | I92: 0 | K92: 0 | L92: 0 | M92: 0 | N92: 0 | O92: 0 | P92: 0 | Q92: 0 | S92: 0 | T92: 0 | U92: 0 | V92: 0 | W92: 0 | X92: 0 | Y92: 0
A93: DRAB1107 | B93: Closing value | C93: =SUM(C88+C89+C90+C91+C92) -> 243165146.8 | D93: 245142170.9 | E93: 267700986.6 | F93: 286194898.1 | G93: 251132755.2 | H93: 201377592.1 | I93: 176740548.3 | K93: =SUM(K88+K89+K90+K91+K92) -> 243165146.8 | L93: 245142170.9 | M93: 267700986.6 | N93: 286194898.1 | O93: 251132755.2 | P93: 201377592.1 | Q93: 176740548.3 | S93: =SUM(S88+S89+S90+S91+S92) -> -2718069.1 | T93: -6460079.99 | U93: -3105056.8 | V93: -1226231.71 | W93: -1234375.25 | X93: -425228.4 | Y93: 995377.24
B97: 3.3.3 - TOTAL DISAGGREGATED RAB ASSET VALUES
C98: Network services | K98: Standard control services | S98: Alternative control services
C99: =CONCATENATE(" VALUE Forecast ($0's, real ", dms_DollarReal, ")") -> VALUE Forecast ($0's, real June 2024) | K99: =CONCATENATE(" VALUE Forecast ($0's, real ", dms_DollarReal, ")") -> VALUE Forecast ($0's, real June 2024) | S99: =CONCATENATE(" VALUE Forecast ($0's, real ", dms_DollarReal, ")") -> VALUE Forecast ($0's, real June 2024)
C100: =CRCP_y4 -> 2022-23 | D100: =CRCP_y5 -> 2023-24 | E100: =FRCP_y1 -> 2024-25 | F100: =FRCP_y2 -> 2025-26 | G100: =FRCP_y3 -> 2026-27 | H100: =FRCP_y4 -> 2027-28 | I100: =FRCP_y5 -> 2028-29 | K100: =CRCP_y4 -> 2022-23 | L100: =CRCP_y5 -> 2023-24 | M100: =FRCP_y1 -> 2024-25 | N100: =FRCP_y2 -> 2025-26 | O100: =FRCP_y3 -> 2026-27 | P100: =FRCP_y4 -> 2027-28 | Q100: =FRCP_y5 -> 2028-29 | S100: =CRCP_y4 -> 2022-23 | T100: =CRCP_y5 -> 2023-24 | U100: =FRCP_y1 -> 2024-25 | V100: =FRCP_y2 -> 2025-26 | W100: =FRCP_y3 -> 2026-27 | X100: =FRCP_y4 -> 2027-28 | Y100: =FRCP_y5 -> 2028-29
A101: DRAB1201 | B101: Overhead network assets less than 33kV (wires and poles) | C101: 2217403396 | D101: 2240427184 | E101: 2262394981 | F101: 2289981380 | G101: 2319442425 | H101: 2348524149 | I101: 2374786927 | K101: 2217403396 | L101: 2240427184 | M101: 2262394981 | N101: 2289981380 | O101: 2319442425 | P101: 2348524149 | Q101: 2374786927 | S101: 0 | T101: 0 | U101: 0 | V101: 0 | W101: 0 | X101: 0 | Y101: 0
A102: DRAB1202 | B102: Underground network assets less than 33kV (cables) | C102: 5052275044 | D102: 5118299704 | E102: 5179771506 | F102: 5244268093 | G102: 5314403726 | H102: 5383452140 | I102: 5444432687 | K102: 5052275044 | L102: 5118299704 | M102: 5179771506 | N102: 5244268093 | O102: 5314403726 | P102: 5383452140 | Q102: 5444432687 | S102: 0 | T102: 0 | U102: 0 | V102: 0 | W102: 0 | X102: 0 | Y102: 0
A103: DRAB1203 | B103: Distribution substations including transformers | C103: 3154099059 | D103: 3114546585 | E103: 3076060742 | F103: 3038943142 | G103: 3001071519 | H103: 2960534199 | I103: 2914225370 | K103: 3154099059 | L103: 3114546585 | M103: 3076060742 | N103: 3038943142 | O103: 3001071519 | P103: 2960534199 | Q103: 2914225370 | S103: 0 | T103: 0 | U103: 0 | V103: 0 | W103: 0 | X103: 0 | Y103: 0
A104: DRAB1204 | B104: Overhead network assets 33kV and above (wires and towers / poles etc) | C104: 1048750498 | D104: 1094321022 | E104: 1134034530 | F104: 1122965272 | G104: 1110532854 | H104: 1100234853 | I104: 1094015142 | K104: 1048750498 | L104: 1094321022 | M104: 1134034530 | N104: 1122965272 | O104: 1110532854 | P104: 1100234853 | Q104: 1094015142 | S104: 0 | T104: 0 | U104: 0 | V104: 0 | W104: 0 | X104: 0 | Y104: 0
A105: DRAB1205 | B105: Underground network assets 33kV and above(cables, ducts etc) | C105: 1745218443 | D105: 1717847451 | E105: 1682017338 | F105: 1645674436 | G105: 1603799990 | H105: 1572218674 | I105: 1552710990 | K105: 1745218443 | L105: 1717847451 | M105: 1682017338 | N105: 1645674436 | O105: 1603799990 | P105: 1572218674 | Q105: 1552710990 | S105: 0 | T105: 0 | U105: 0 | V105: 0 | W105: 0 | X105: 0 | Y105: 0
A106: DRAB1206 | B106: Zone substations and transformers | C106: 4105279501 | D106: 4055108209 | E106: 4008253335 | F106: 3966861057 | G106: 3920826252 | H106: 3871497007 | I106: 3815359996 | K106: 4105279501 | L106: 4055108209 | M106: 4008253335 | N106: 3966861057 | O106: 3920826252 | P106: 3871497007 | Q106: 3815359996 | S106: 0 | T106: 0 | U106: 0 | V106: 0 | W106: 0 | X106: 0 | Y106: 0
A107: DRAB1207 | B107: Easements | C107: 104414418.6 | D107: 104747297.7 | E107: 105341433.6 | F107: 105705596 | G107: 105803495.8 | H107: 105901916.4 | I107: 106000123 | K107: 104414418.6 | L107: 104747297.7 | M107: 105341433.6 | N107: 105705596 | O107: 105803495.8 | P107: 105901916.4 | Q107: 106000123 | S107: 0 | T107: 0 | U107: 0 | V107: 0 | W107: 0 | X107: 0 | Y107: 0
A108: DRAB1208 | B108: Meters | C108: 0 | D108: 0 | E108: 0 | F108: 0 | G108: 0 | H108: 0 | I108: 0 | K108: 0 | L108: 0 | M108: 0 | N108: 0 | O108: 0 | P108: 0 | Q108: 0 | S108: 147173026.3 | T108: 124074523.5 | U108: 100065189.2 | V108: 75500050.21 | W108: 50934911.27 | X108: 26369772.33 | Y108: 7043601.43
A109: DRAB1209 | B109: “Other” assets with long lives | C109: 710957617.7 | D109: 750531653.1 | E109: 911248320.9 | F109: 1024585319 | G109: 1110963521 | H109: 1185582772 | I109: 1237944410 | K109: 710957617.7 | L109: 750531653.1 | M109: 911248320.9 | N109: 1024585319 | O109: 1110963521 | P109: 1185582772 | Q109: 1237944410 | S109: 21915324.2 | T109: 14518273.75 | U109: 10353551.7 | V109: 9099641.8 | W109: 7154462.22 | X109: 5963139.66 | Y109: 4496820.9
A110: DRAB1210 | B110: “Other” assets with short lives | C110: 209132693.1 | D110: 244153658.9 | E110: 256421578.8 | F110: 276947942.3 | G110: 268663826.7 | H110: 226255173.7 | I110: 189059070.2 | K110: 209132693.1 | L110: 244153658.9 | M110: 256421578.8 | N110: 276947942.3 | O110: 268663826.7 | P110: 226255173.7 | Q110: 189059070.2 | S110: -812145.37 | T110: -4589074.55 | U110: -4782568.4 | V110: -2165644.25 | W110: -1230303.48 | X110: -829801.82 | Y110: 285074.42
A111: DRAB13 | B111: Value of Capital Contributions or Contributed Assets (included in the above) | C111: 0 | D111: 0 | E111: 0 | F111: 0 | G111: 0 | H111: 0 | I111: 0 | K111: 0 | L111: 0 | M111: 0 | N111: 0 | O111: 0 | P111: 0 | Q111: 0 | S111: 0 | T111: 0 | U111: 0 | V111: 0 | W111: 0 | X111: 0 | Y111: 0
B114: 3.3.4 - ASSET LIVES
C115: Network services | K115: Standard control services | S115: Alternative control services
C116: Forecast ( years ) | K116: Forecast ( years ) | S116: Forecast ( years )
C117: =CRCP_y4 -> 2022-23 | D117: =CRCP_y5 -> 2023-24 | E117: =FRCP_y1 -> 2024-25 | F117: =FRCP_y2 -> 2025-26 | G117: =FRCP_y3 -> 2026-27 | H117: =FRCP_y4 -> 2027-28 | I117: =FRCP_y5 -> 2028-29 | K117: =CRCP_y4 -> 2022-23 | L117: =CRCP_y5 -> 2023-24 | M117: =FRCP_y1 -> 2024-25 | N117: =FRCP_y2 -> 2025-26 | O117: =FRCP_y3 -> 2026-27 | P117: =FRCP_y4 -> 2027-28 | Q117: =FRCP_y5 -> 2028-29 | S117: =CRCP_y4 -> 2022-23 | T117: =CRCP_y5 -> 2023-24 | U117: =FRCP_y1 -> 2024-25 | V117: =FRCP_y2 -> 2025-26 | W117: =FRCP_y3 -> 2026-27 | X117: =FRCP_y4 -> 2027-28 | Y117: =FRCP_y5 -> 2028-29
B118: Estimated service life of new assets
A119: DRAB1401 | B119: Overhead network assets less than 33kV (wires and poles) | C119: 55 | D119: 56 | E119: 55 | F119: 55 | G119: 55 | H119: 55 | I119: 55 | K119: 55 | L119: 56 | M119: 55 | N119: 55 | O119: 55 | P119: 55 | Q119: 55 | S119: 0 | T119: 0 | U119: 0 | V119: 0 | W119: 0 | X119: 0 | Y119: 0
A120: DRAB1402 | B120: Underground network assets less than 33kV (cables) | C120: 56 | D120: 56 | E120: 56 | F120: 56 | G120: 56 | H120: 56 | I120: 56 | K120: 56 | L120: 56 | M120: 56 | N120: 56 | O120: 56 | P120: 56 | Q120: 56 | S120: 0 | T120: 0 | U120: 0 | V120: 0 | W120: 0 | X120: 0 | Y120: 0
A121: DRAB1403 | B121: Distribution substations including transformers | C121: 47 | D121: 47 | E121: 47 | F121: 47 | G121: 47 | H121: 47 | I121: 47 | K121: 47 | L121: 47 | M121: 47 | N121: 47 | O121: 47 | P121: 47 | Q121: 47 | S121: 0 | T121: 0 | U121: 0 | V121: 0 | W121: 0 | X121: 0 | Y121: 0
A122: DRAB1404 | B122: Overhead network assets 33kV and above (wires and towers / poles etc) | C122: 48 | D122: 48 | E122: 48 | F122: 48 | G122: 48 | H122: 48 | I122: 48 | K122: 48 | L122: 48 | M122: 48 | N122: 48 | O122: 48 | P122: 48 | Q122: 48 | S122: 0 | T122: 0 | U122: 0 | V122: 0 | W122: 0 | X122: 0 | Y122: 0
A123: DRAB1405 | B123: Underground network assets 33kV and above(cables, ducts etc) | C123: 46 | D123: 46 | E123: 46 | F123: 46 | G123: 46 | H123: 46 | I123: 46 | K123: 46 | L123: 46 | M123: 46 | N123: 46 | O123: 46 | P123: 46 | Q123: 46 | S123: 0 | T123: 0 | U123: 0 | V123: 0 | W123: 0 | X123: 0 | Y123: 0
A124: DRAB1406 | B124: Zone substations and transformers | C124: 42 | D124: 42 | E124: 42 | F124: 42 | G124: 42 | H124: 42 | I124: 42 | K124: 42 | L124: 42 | M124: 42 | N124: 42 | O124: 42 | P124: 42 | Q124: 42 | S124: 0 | T124: 0 | U124: 0 | V124: 0 | W124: 0 | X124: 0 | Y124: 0
A125: DRAB1407 | B125: Meters | C125: 0 | D125: 0 | E125: 0 | F125: 0 | G125: 0 | H125: 0 | I125: 0 | K125: 0 | L125: 0 | M125: 0 | N125: 0 | O125: 0 | P125: 0 | Q125: 0 | S125: 20 | T125: 20 | U125: 20 | V125: 20 | W125: 20 | X125: 22 | Y125: 22
A126: DRAB1408 | B126: “Other” assets with long lives | C126: 20 | D126: 21 | E126: 25 | F126: 27 | G126: 29 | H126: 31 | I126: 33 | K126: 20 | L126: 21 | M126: 25 | N126: 27 | O126: 29 | P126: 31 | Q126: 33 | S126: 18 | T126: 20 | U126: 18 | V126: 19 | W126: 18 | X126: 18 | Y126: 18
A127: DRAB1409 | B127: “Other” assets with short lives | C127: 5 | D127: 5 | E127: 6 | F127: 6 | G127: 6 | H127: 6 | I127: 6 | K127: 5 | L127: 5 | M127: 6 | N127: 6 | O127: 6 | P127: 6 | Q127: 6 | S127: 5 | T127: 5 | U127: 5 | V127: 5 | W127: 5 | X127: 5 | Y127: 5
B128: Estimated residual service life
A129: DRAB1501 | B129: Overhead network assets less than 33kV (wires and poles) | C129: 40 | D129: 40 | E129: 39 | F129: 39 | G129: 39 | H129: 38 | I129: 38 | K129: 40 | L129: 40 | M129: 39 | N129: 39 | O129: 39 | P129: 38 | Q129: 38 | S129: 0 | T129: 0 | U129: 0 | V129: 0 | W129: 0 | X129: 0 | Y129: 0
A130: DRAB1502 | B130: Underground network assets less than 33kV (cables) | C130: 41 | D130: 40 | E130: 40 | F130: 40 | G130: 39 | H130: 39 | I130: 38 | K130: 41 | L130: 40 | M130: 40 | N130: 40 | O130: 39 | P130: 39 | Q130: 38 | S130: 0 | T130: 0 | U130: 0 | V130: 0 | W130: 0 | X130: 0 | Y130: 0
A131: DRAB1503 | B131: Distribution substations including transformers | C131: 29 | D131: 29 | E131: 28 | F131: 27 | G131: 27 | H131: 27 | I131: 26 | K131: 29 | L131: 29 | M131: 28 | N131: 27 | O131: 27 | P131: 27 | Q131: 26 | S131: 0 | T131: 0 | U131: 0 | V131: 0 | W131: 0 | X131: 0 | Y131: 0
A132: DRAB1504 | B132: Overhead network assets 33kV and above (wires and towers / poles etc) | C132: 30 | D132: 30 | E132: 30 | F132: 29 | G132: 29 | H132: 28 | I132: 28 | K132: 30 | L132: 30 | M132: 30 | N132: 29 | O132: 29 | P132: 28 | Q132: 28 | S132: 0 | T132: 0 | U132: 0 | V132: 0 | W132: 0 | X132: 0 | Y132: 0
A133: DRAB1505 | B133: Underground network assets 33kV and above (cables, ducts etc) | C133: 30 | D133: 29 | E133: 28 | F133: 28 | G133: 27 | H133: 26 | I133: 26 | K133: 30 | L133: 29 | M133: 28 | N133: 28 | O133: 27 | P133: 26 | Q133: 26 | S133: 0 | T133: 0 | U133: 0 | V133: 0 | W133: 0 | X133: 0 | Y133: 0
A134: DRAB1506 | B134: Zone substations and transformers | C134: 27 | D134: 26 | E134: 26 | F134: 25 | G134: 24 | H134: 24 | I134: 23 | K134: 27 | L134: 26 | M134: 26 | N134: 25 | O134: 24 | P134: 24 | Q134: 23 | S134: 0 | T134: 0 | U134: 0 | V134: 0 | W134: 0 | X134: 0 | Y134: 0
A135: DRAB1507 | B135: Meters | C135: 0 | D135: 0 | E135: 0 | F135: 0 | G135: 0 | H135: 0 | I135: 0 | K135: 0 | L135: 0 | M135: 0 | N135: 0 | O135: 0 | P135: 0 | Q135: 0 | S135: 6 | T135: 5 | U135: 4 | V135: 3 | W135: 2 | X135: 1 | Y135: 0
A136: DRAB1508 | B136: “Other” assets with long lives | C136: 18 | D136: 20 | E136: 21 | F136: 22 | G136: 23 | H136: 24 | I136: 25 | K136: 18 | L136: 20 | M136: 21 | N136: 22 | O136: 23 | P136: 24 | Q136: 25 | S136: 5 | T136: 4 | U136: 4 | V136: 5 | W136: 4 | X136: 4 | Y136: 3
A137: DRAB1509 | B137: “Other” assets with short lives | C137: 4 | D137: 4 | E137: 4 | F137: 4 | G137: 4 | H137: 4 | I137: 4 | K137: 4 | L137: 4 | M137: 4 | N137: 4 | O137: 4 | P137: 4 | Q137: 4 | S137: 3 | T137: 5 | U137: 3 | V137: 2 | W137: 2 | X137: 1 | Y137: 1

Sheet 3.4 Operational data
B1: =INDEX(dms_Worksheet_List,MATCH(dms_Model,dms_Model_List)) -> REGULATORY REPORTING STATEMENT
B2: =INDEX(dms_TradingNameFull_List,MATCH(dms_TradingName,dms_TradingName_List)) -> Ausgrid
B3: =CONCATENATE("REGULATORY PERIOD FROM ", FRCP_y1," TO ",dms_MultiYear_FinalYear_Result) -> REGULATORY PERIOD FROM 2024-25 TO 2028-29
B4: 3.4 OPERATIONAL DATA
B6: There are TWO tables on this worksheet. Each table has been grouped for ease of navigation. See the Instructions sheet on how to group or ungroup tables.
B8: 3.4.1 - ENERGY DELIVERY
D9: Standard control services
D10: Forecast
C11: Units | D11: =CRCP_y4 -> 2022-23 | E11: =CRCP_y5 -> 2023-24 | F11: =FRCP_y1 -> 2024-25 | G11: =FRCP_y2 -> 2025-26 | H11: =FRCP_y3 -> 2026-27 | I11: =FRCP_y4 -> 2027-28 | J11: =FRCP_y5 -> 2028-29
A12: DOPED01 | B12: TOTAL ENERGY DELIVERED
B13: 3.4.1.1 - Energy grouping - delivery by chargeable quantity
A14: DOPED0201 | B14: Energy Delivery where time of use is not a determinant | C14: GWh | D14: 4297 | E14: 4044 | F14: 3750 | G14: 3452 | H14: 3055 | I14: 2649 | J14: 2224
A15: DOPED0202 | B15: Energy Delivery at On-peak times | C15: GWh | D15: 2698 | E15: 2700 | F15: 3104 | G15: 3310 | H15: 3555 | I15: 3735 | J15: 3941
A16: DOPED0203 | B16: Energy Delivery at Shoulder times | C16: GWh | D16: 7815 | E16: 7833 | F16: 0 | G16: 0 | H16: 0 | I16: 0 | J16: 0
A17: DOPED0204 | B17: Energy Delivery at Off-peak times | C17: GWh | D17: 8793 | E17: 8779 | F17: 17003 | G17: 17998 | H17: 19175 | I17: 20191 | J17: 21006
A18: DOPED0205 | B18: Controlled load energy deliveries | C18: GWh | D18: 960 | E18: 952 | F18: 938 | G18: 927 | H18: 916 | I18: 907 | J18: 893
A19: DOPED0206 | B19: Energy Delivery to unmetered supplies | C19: GWh | D19: 143 | E19: 141 | F19: 136 | G19: 131 | H19: 133 | I19: 136 | J19: 138
B20: 3.4.1.2 - Energy - received from TNSP and other DNSPs by time of receipt
A21: DOPED0301 | B21: Energy into DNSP network at On-peak times | C21: GWh | D21: 3301 | E21: 3209 | F21: 3947 | G21: 4071 | H21: 4216 | I21: 4295 | J21: 4395
A22: DOPED0302 | B22: Energy into DNSP network at Shoulder times | C22: GWh | D22: 9737 | E22: 9370 | F22: 0 | G22: 0 | H22: 0 | I22: 0 | J22: 0
A23: DOPED0303 | B23: Energy into DNSP network at Off-peak times | C23: GWh | D23: 11171 | E23: 11006 | F23: 19966 | G23: 20646 | H23: 21461 | I23: 22118 | J23: 22548
A24: DOPED0304 | B24: Energy received from TNSP and other DNSPs not included in the above categories | C24: GWh | D24: 0 | E24: 0 | F24: 0 | G24: 0 | H24: 0 | I24: 0 | J24: 0
B25: 3.4.1.3 - Energy - received into DNSP system from embedded generation by time of receipt
A26: DOPED0401 | B26: Energy into DNSP network at On-peak times from non-residential embedded generation | C26: GWh | D26: 42 | E26: 75 | F26: 61 | G26: 64 | H26: 66 | I26: 69 | J26: 70
A27: DOPED0402 | B27: Energy into DNSP network at Shoulder times from non-residential embedded generation | C27: GWh | D27: 123 | E27: 199 | F27: 0 | G27: 0 | H27: 0 | I27: 0 | J27: 0
A28: DOPED0403 | B28: Energy into DNSP network at Off-peak times from non-residential embedded generation | C28: GWh | D28: 195 | E28: 249 | F28: 484 | G28: 508 | H28: 528 | I28: 546 | J28: 559
A29: DOPED0404 | B29: Energy received from embedded generation not included in above categories from non-residential embedded generation | C29: GWh | D29: 0 | E29: 0 | F29: 0 | G29: 0 | H29: 0 | I29: 0 | J29: 0
A30: DOPED0405 | B30: Energy into DNSP network at On-peak times from residential embedded generation | C30: GWh | D30: 130 | E30: 152 | F30: 170 | G30: 180 | H30: 188 | I30: 194 | J30: 201
A31: DOPED0406 | B31: Energy into DNSP network at Shoulder times from residential embedded generation | C31: GWh | D31: 928 | E31: 1085 | F31: 0 | G31: 0 | H31: 0 | I31: 0 | J31: 0
A32: DOPED0407 | B32: Energy into DNSP network at Off-peak times from residential embedded generation | C32: GWh | D32: 3 | E32: 3 | F32: 1216 | G32: 1287 | H32: 1343 | I32: 1388 | J32: 1436
A33: DOPED0408 | B33: Energy received from embedded generation not included in above categories from residential embedded generation | C33: GWh | D33: 0 | E33: 0 | F33: 0 | G33: 0 | H33: 0 | I33: 0 | J33: 0
B34: 3.4.1.4 - Energy grouping - customer type or class
A35: DOPED0501 | B35: Residential customers energy deliveries | C35: GWh | D35: 8697 | E35: 8540 | F35: 8437 | G35: 8528 | H35: 8654 | I35: 8805 | J35: 8931
A36: DOPED0502 | B36: Non residential customers not on demand tariffs energy deliveries | C36: GWh | D36: 1342 | E36: 1299 | F36: 1298 | G36: 1344 | H36: 1378 | I36: 1411 | J36: 1453
A37: DOPED0503 | B37: Non-residential low voltage demand tariff customers energy deliveries | C37: GWh | D37: 8923 | E37: 8842 | F37: 9103 | G37: 9524 | H37: 9881 | I37: 10211 | J37: 10452
A38: DOPED0504 | B38: Non-residential high voltage demand tariff customers energy deliveries | C38: GWh | D38: 5600 | E38: 5625 | F38: 5958 | G38: 6290 | H38: 6786 | I38: 7056 | J38: 7228
A39: DOPED0505 | B39: Other Customer Class Energy Deliveries | C39: GWh | D39: 143 | E39: 141 | F39: 136 | G39: 131 | H39: 133 | I39: 136 | J39: 138
B43: 3.4.3 - SYSTEM DEMAND
D44: Standard control services
D45: Forecast
C46: Units | D46: =CRCP_y4 -> 2022-23 | E46: =CRCP_y5 -> 2023-24 | F46: =FRCP_y1 -> 2024-25 | G46: =FRCP_y2 -> 2025-26 | H46: =FRCP_y3 -> 2026-27 | I46: =FRCP_y4 -> 2027-28 | J46: =FRCP_y5 -> 2028-29
B47: 3.4.3.1 - Annual system maximum demand characteristics at the zone substation level – MW measure
A48: DOPSD0102 | B48: Non–coincident Summated Weather Adjusted System Annual Maximum Demand 10% POE | C48: MW | D48: 6157 | E48: 6263 | F48: 6311 | G48: 6333 | H48: 6378 | I48: 6418 | J48: 6451
A49: DOPSD0103 | B49: Non–coincident Summated Weather Adjusted System Annual Maximum Demand 50% POE | C49: MW | D49: 5664 | E49: 5781 | F49: 5835 | G49: 5860 | H49: 5904 | I49: 5944 | J49: 5978
A50: DOPSD0105 | B50: Coincident Weather Adjusted System Annual Maximum Demand 10% POE | C50: MW | D50: 5477 | E50: 5557 | F50: 5580 | G50: 5600 | H50: 5635 | I50: 5670 | J50: 5691
A51: DOPSD0106 | B51: Coincident Weather Adjusted System Annual Maximum Demand 50% POE | C51: MW | D51: 4939 | E51: 5021 | F51: 5044 | G51: 5064 | H51: 5099 | I51: 5135 | J51: 5156
B52: 3.4.3.2 - Annual system maximum demand characteristics at the transmission connection point – MW measure
A53: DOPSD0108 | B53: Non–coincident Summated Weather Adjusted System Annual Maximum Demand 10% POE | C53: MW | D53: 6613 | E53: 6751 | F53: 6853 | G53: 6934 | H53: 7015 | I53: 7092 | J53: 7135
A54: DOPSD0109 | B54: Non–coincident Summated Weather Adjusted System Annual Maximum Demand 50% POE | C54: MW | D54: 6104 | E54: 6252 | F54: 6359 | G54: 6444 | H54: 6525 | I54: 6601 | J54: 6644
A55: DOPSD0111 | B55: Coincident Weather Adjusted System Annual Maximum Demand 10% POE | C55: MW | D55: 5866 | E55: 5943 | F55: 5999 | G55: 6056 | H55: 6119 | I55: 6174 | J55: 6199
A56: DOPSD0112 | B56: Coincident Weather Adjusted System Annual Maximum Demand 50% POE | C56: MW | D56: 5324 | E56: 5402 | F56: 5459 | G56: 5516 | H56: 5579 | I56: 5634 | J56: 5660
B57: 3.4.3.3 - Annual system maximum demand characteristics at the zone substation level – MVA measure
A58: DOPSD0202 | B58: Non–coincident Summated Weather Adjusted System Annual Maximum Demand 10% POE | C58: MVA | D58: 6292 | E58: 6400 | F58: 6449 | G58: 6472 | H58: 6517 | I58: 6558 | J58: 6593
A59: DOPSD0203 | B59: Non–coincident Summated Weather Adjusted System Annual Maximum Demand 50% POE | C59: MVA | D59: 5787 | E59: 5906 | F59: 5962 | G59: 5986 | H59: 6032 | I59: 6073 | J59: 6107
A60: DOPSD0205 | B60: Coincident Weather Adjusted System Annual Maximum Demand 10% POE | C60: MVA | D60: 5624 | E60: 5706 | F60: 5730 | G60: 5750 | H60: 5786 | I60: 5823 | J60: 5845
A61: DOPSD0206 | B61: Coincident Weather Adjusted System Annual Maximum Demand 50% POE | C61: MVA | D61: 5070 | E61: 5154 | F61: 5179 | G61: 5199 | H61: 5235 | I61: 5272 | J61: 5293
B62: 3.4.3.4 - Annual system maximum demand characteristics at the transmission connection point – MVA measure
A63: DOPSD0208 | B63: Non–coincident Summated Weather Adjusted System Annual Maximum Demand 10% POE | C63: MVA | D63: 6724 | E63: 6867 | F63: 6973 | G63: 7058 | H63: 7139 | I63: 7219 | J63: 7263
A64: DOPSD0209 | B64: Non–coincident Summated Weather Adjusted System Annual Maximum Demand 50% POE | C64: MVA | D64: 6216 | E64: 6366 | F64: 6478 | G64: 6565 | H64: 6650 | I64: 6728 | J64: 6773
A65: DOPSD0211 | B65: Coincident Weather Adjusted System Annual Maximum Demand 10% POE | C65: MVA | D65: 5985 | E65: 6068 | F65: 6128 | G65: 6184 | H65: 6246 | I65: 6304 | J65: 6331
A66: DOPSD0212 | B66: Coincident Weather Adjusted System Annual Maximum Demand 50% POE | C66: MVA | D66: 5439 | E66: 5520 | F66: 5581 | G66: 5639 | H66: 5705 | I66: 5764 | J66: 5790
B67: 3.4.3.5 - Power factor conversion between MVA and MW
A68: DOPSD0301 | B68: Average overall network power factor conversion between MVA and MW | C68: Factor | D68: 0.978745464 | E68: 0.978835083 | F68: 0.9786984233 | G68: 0.9789508854 | H68: 0.9787798408 | I68: 0.978758439 | J68: 0.9788766989
A69: DOPSD0302 | B69: Average power factor conversion for low voltage distribution lines | C69: Factor | D69: 0.9651 | E69: 0.9651 | F69: 0.9651 | G69: 0.9651 | H69: 0.9651 | I69: 0.9651 | J69: 0.9651
A70: DOPSD0303 | B70: Average power factor conversion for 3.3 kV lines | C70: Factor
A71: DOPSD0304 | B71: Average power factor conversion for 6.6 kV lines | C71: Factor
A72: DOPSD0305 | B72: Average power factor conversion for 7.6 kV lines | C72: Factor
A73: DOPSD0306 | B73: Average power factor conversion for 11 kV lines | C73: Factor | D73: 0.9845 | E73: 0.9845 | F73: 0.9845 | G73: 0.9844 | H73: 0.9844 | I73: 0.9844 | J73: 0.9844
A74: DOPSD0307 | B74: Average power factor conversion for SWER lines | C74: Factor | D74: 0.9 | E74: 0.9 | F74: 0.9 | G74: 0.9 | H74: 0.9 | I74: 0.9 | J74: 0.9
A75: DOPSD0308 | B75: Average power factor conversion for 22 kV lines | C75: Factor | D75: 0.9 | E75: 0.9 | F75: 0.9 | G75: 0.9 | H75: 0.9 | I75: 0.9 | J75: 0.9
A76: DOPSD0309 | B76: Average power factor conversion for 33 kV lines | C76: Factor | D76: 0.9789 | E76: 0.9785 | F76: 0.9775 | G76: 0.9778 | H76: 0.977 | I76: 0.977 | J76: 0.9768
A77: DOPSD0310 | B77: Average power factor conversion for 44 kV lines | C77: Factor
A78: DOPSD0311 | B78: Average power factor conversion for 66 kV lines | C78: Factor | D78: 0.9872 | E78: 0.9879 | F78: 0.9879 | G78: 0.9879 | H78: 0.9879 | I78: 0.9879 | J78: 0.9879
A79: DOPSD0312 | B79: Average power factor conversion for 110 kV lines | C79: Factor
A80: DOPSD0313 | B80: Average power factor conversion for 132 kV lines | C80: Factor | D80: 0.9599 | E80: 0.9625 | F80: 0.9701 | G80: 0.9663 | H80: 0.965 | I80: 0.9632 | J80: 0.9645
A81: DOPSD0314 | B81: Average power factor conversion for 220 kV lines | C81: Factor
B82: 3.4.3.6 - Demand supplied (for customers charged on this basis) – MW measure
A83: DOPSD0401 | B83: Summated Chargeable Contracted Maximum Demand | C83: MW
A84: DOPSD0402 | B84: Summated Chargeable Measured Maximum Demand | C84: MW | D84: 2047 | E84: 2392 | F84: 2380 | G84: 2772 | H84: 3271 | I84: 3782 | J84: 4286
B85: 3.4.3.7 - Demand supplied (for customers charged on this basis) – MVA measure
A86: DOPSD0403 | B86: Summated Chargeable Contracted Maximum Demand | C86: MVA | D86: 0 | E86: 0 | F86: 0 | G86: 0 | H86: 0 | I86: 0 | J86: 0
A87: DOPSD0404 | B87: Summated Chargeable Measured Maximum Demand | C87: MVA | D87: 3399 | E87: 3467 | F87: 3587 | G87: 3746 | H87: 3883 | I87: 3984 | J87: 4062

Sheet 3.5 Physical assets
B1: =INDEX(dms_Worksheet_List,MATCH(dms_Model,dms_Model_List)) -> REGULATORY REPORTING STATEMENT
B2: =INDEX(dms_TradingNameFull_List,MATCH(dms_TradingName,dms_TradingName_List)) -> Ausgrid
B3: =CONCATENATE("REGULATORY PERIOD FROM ", FRCP_y1," TO ",dms_MultiYear_FinalYear_Result) -> REGULATORY PERIOD FROM 2024-25 TO 2028-29
B4: 3.5 PHYSICAL ASSETS DATA
B6: There are THREE tables on this worksheet. Each table has been grouped (and sub-grouped) for ease of navigation. See the Instructions sheet on how to group or ungroup tables.
B8: 3.5.1 - NETWORK CAPACITIES VARIABLES
D9: Forecast
C10: Units | D10: 2022-23 | E10: 2023-24 | F10: 2024-25 | G10: 2025-26 | H10: 2026-27 | I10: 2027-28 | J10: 2028-29
B11: CIRCUIT LENGTH
B12: 3.5.1.1 - Overhead network length of circuit at each voltage
A13: DPA0101 | B13: Overhead low voltage distribution | C13: km | D13: 13086 | E13: 13087 | F13: 13091 | G13: 13093 | H13: 13090 | I13: 13094 | J13: 13095
A14: DPA0102 | B14: Overhead 2.2 kV | C14: km | D14: 0 | E14: 0 | F14: 0 | G14: 0 | H14: 0 | I14: 0 | J14: 0
A15: DPA0103 | B15: Overhead 7.6 kV | C15: km | D15: 0 | E15: 0 | F15: 0 | G15: 0 | H15: 0 | I15: 0 | J15: 0
A16: DPA0104 | B16: Overhead 11 kV | C16: km | D16: 9759 | E16: 9753 | F16: 9750 | G16: 9744 | H16: 9741 | I16: 9736 | J16: 9732
A17: DPA0105 | B17: Overhead SWER | C17: km | D17: 119 | E17: 119 | F17: 119 | G17: 119 | H17: 119 | I17: 119 | J17: 119
A18: DPA0106 | B18: Overhead 22 kV | C18: km | D18: 126 | E18: 126 | F18: 126 | G18: 126 | H18: 126 | I18: 126 | J18: 126
A19: DPA0107 | B19: Overhead 33 kV | C19: km | D19: 1281.58 | E19: 1263.73 | F19: 1263.73 | G19: 1263.73 | H19: 1263.93 | I19: 1263.93 | J19: 1263.93
A20: DPA0108 | B20: Overhead 44 kV | C20: km | D20: 0 | E20: 0 | F20: 0 | G20: 0 | H20: 0 | I20: 0 | J20: 0
A21: DPA0109 | B21: Overhead 66 kV | C21: km | D21: 474.16 | E21: 476.26 | F21: 476.26 | G21: 476.26 | H21: 476.26 | I21: 476.26 | J21: 476.26
A22: DPA0110 | B22: Overhead 132 kV | C22: km | D22: 1092.34 | E22: 1092.34 | F22: 1092.34 | G22: 1091.88 | H22: 1091.88 | I22: 1091.88 | J22: 1091.88
A23: DPA0111 | B23: Overhead 6.6kv | C23: km | D23: 0 | E23: 0 | F23: 0 | G23: 0 | H23: 0 | I23: 0 | J23: 0
A24: DPA0112 | B24: Overhead 110kV | C24: km | D24: 0 | E24: 0 | F24: 0 | G24: 0 | H24: 0 | I24: 0 | J24: 0
A25: DPA0113 | B25: Overhead 220kV | C25: km | D25: 0 | E25: 0 | F25: 0 | G25: 0 | H25: 0 | I25: 0 | J25: 0
A26: DPA0114 | B26: Other | C26: km | D26: 0 | E26: 0 | F26: 0 | G26: 0 | H26: 0 | I26: 0 | J26: 0
A27: DPA01 | B27: Total overhead circuit km | D27: =SUM(D13:D26) -> 25938.08 | E27: 25917.33 | F27: 25918.33 | G27: 25913.87 | H27: 25908.07 | I27: 25907.07 | J27: 25904.07
B28: 3.5.1.2 - Underground network circuit length at each voltage
A29: DPA0201 | B29: Underground low voltage distribution | C29: km | D29: 7047 | E29: 7175 | F29: 7302 | G29: 7439 | H29: 7572 | I29: 7701 | J29: 7834
A30: DPA0202 | B30: Underground 5 kV | C30: km | D30: 0 | E30: 0 | F30: 0 | G30: 0 | H30: 0 | I30: 0 | J30: 0
A31: DPA0203 | B31: Underground 6.6 Kv | C31: km | D31: 0 | E31: 0 | F31: 0 | G31: 0 | H31: 0 | I31: 0 | J31: 0
A32: DPA0204 | B32: Underground 7.6 kV | C32: km | D32: 0 | E32: 0 | F32: 0 | G32: 0 | H32: 0 | I32: 0 | J32: 0
A33: DPA0205 | B33: Underground 11 kV | C33: km | D33: 8770 | E33: 8850 | F33: 8931 | G33: 9015 | H33: 9101 | I33: 9182 | J33: 9266
A34: DPA0206 | B34: Underground SWER | C34: km | D34: 0 | E34: 0 | F34: 0 | G34: 0 | H34: 0 | I34: 0 | J34: 0
A35: DPA0207 | B35: Underground 22 kV | C35: km | D35: 0 | E35: 0 | F35: 0 | G35: 0 | H35: 0 | I35: 0 | J35: 0
A36: DPA0208 | B36: Underground 33 kV | C36: km | D36: 587.95 | E36: 550.27 | F36: 552.29 | G36: 554.31 | H36: 543.39 | I36: 541.52 | J36: 541.52
A37: DPA0209 | B37: Underground 66 kV | C37: km | D37: 9.58 | E37: 9.58 | F37: 9.58 | G37: 9.58 | H37: 9.58 | I37: 9.58 | J37: 9.58
A38: DPA0210 | B38: Underground 110 kV | C38: km | D38: 0 | E38: 0 | F38: 0 | G38: 0 | H38: 0 | I38: 0 | J38: 0
A39: DPA0211 | B39: Underground 132 kV | C39: km | D39: 590.28 | E39: 569.34 | F39: 538.17 | G39: 527.35 | H39: 527.35 | I39: 527.35 | J39: 472.92
A40: DPA0212 | B40: Other | C40: km | D40: 0 | E40: 0 | F40: 0 | G40: 0 | H40: 0 | I40: 0 | J40: 0
A41: DPA02 | B41: Total underground circuit km | D41: =SUM(D29:D40) -> 17004.81 | E41: 17154.19 | F41: 17333.04 | G41: 17545.24 | H41: 17753.32 | I41: 17961.45 | J41: 18124.02
B43: CIRCUIT CAPACITY MVA
B44: 3.5.1.3 - Estimated overhead network weighted average MVA capacity by voltage class
A45: DPA0301 | B45: Overhead low voltage distribution | C45: MVA | D45: 0.241 | E45: 0.244 | F45: 0.248 | G45: 0.251 | H45: 0.255 | I45: 0.258 | J45: 0.262
A46: DPA0302 | B46: Overhead 6.6 kV | C46: MVA | D46: 0 | E46: 0 | F46: 0 | G46: 0 | H46: 0 | I46: 0 | J46: 0
A47: DPA0303 | B47: Overhead 7.6 kV | C47: MVA | D47: 0 | E47: 0 | F47: 0 | G47: 0 | H47: 0 | I47: 0 | J47: 0
A48: DPA0304 | B48: Overhead 11 kV | C48: MVA | D48: 4.16 | E48: 4.198 | F48: 4.237 | G48: 4.275 | H48: 4.313 | I48: 4.351 | J48: 4.389
A49: DPA0305 | B49: Overhead SWER | C49: MVA | D49: 0.352 | E49: 0.352 | F49: 0.352 | G49: 0.352 | H49: 0.352 | I49: 0.352 | J49: 0.352
A50: DPA0306 | B50: Overhead 22 kV | C50: MVA | D50: 2.726 | E50: 2.726 | F50: 2.726 | G50: 2.726 | H50: 2.726 | I50: 2.726 | J50: 2.726
A51: DPA0307 | B51: Overhead 33 kV | C51: MVA | D51: 29.704 | E51: 29.889 | F51: 30.069 | G51: 30.252 | H51: 30.434 | I51: 30.616 | J51: 30.799
A52: DPA0308 | B52: Overhead 44 kV | C52: MVA | D52: 0 | E52: 0 | F52: 0 | G52: 0 | H52: 0 | I52: 0 | J52: 0
A53: DPA0309 | B53: Overhead 66 kV | C53: MVA | D53: 72.119 | E53: 72.098 | F53: 72.078 | G53: 72.058 | H53: 72.038 | I53: 72.017 | J53: 71.997
A54: DPA0310 | B54: Overhead 110 kV | C54: MVA | D54: 0 | E54: 0 | F54: 0 | G54: 0 | H54: 0 | I54: 0 | J54: 0
A55: DPA0311 | B55: Overhead 132 kV | C55: MVA | D55: 220.616 | E55: 220.616 | F55: 220.616 | G55: 220.616 | H55: 220.616 | I55: 220.616 | J55: 220.616
A56: DPA0312 | B56: Overhead 220 kV | C56: MVA | D56: 0 | E56: 0 | F56: 0 | G56: 0 | H56: 0 | I56: 0 | J56: 0
A57: DPA0313 | B57: Other | C57: MVA | D57: 0 | E57: 0 | F57: 0 | G57: 0 | H57: 0 | I57: 0 | J57: 0
B58: 3.5.1.4 - Estimated underground network weighted average MVA capacity by voltage class
A59: DPA0401 | B59: Underground low voltage distribution | C59: MVA | D59: 0.236 | E59: 0.236 | F59: 0.236 | G59: 0.236 | H59: 0.236 | I59: 0.235 | J59: 0.235
A60: DPA0402 | B60: Underground 5 kV | C60: MVA | D60: 0 | E60: 0 | F60: 0 | G60: 0 | H60: 0 | I60: 0 | J60: 0
A61: DPA0403 | B61: Underground 6.6 kV | C61: MVA | D61: 0 | E61: 0 | F61: 0 | G61: 0 | H61: 0 | I61: 0 | J61: 0
A62: DPA0404 | B62: Underground 7.6 kV | C62: MVA | D62: 0 | E62: 0 | F62: 0 | G62: 0 | H62: 0 | I62: 0 | J62: 0
A63: DPA0405 | B63: Underground 11 kV | C63: MVA | D63: 6.461 | E63: 6.387 | F63: 6.312 | G63: 6.238 | H63: 6.164 | I63: 6.09 | J63: 6.016
A64: DPA0406 | B64: Underground SWER | C64: MVA | D64: 0 | E64: 0 | F64: 0 | G64: 0 | H64: 0 | I64: 0 | J64: 0
A65: DPA0407 | B65: Underground 12.7 kV | C65: MVA | D65: 0 | E65: 0 | F65: 0 | G65: 0 | H65: 0 | I65: 0 | J65: 0
A66: DPA0408 | B66: Underground 22 kV | C66: MVA | D66: 0 | E66: 0 | F66: 0 | G66: 0 | H66: 0 | I66: 0 | J66: 0
A67: DPA0409 | B67: Underground 33 kV | C67: MVA | D67: 25.784 | E67: 25.589 | F67: 25.604 | G67: 25.675 | H67: 25.667 | I67: 25.665 | J67: 25.665
A68: DPA0410 | B68: Underground 66 kV | C68: MVA | D68: 98.969 | E68: 98.969 | F68: 98.969 | G68: 98.969 | H68: 98.969 | I68: 98.969 | J68: 98.969
A69: DPA0411 | B69: Underground 110 kV | C69: MVA | D69: 0 | E69: 0 | F69: 0 | G69: 0 | H69: 0 | I69: 0 | J69: 0
A70: DPA0412 | B70: Underground 132 kV | C70: MVA | D70: 185.141 | E70: 185.173 | F70: 189.889 | G70: 193.583 | H70: 193.583 | I70: 193.583 | J70: 205.012
A71: DPA0413 | B71: Other | C71: MVA | D71: 0 | E71: 0 | F71: 0 | G71: 0 | H71: 0 | I71: 0 | J71: 0
B75: 3.5.2 - TRANSFORMER CAPACITIES VARIABLES
D76: VOLUMES
C77: Units | D77: =CRCP_y4 -> 2022-23 | E77: =CRCP_y5 -> 2023-24 | F77: =FRCP_y1 -> 2024-25 | G77: =FRCP_y2 -> 2025-26 | H77: =FRCP_y3 -> 2026-27 | I77: =FRCP_y4 -> 2027-28 | J77: =FRCP_y5 -> 2028-29
B78: Distribution transformer total installed capacity
A79: DPA0501 | B79: Distribution transformer capacity owned by utility | C79: MVA | D79: 16721 | E79: 16955 | F79: 17182 | G79: 17423 | H79: 17671 | I79: 17901 | J79: 18141
A80: DPA0502 | B80: Distribution transformer capacity owned by High Voltage Customers | C80: MVA | D80: 1948 | E80: 2041 | F80: 2111 | G80: 2172 | H80: 2222 | I80: 2257 | J80: 2271
A81: DPA0503 | B81: Cold spare capacity included in DPA0501 | C81: MVA | D81: 649 | E81: 691 | F81: 699 | G81: 752 | H81: 797 | I81: 825 | J81: 863
B82: Zone substation transformer capacity
A83: DPA0601 | B83: Total installed capacity for first step transformation where there are two steps to reach distribution voltage | C83: MVA | D83: 7741 | E83: 7741 | F83: 7741 | G83: 7861 | H83: 7861 | I83: 7861 | J83: 7861
A84: DPA0602 | B84: Total installed capacity for second step transformation where there are two steps to reach distribution voltage | C84: MVA | D84: 5651 | E84: 5621 | F84: 5621 | G84: 5593 | H84: 5593 | I84: 5593 | J84: 5547
A85: DPA0603 | B85: Total zone substation transformer capacity where there is only a single step transformation to reach distribution voltage | C85: MVA | D85: 7718 | E85: 7519 | F85: 7519 | G85: 7519 | H85: 7519 | I85: 7519 | J85: 7519
A86: DPA0604 | B86: Total zone substation transformer capacity | C86: MVA | D86: 22689 | E86: 22690 | F86: 22690 | G86: 22782 | H86: 22782 | I86: 22782 | J86: 22782
A87: DPA0605 | B87: Cold spare capacity of zone substation transformers included in DPA0604 | C87: MVA | D87: 1579 | E87: 1809 | F87: 1809 | G87: 1809 | H87: 1809 | I87: 1809 | J87: 1855
B91: 3.5.3 - PUBLIC LIGHTING
D92: VOLUMES
C93: Units | D93: =CRCP_y4 -> 2022-23 | E93: =CRCP_y5 -> 2023-24 | F93: =FRCP_y1 -> 2024-25 | G93: =FRCP_y2 -> 2025-26 | H93: =FRCP_y3 -> 2026-27 | I93: =FRCP_y4 -> 2027-28 | J93: =FRCP_y5 -> 2028-29
A94: DPA0701 | B94: Public lighting luminaires | C94: 0's | D94: 257566 | E94: 258592 | F94: 259618 | G94: 260644 | H94: 261670 | I94: 262696 | J94: 263722
A95: DPA0702 | B95: Public lighting poles | C95: 0's | D95: 252964 | E95: 253785 | F95: 254606 | G95: 255427 | H95: 256248 | I95: 257069 | J95: 257890

Sheet 3.6 Quality of service
B1: =INDEX(dms_Worksheet_List,MATCH(dms_Model,dms_Model_List)) -> REGULATORY REPORTING STATEMENT
B2: =INDEX(dms_TradingNameFull_List,MATCH(dms_TradingName,dms_TradingName_List)) -> Ausgrid
B3: =CONCATENATE("REGULATORY PERIOD FROM ", FRCP_y1," TO ",dms_MultiYear_FinalYear_Result) -> REGULATORY PERIOD FROM 2024-25 TO 2028-29
B4: 3.6 QUALITY OF SERVICE DATA
B6: 3.6.2 - ENERGY NOT SUPPLIED
D7: FORECAST
C8: Units | D8: 2022-23 | E8: 2023-24 | F8: 2024-25 | G8: 2025-26 | H8: 2026-27 | I8: 2027-28 | J8: 2028-29
A9: DQS0201 | B9: Energy Not Supplied (planned) | C9: GWh | D9: 4.09 | E9: 4.09 | F9: 4.09 | G9: 4.09 | H9: 4.09 | I9: 4.09 | J9: 4.09
A10: DQS0202 | B10: Energy Not Supplied (unplanned) | C10: GWh | D10: 5.52 | E10: 5.52 | F10: 5.52 | G10: 5.52 | H10: 5.52 | I10: 5.52 | J10: 5.52
A11: DQS02 | B11: Total | D11: =SUM(D9:D10) -> 9.61 | E11: 9.61 | F11: 9.61 | G11: 9.61 | H11: 9.61 | I11: 9.61 | J11: 9.61
B13: 3.6.3 - SYSTEM LOSSES
D14: FORECAST
C15: Units | D15: 2022-23 | E15: 2023-24 | F15: 2024-25 | G15: 2025-26 | H15: 2026-27 | I15: 2027-28 | J15: 2028-29
A16: DQS03 | B16: System losses | C16: % | D16: 3.60% | E16: 3.55% | F16: 3.53% | G16: 3.51% | H16: 3.49% | I16: 3.47% | J16: 3.45%
B18: 3.6.4 - CAPACITY UTILISATION
D19: FORECAST
C20: Units | D20: 2022-23 | E20: 2023-24 | F20: 2024-25 | G20: 2025-26 | H20: 2026-27 | I20: 2027-28 | J20: 2028-29
A21: DQS04 | B21: Overall utilisation | C21: % | D21: 45.8% | E21: 46.2% | F21: 46.6% | G21: 46.8% | H21: 47.2% | I21: 47.5% | J21: 47.7%

Sheet 3.7 Operating Environment
B1: =INDEX(dms_Worksheet_List,MATCH(dms_Model,dms_Model_List)) -> REGULATORY REPORTING STATEMENT
B2: =INDEX(dms_TradingNameFull_List,MATCH(dms_TradingName,dms_TradingName_List)) -> Ausgrid
B3: =CONCATENATE("REGULATORY PERIOD FROM ", FRCP_y1," TO ",dms_MultiYear_FinalYear_Result) -> REGULATORY PERIOD FROM 2024-25 TO 2028-29
B4: 3.7 OPERATING ENVIRONMENT FACTORS
B6: There are THREE tables on this worksheet. Each table has been grouped (and sub-grouped) for ease of navigation. See the Instructions sheet on how to group or ungroup tables.
A8: DOEF01 | B8: 3.7.1 - DENSITY FACTORS
D9: Forecast
C10: Units | D10: 2022-23 | E10: 2023-24 | F10: 2024-25 | G10: 2025-26 | H10: 2026-27 | I10: 2027-28 | J10: 2028-29
A11: DOEF0101 | B11: Customer density | C11: Customer / km | D11: 44.8580858
A12: DOEF0102 | B12: Energy density | C12: MWh/customer | D12: 13.6
A13: DOEF0103 | B13: Demand density | C13: kVA / customer | D13: 3.217
A15: DOEF02 | B15: 3.7.2 - TERRAIN FACTORS
D16: Forecast
C17: Units | D17: 2022-23 | E17: 2023-24 | F17: 2024-25 | G17: 2025-26 | H17: 2026-27 | I17: 2027-28 | J17: 2028-29
A18: DOEF0201 | B18: Rural proportion | C18: % | D18: 45.96%
A19: DOEF0202 | B19: Urban and CBD vegetation maintenance spans | C19: 0's | D19: 855208
A20: DOEF0203 | B20: Rural vegetation maintenance spans | C20: 0's | D20: 288335
A21: DOEF0204 | B21: Total vegetation maintenance spans | C21: 0's | D21: 1176490
A22: DOEF0205 | B22: Total number of spans | C22: 0's | D22: 1176490
A23: DOEF0206 | B23: Average urban and CBD vegetation maintenance span cycle | C23: Years | D23: 1
A24: DOEF0207 | B24: Average rural vegetation maintenance span cycle | C24: Years | D24: 1
A25: DOEF0208 | B25: Average number of trees per urban and CBD vegetation maintenance span | C25: Trees | D25: 0.666132738
A26: DOEF0209 | B26: Average number of trees per rural vegetation maintenance span | C26: Trees | D26: 1.983463412
A27: DOEF0210 | B27: Average number of defects per urban and CBD vegetation maintenance span | C27: Defects | D27: 0.460784175
A28: DOEF0211 | B28: Average number of defects per rural vegetation maintenance span | C28: Defects | D28: 0.393303841
A29: DOEF0212 | B29: Tropical proportion | C29: Spans | D29: 1226
A30: DOEF0213 | B30: Standard vehicle access | C30: km | D30: 7764.6557 | E30: 7925.1077 | F30: 8085.5598 | G30: 8246.0118 | H30: 8406.4638 | I30: 8566.9158 | J30: 8727.3678
A31: DOEF0214 | B31: Bushfire risk | C31: Spans | D31: 295644
A33: DOEF03 | B33: 3.7.3 - SERVICE AREA FACTORS
D34: Forecast
C35: Units | D35: 2022-23 | E35: 2023-24 | F35: 2024-25 | G35: 2025-26 | H35: 2026-27 | I35: 2027-28 | J35: 2028-29
A36: DOEF0301 | B36: Route Line length | C36: km | D36: 39976.569 | E36: 40129.503 | F36: 40282.436 | G36: 40435.37 | H36: 40588.303 | I36: 40741.237 | J36: 40894.171

Sheet 4.1 Public lighting
B1: =INDEX(dms_Worksheet_List,MATCH(dms_Model,dms_Model_List)) -> REGULATORY REPORTING STATEMENT
B2: =INDEX(dms_TradingNameFull_List,MATCH(dms_TradingName,dms_TradingName_List)) -> Ausgrid
B3: =CONCATENATE("REGULATORY PERIOD FROM ", FRCP_y1," TO ",dms_MultiYear_FinalYear_Result) -> REGULATORY PERIOD FROM 2024-25 TO 2028-29
B4: 4.1 PUBLIC LIGHTING
B6: There are TWO tables on this worksheet. Each table has been grouped (and sub-grouped) for ease of navigation. See the Instructions sheet on how to group or ungroup tables.
B8: 4.1.2 - DESCRIPTOR METRICS ANNUALLY
D9: VOLUMES & EXPENDITURE
C10: Units | D10: =CRCP_y4 -> 2022-23 | E10: =CRCP_y5 -> 2023-24 | F10: =FRCP_y1 -> 2024-25 | G10: =FRCP_y2 -> 2025-26 | H10: =FRCP_y3 -> 2026-27 | I10: =FRCP_y4 -> 2027-28 | J10: =FRCP_y5 -> 2028-29
B11: LIGHT INSTALLATION
B12: Number of lights installed | C12: 0's | D12: 130 | E12: 215 | F12: 175 | G12: 175 | H12: 175 | I12: 175 | J12: 175
B13: Number of poles installed | C13: 0's | D13: 130 | E13: 215 | F13: 175 | G13: 175 | H13: 175 | I13: 175 | J13: 175
B14: Total expenditure | C14: $0's | D14: 1209460 | E14: 2014610 | F14: 1619390 | G14: 1636399 | H14: 1646501 | I14: 1653179 | J14: 1663271
B15: LIGHT REPLACEMENT
B16: Number of lights replaced | C16: 0's | D16: 36490 | E16: 20010 | F16: 20295 | G16: 21508 | H16: 4588 | I16: 3409 | J16: 2825
B17: Number of poles replaced | C17: 0's | D17: 172 | E17: 88 | F17: 128 | G17: 127 | H17: 127 | I17: 128 | J17: 128
B18: Total expenditure | C18: $0's | D18: 31666076 | E18: 24807611 | F18: 21299374 | G18: 19674638 | H18: 6381829 | I18: 4843494 | J18: 3643696
B19: LIGHT MAINTENANCE
B20: Number of lights maintained | C20: 0's | D20: 16000 | E20: 15000 | F20: 14000 | G20: 14000 | H20: 14000 | I20: 14000 | J20: 14000
B21: Number of poles maintained | C21: 0's | D21: 4418 | E21: 4142 | F21: 3866 | G21: 3866 | H21: 3866 | I21: 3866 | J21: 3866
B22: Total expenditure | C22: $0's | D22: 13125925 | E22: 13829940 | F22: 10907530 | G22: 10434198 | H22: 10263380 | I22: 10270662 | J22: 10295191
B23: QUALITY OF SUPPLY
B24: Mean days to rectify/replace public lighting assets | C24: days | D24: 4.5 | E24: 4.5 | F24: 4.5 | G24: 4.5 | H24: 4.5 | I24: 4.5 | J24: 4.5
B25: GSO breaches | C25: 0's | D25: 115 | E25: 60 | F25: 60 | G25: 60 | H25: 60 | I25: 60 | J25: 60
B26: GSL payments | C26: $0's | D26: 1500 | E26: 1000 | F26: 750 | G26: 750 | H26: 750 | I26: 750 | J26: 750
B27: Customer complaints | C27: 0's | D27: 300 | E27: 250 | F27: 250 | G27: 250 | H27: 250 | I27: 250 | J27: 250
B31: 4.1.3 - COST METRICS
D32: =CONCATENATE("AVERAGE UNIT COST ($0's, real ",dms_DollarReal, ")") -> AVERAGE UNIT COST ($0's, real June 2024)
D33: =CRCP_y4 -> 2022-23 | E33: =CRCP_y5 -> 2023-24 | F33: =FRCP_y1 -> 2024-25 | G33: =FRCP_y2 -> 2025-26 | H33: =FRCP_y3 -> 2026-27 | I33: =FRCP_y4 -> 2027-28 | J33: =FRCP_y5 -> 2028-29
B34: LIGHT INSTALLATION
B35: 16W LED PH | D35: 433.84 | E35: 433.84 | F35: 433.84 | G35: 433.84 | H35: 433.84 | I35: 433.84 | J35: 433.84
B36: 17W LED ALD | D36: 402.51 | E36: 402.51 | F36: 402.51 | G36: 402.51 | H36: 402.51 | I36: 402.51 | J36: 402.51
B37: 17W LED ALD RRW | D37: 402.51 | E37: 402.51 | F37: 402.51 | G37: 402.51 | H37: 402.51 | I37: 402.51 | J37: 402.51
B38: 17W LED ALD RRW ZHAGA | D38: 423.77 | E38: 423.77 | F38: 423.77 | G38: 423.77 | H38: 423.77 | I38: 423.77 | J38: 423.77
B39: 17W LED ALD ZHAGA | D39: 423.77 | E39: 423.77 | F39: 423.77 | G39: 423.77 | H39: 423.77 | I39: 423.77 | J39: 423.77
B40: 17W LED SY RRW | D40: 542.5 | E40: 542.5 | F40: 542.5 | G40: 542.5 | H40: 542.5 | I40: 542.5 | J40: 542.5
B41: 1x17W LED | D41: 512.2 | E41: 512.2 | F41: 512.2 | G41: 512.2 | H41: 512.2 | I41: 512.2 | J41: 512.2
B42: 1x22W LED | D42: 531.14 | E42: 531.14 | F42: 531.14 | G42: 531.14 | H42: 531.14 | I42: 531.14 | J42: 531.14
B43: 1x25W LED GE | D43: 457.93 | E43: 457.93 | F43: 457.93 | G43: 457.93 | H43: 457.93 | I43: 457.93 | J43: 457.93
B44: 25W LED PH | D44: 435.03 | E44: 435.03 | F44: 435.03 | G44: 435.03 | H44: 435.03 | I44: 435.03 | J44: 435.03
B45: 28W LED SY | D45: 565.22 | E45: 565.22 | F45: 565.22 | G45: 565.22 | H45: 565.22 | I45: 565.22 | J45: 565.22
B46: 1x29W LED | D46: 594.72 | E46: 594.72 | F46: 594.72 | G46: 594.72 | H46: 594.72 | I46: 594.72 | J46: 594.72
B47: 49W LED PH | D47: 465.83 | E47: 465.83 | F47: 465.83 | G47: 465.83 | H47: 465.83 | I47: 465.83 | J47: 465.83
B48: 49W LED PH ZHAGA | D48: 531 | E48: 531 | F48: 531 | G48: 531 | H48: 531 | I48: 531 | J48: 531
B49: 70W LED PH FLOOD | D49: 684.29 | E49: 684.29 | F49: 684.29 | G49: 684.29 | H49: 684.29 | I49: 684.29 | J49: 684.29
B50: 76W LED PH | D50: 553.96 | E50: 553.96 | F50: 553.96 | G50: 553.96 | H50: 553.96 | I50: 553.96 | J50: 553.96
B51: 76W LED PH ZHAGA | D51: 619.13 | E51: 619.13 | F51: 619.13 | G51: 619.13 | H51: 619.13 | I51: 619.13 | J51: 619.13
B52: 100W LED ALD | D52: 1007.33 | E52: 1007.33 | F52: 1007.33 | G52: 1007.33 | H52: 1007.33 | I52: 1007.33 | J52: 1007.33
B53: 140W LED PH | D53: 595.43 | E53: 595.43 | F53: 595.43 | G53: 595.43 | H53: 595.43 | I53: 595.43 | J53: 595.43
B54: 140W LED PH ZHAGA | D54: 660.6 | E54: 660.6 | F54: 660.6 | G54: 660.6 | H54: 660.6 | I54: 660.6 | J54: 660.6
B55: 150W LED SY FLOOD | D55: 1061.08 | E55: 1061.08 | F55: 1061.08 | G55: 1061.08 | H55: 1061.08 | I55: 1061.08 | J55: 1061.08
B56: 175W LED SY FLOOD | D56: 1208 | E56: 1208 | F56: 1208 | G56: 1208 | H56: 1208 | I56: 1208 | J56: 1208
B57: 200W LED ALD | D57: 1007.33 | E57: 1007.33 | F57: 1007.33 | G57: 1007.33 | H57: 1007.33 | I57: 1007.33 | J57: 1007.33
B58: 224W LED PH | D58: 692.59 | E58: 692.59 | F58: 692.59 | G58: 692.59 | H58: 692.59 | I58: 692.59 | J58: 692.59
B59: 224W LED PH ZHAGA | D59: 757.75 | E59: 757.75 | F59: 757.75 | G59: 757.75 | H59: 757.75 | I59: 757.75 | J59: 757.75
B95: LIGHT REPLACEMENT
B96: 16W LED PH | D96: 433.84 | E96: 433.84 | F96: 433.84 | G96: 433.84 | H96: 433.84 | I96: 433.84 | J96: 433.84
B97: 17W LED ALD | D97: 402.51 | E97: 402.51 | F97: 402.51 | G97: 402.51 | H97: 402.51 | I97: 402.51 | J97: 402.51
B98: 17W LED ALD RRW | D98: 402.51 | E98: 402.51 | F98: 402.51 | G98: 402.51 | H98: 402.51 | I98: 402.51 | J98: 402.51
B99: 17W LED ALD RRW ZHAGA | D99: 423.77 | E99: 423.77 | F99: 423.77 | G99: 423.77 | H99: 423.77 | I99: 423.77 | J99: 423.77
B100: 17W LED ALD ZHAGA | D100: 423.77 | E100: 423.77 | F100: 423.77 | G100: 423.77 | H100: 423.77 | I100: 423.77 | J100: 423.77
B101: 17W LED SY RRW | D101: 542.5 | E101: 542.5 | F101: 542.5 | G101: 542.5 | H101: 542.5 | I101: 542.5 | J101: 542.5
B102: 1x17W LED | D102: 512.2 | E102: 512.2 | F102: 512.2 | G102: 512.2 | H102: 512.2 | I102: 512.2 | J102: 512.2
B103: 1x22W LED | D103: 531.14 | E103: 531.14 | F103: 531.14 | G103: 531.14 | H103: 531.14 | I103: 531.14 | J103: 531.14
B104: 1x25W LED GE | D104: 457.93 | E104: 457.93 | F104: 457.93 | G104: 457.93 | H104: 457.93 | I104: 457.93 | J104: 457.93
B105: 25W LED PH | D105: 435.03 | E105: 435.03 | F105: 435.03 | G105: 435.03 | H105: 435.03 | I105: 435.03 | J105: 435.03
B106: 28W LED SY | D106: 565.22 | E106: 565.22 | F106: 565.22 | G106: 565.22 | H106: 565.22 | I106: 565.22 | J106: 565.22
B107: 1x29W LED | D107: 594.72 | E107: 594.72 | F107: 594.72 | G107: 594.72 | H107: 594.72 | I107: 594.72 | J107: 594.72
B108: 49W LED PH | D108: 465.83 | E108: 465.83 | F108: 465.83 | G108: 465.83 | H108: 465.83 | I108: 465.83 | J108: 465.83
B109: 49W LED PH ZHAGA | D109: 531 | E109: 531 | F109: 531 | G109: 531 | H109: 531 | I109: 531 | J109: 531
B110: 70W LED PH FLOOD | D110: 684.29 | E110: 684.29 | F110: 684.29 | G110: 684.29 | H110: 684.29 | I110: 684.29 | J110: 684.29
B111: 76W LED PH | D111: 553.96 | E111: 553.96 | F111: 553.96 | G111: 553.96 | H111: 553.96 | I111: 553.96 | J111: 553.96
B112: 76W LED PH ZHAGA | D112: 619.13 | E112: 619.13 | F112: 619.13 | G112: 619.13 | H112: 619.13 | I112: 619.13 | J112: 619.13
B113: 100W LED ALD | D113: 1007.33 | E113: 1007.33 | F113: 1007.33 | G113: 1007.33 | H113: 1007.33 | I113: 1007.33 | J113: 1007.33
B114: 140W LED PH | D114: 595.43 | E114: 595.43 | F114: 595.43 | G114: 595.43 | H114: 595.43 | I114: 595.43 | J114: 595.43
B115: 140W LED PH ZHAGA | D115: 660.6 | E115: 660.6 | F115: 660.6 | G115: 660.6 | H115: 660.6 | I115: 660.6 | J115: 660.6
B116: 150W LED SY FLOOD | D116: 1061.08 | E116: 1061.08 | F116: 1061.08 | G116: 1061.08 | H116: 1061.08 | I116: 1061.08 | J116: 1061.08
B117: 175W LED SY FLOOD | D117: 1208 | E117: 1208 | F117: 1208 | G117: 1208 | H117: 1208 | I117: 1208 | J117: 1208
B118: 200W LED ALD | D118: 1007.33 | E118: 1007.33 | F118: 1007.33 | G118: 1007.33 | H118: 1007.33 | I118: 1007.33 | J118: 1007.33
B119: 224W LED PH | D119: 692.59 | E119: 692.59 | F119: 692.59 | G119: 692.59 | H119: 692.59 | I119: 692.59 | J119: 692.59
B120: 224W LED PH ZHAGA | D120: 757.75 | E120: 757.75 | F120: 757.75 | G120: 757.75 | H120: 757.75 | I120: 757.75 | J120: 757.75
B156: LIGHT MAINTENANCE
B157: MBF1x1000 | D157: 90.47 | E157: 90.47 | F157: 60.49 | G157: 60.49 | H157: 60.49 | I157: 60.49 | J157: 60.49
B158: MBF1x125 | D158: 47.8 | E158: 47.8 | F158: 35.18 | G158: 35.18 | H158: 35.18 | I158: 35.18 | J158: 35.18
B159: MBF1x250 | D159: 64.71 | E159: 64.71 | F159: 47.88 | G159: 47.88 | H159: 47.88 | I159: 47.88 | J159: 47.88
B160: MBF1x400 | D160: 64.71 | E160: 64.71 | F160: 47.88 | G160: 47.88 | H160: 47.88 | I160: 47.88 | J160: 47.88
B161: MBF1x42 | D161: 42.62 | E161: 42.62 | F161: 31.37 | G161: 31.37 | H161: 31.37 | I161: 31.37 | J161: 31.37
B162: MBF1x50 | D162: 47.92 | E162: 47.92 | F162: 35.21 | G162: 35.21 | H162: 35.21 | I162: 35.21 | J162: 35.21
B163: MBF1x80 | D163: 45.4 | E163: 45.4 | F163: 33.74 | G163: 33.74 | H163: 33.74 | I163: 33.74 | J163: 33.74
B164: MBF2x80 | D164: 57.81 | E164: 57.81 | F164: 42.53 | G164: 42.53 | H164: 42.53 | I164: 42.53 | J164: 42.53
B165: MBI1x100 | D165: 64.63 | E165: 64.63 | F165: 44.92 | G165: 44.92 | H165: 44.92 | I165: 44.92 | J165: 44.92
B166: MBI1x1000 | D166: 80.48 | E166: 80.48 | F166: 46.77 | G166: 46.77 | H166: 46.77 | I166: 46.77 | J166: 46.77
B167: MBI1x150 | D167: 64.52 | E167: 64.52 | F167: 44.92 | G167: 44.92 | H167: 44.92 | I167: 44.92 | J167: 44.92
B168: MBI1x250 | D168: 61.84 | E168: 61.84 | F168: 44.59 | G168: 44.59 | H168: 44.59 | I168: 44.59 | J168: 44.59
B169: MBI1x400 | D169: 61.74 | E169: 61.74 | F169: 44.57 | G169: 44.57 | H169: 44.57 | I169: 44.57 | J169: 44.57
B170: MBI1x70 | D170: 49.45 | E170: 49.45 | F170: 33.16 | G170: 33.16 | H170: 33.16 | I170: 33.16 | J170: 33.16
B171: MBI1x70 II | D171: 70.09 | E171: 70.09 | F171: 35.51 | G171: 35.51 | H171: 35.51 | I171: 35.51 | J171: 35.51
B172: SON1x100 | D172: 76.05 | E172: 76.05 | F172: 53.71 | G172: 53.71 | H172: 53.71 | I172: 53.71 | J172: 53.71
B173: SON1x1000 | D173: 83.47 | E173: 83.47 | F173: 54.99 | G173: 54.99 | H173: 54.99 | I173: 54.99 | J173: 54.99
B174: SON1x150 | D174: 72.35 | E174: 72.35 | F174: 53.07 | G174: 53.07 | H174: 53.07 | I174: 53.07 | J174: 53.07
B175: SON1x150 AR | D175: 72.36 | E175: 72.36 | F175: 53.07 | G175: 53.07 | H175: 53.07 | I175: 53.07 | J175: 53.07
B176: SON1x250 | D176: 74.12 | E176: 74.12 | F176: 53.37 | G176: 53.37 | H176: 53.37 | I176: 53.37 | J176: 53.37
B177: SON1x250 AR | D177: 74.13 | E177: 74.13 | F177: 53.37 | G177: 53.37 | H177: 53.37 | I177: 53.37 | J177: 53.37
B178: SON1x400 | D178: 74.89 | E178: 74.89 | F178: 53.5 | G178: 53.5 | H178: 53.5 | I178: 53.5 | J178: 53.5
B179: SON1x400 AR | D179: 100.59 | E179: 100.59 | F179: 53.5 | G179: 53.5 | H179: 53.5 | I179: 53.5 | J179: 53.5
B180: SON1x50 | D180: 55.26 | E180: 55.26 | F180: 39.41 | G180: 39.41 | H180: 39.41 | I180: 39.41 | J180: 39.41
B181: SON1x600 | D181: 83.62 | E181: 83.62 | F181: 54.99 | G181: 54.99 | H181: 54.99 | I181: 54.99 | J181: 54.99
B182: SON1x70 | D182: 53.33 | E182: 53.33 | F182: 39.08 | G182: 39.08 | H182: 39.08 | I182: 39.08 | J182: 39.08
B183: SON2x250 | D183: 106.15 | E183: 106.15 | F183: 74.46 | G183: 74.46 | H183: 74.46 | I183: 74.46 | J183: 74.46
B184: SON2x400 | D184: 107.7 | E184: 107.7 | F184: 74.71 | G184: 74.71 | H184: 74.71 | I184: 74.71 | J184: 74.71
B185: SON4x250 | D185: 164.83 | E185: 164.83 | F185: 112.6 | G185: 112.6 | H185: 112.6 | I185: 112.6 | J185: 112.6
B186: SON4x600 | D186: 202.06 | E186: 202.06 | F186: 118.49 | G186: 118.49 | H186: 118.49 | I186: 118.49 | J186: 118.49
B187: TF1x20 | D187: 49.2 | E187: 49.2 | F187: 37.36 | G187: 37.36 | H187: 37.36 | I187: 37.36 | J187: 37.36
B188: TF1x40 | D188: 77.92 | E188: 77.92 | F188: 61.5 | G188: 61.5 | H188: 61.5 | I188: 61.5 | J188: 61.5
B189: TF1x80 | D189: 48.85 | E189: 48.85 | F189: 37.37 | G189: 37.37 | H189: 37.37 | I189: 37.37 | J189: 37.37
B190: TF2x14 T5 | D190: 49.87 | E190: 49.87 | F190: 37.37 | G190: 37.37 | H190: 37.37 | I190: 37.37 | J190: 37.37
B191: TF2x20 | D191: 61.99 | E191: 61.99 | F191: 47.91 | G191: 47.91 | H191: 47.91 | I191: 47.91 | J191: 47.91
B192: TF2x26 | D192: 49.47 | E192: 49.47 | F192: 37.37 | G192: 37.37 | H192: 37.37 | I192: 37.37 | J192: 37.37
B193: TF2x40 | D193: 49.47 | E193: 49.47 | F193: 37.37 | G193: 37.37 | H193: 37.37 | I193: 37.37 | J193: 37.37
B194: TF4x20 | D194: 49.29 | E194: 49.29 | F194: 37.36 | G194: 37.36 | H194: 37.36 | I194: 37.36 | J194: 37.36
B195: TF4x40 | D195: 51.14 | E195: 51.14 | F195: 37.37 | G195: 37.37 | H195: 37.37 | I195: 37.37 | J195: 37.37
B196: LED TRIAL | D196: 27.28 | E196: 27.28 | F196: 22.6 | G196: 22.6 | H196: 22.6 | I196: 22.6 | J196: 22.6
B197: LED1x100 | D197: 36.29 | E197: 36.29 | F197: 30.81 | G197: 30.81 | H197: 30.81 | I197: 30.81 | J197: 30.81
B198: LED1x17 | D198: 27.35 | E198: 27.35 | F198: 22.6 | G198: 22.6 | H198: 22.6 | I198: 22.6 | J198: 22.6
B199: LED1x200 | D199: 36.3 | E199: 36.3 | F199: 30.81 | G199: 30.81 | H199: 30.81 | I199: 30.81 | J199: 30.81
B200: LED1x22 | D200: 27.28 | E200: 27.28 | F200: 22.6 | G200: 22.6 | H200: 22.6 | I200: 22.6 | J200: 22.6
B201: LED1x25 GE | D201: 27.28 | E201: 27.28 | F201: 22.6 | G201: 22.6 | H201: 22.6 | I201: 22.6 | J201: 22.6
B202: LED1x28 | D202: 27.35 | E202: 27.35 | F202: 22.6 | G202: 22.6 | H202: 22.6 | I202: 22.6 | J202: 22.6
B203: LED1x29 | D203: 27.28 | E203: 27.28 | F203: 22.6 | G203: 22.6 | H203: 22.6 | I203: 22.6 | J203: 22.6
B204: LED1x298 | D204: 36.32 | E204: 36.32 | F204: 30.81 | G204: 30.81 | H204: 30.81 | I204: 30.81 | J204: 30.81
B205: LED1x33 | D205: 27.39 | E205: 27.39 | F205: 22.6 | G205: 22.6 | H205: 22.6 | I205: 22.6 | J205: 22.6
B206: LED1x42 | D206: 27.43 | E206: 27.43 | F206: 22.6 | G206: 22.6 | H206: 22.6 | I206: 22.6 | J206: 22.6
B207: Decorative luminaires | D207: 0 | E207: 0 | F207: 24.24 | G207: 24.24 | H207: 24.24 | I207: 24.24 | J207: 24.24
B208: Floodlight luminaires | D208: 0 | E208: 0 | F208: 30.81 | G208: 30.81 | H208: 30.81 | I208: 30.81 | J208: 30.81
B209: Major road luminaires - smart controller | D209: 0 | E209: 0 | F209: 21.81 | G209: 21.81 | H209: 21.81 | I209: 21.81 | J209: 21.81
B210: Minor road luminaires - smart controller | D210: 0 | E210: 0 | F210: 17.47 | G210: 17.47 | H210: 17.47 | I210: 17.47 | J210: 17.47
B211: Floodlight luminaires - smart controller | D211: 0 | E211: 0 | F211: 21.81 | G211: 21.81 | H211: 21.81 | I211: 21.81 | J211: 21.81
B212: Decorative luminaires - smart controller | D212: 0 | E212: 0 | F212: 17.47 | G212: 17.47 | H212: 17.47 | I212: 17.47 | J212: 17.47

Sheet 5.4 MD & utilisation-Spatial
B1: =INDEX(dms_Worksheet_List,MATCH(dms_Model,dms_Model_List)) -> REGULATORY REPORTING STATEMENT
B2: =INDEX(dms_TradingNameFull_List,MATCH(dms_TradingName,dms_TradingName_List)) -> Ausgrid
B3: =CONCATENATE("REGULATORY PERIOD FROM ", FRCP_y1," TO ",dms_MultiYear_FinalYear_Result) -> REGULATORY PERIOD FROM 2024-25 TO 2028-29
B4: 5.4 MAXIMUM DEMAND AND UTILISATION AT SPATIAL LEVEL
B6: There are two tables on this worksheet. The tables have been sub-grouped for ease of navigation. See the Instructions sheet on how to group or ungroup tables.
B8: 5.4.1 - NON-COINCIDENT & COINCIDENT MAXIMUM DEMAND
B9: SUBTRANSMISSION SUBSTATION
F10: DEMAND
B11: SUBSTATION | C11: FORECASTING ELEMENTS | D11: UNIT | E11: MAX DEMAND | F11: =CRCP_y4 -> 2022-23 | G11: =CRCP_y5 -> 2023-24 | H11: =FRCP_y1 -> 2024-25 | I11: =FRCP_y2 -> 2025-26 | J11: =FRCP_y3 -> 2026-27 | K11: =FRCP_y4 -> 2027-28 | L11: =FRCP_y5 -> 2028-29
B12: Alexandria 132_33kV | C12: Substation Rating | D12: MVA | E12: Non-Coincident | F12: 142.9 | G12: 142.9 | H12: 142.9 | I12: 142.9 | J12: 142.9 | K12: 142.9 | L12: 142.9
E13: Coincident | F13: 142.9 | G13: 142.9 | H13: 142.9 | I13: 142.9 | J13: 142.9 | K13: 142.9 | L13: 142.9
C14: Raw Adjusted MD | D14: MW | E14: Non-Coincident
E15: Coincident
C16: Raw Adjusted MD | D16: MVA | E16: Non-Coincident
E17: Coincident
C18: Date MD occurred | E18: Non-Coincident
E19: Coincident
C20: Half hour time period MD occurred | E20: Non-Coincident
E21: Coincident
C22: Winter/Summer Peaking | E22: Non-Coincident | F22: Summer | G22: Summer | H22: Summer | I22: Summer | J22: Summer | K22: Summer | L22: Summer
E23: Coincident | F23: Summer | G23: Summer | H23: Summer | I23: Summer | J23: Summer | K23: Summer | L23: Summer
C24: Adjustments - Embedded generation | D24: MW | E24: Non-Coincident
E25: Coincident
C26: Weather Corrected 10% POE | D26: MW | E26: Non-Coincident | F26: 38.37 | G26: 55.64 | H26: 57.47 | I26: 61.6 | J26: 66.64 | K26: 73.98 | L26: 73.98
E27: Coincident | F27: 18.57 | G27: 26.93 | H27: 27.82 | I27: 29.81 | J27: 32.25 | K27: 35.8 | L27: 35.8
C28: Weather Corrected MD 10% POE | D28: MVA | E28: Non-Coincident | F28: 42.37 | G28: 61.55 | H28: 63.59 | I28: 68.17 | J28: 73.77 | K28: 81.92 | L28: 81.92
E29: Coincident | F29: 20.51 | G29: 29.79 | H29: 30.78 | I29: 32.99 | J29: 35.71 | K29: 39.65 | L29: 39.65
C30: Weather Corrected MD 50% POE | D30: MW | E30: Non-Coincident | F30: 37.47 | G30: 54.74 | H30: 56.57 | I30: 60.7 | J30: 65.74 | K30: 73.08 | L30: 73.08
E31: Coincident | F31: 18.14 | G31: 26.49 | H31: 27.38 | I31: 29.38 | J31: 31.82 | K31: 35.37 | L31: 35.37
C32: Weather Corrected MD 50% POE | D32: MVA | E32: Non-Coincident | F32: 41.55 | G32: 60.74 | H32: 62.78 | I32: 67.36 | J32: 72.96 | K32: 81.11 | L32: 81.11
E33: Coincident | F33: 20.11 | G33: 29.4 | H33: 30.38 | I33: 32.6 | J33: 35.31 | K33: 39.26 | L33: 39.26
B34: Argenton 132_33kV | C34: Substation Rating | D34: MVA | E34: Non-Coincident | F34: 142.9 | G34: 142.9 | H34: 142.9 | I34: 142.9 | J34: 142.9 | K34: 142.9 | L34: 142.9
E35: Coincident | F35: 142.9 | G35: 142.9 | H35: 142.9 | I35: 142.9 | J35: 142.9 | K35: 142.9 | L35: 142.9
C36: Raw Adjusted MD | D36: MW | E36: Non-Coincident
E37: Coincident
C38: Raw Adjusted MD | D38: MVA | E38: Non-Coincident
E39: Coincident
C40: Date MD occurred | E40: Non-Coincident
E41: Coincident
C42: Half hour time period MD occurred | E42: Non-Coincident
E43: Coincident
C44: Winter/Summer Peaking | E44: Non-Coincident | F44: Summer | G44: Summer | H44: Summer | I44: Summer | J44: Summer | K44: Summer | L44: Summer
E45: Coincident | F45: Summer | G45: Summer | H45: Summer | I45: Summer | J45: Summer | K45: Summer | L45: Summer
C46: Adjustments - Embedded generation | D46: MW | E46: Non-Coincident | F46: -6.201 | G46: -6.919 | H46: -7.392 | I46: -7.726 | J46: -8.082 | K46: -8.419 | L46: -8.745
E47: Coincident | F47: -6.032 | G47: -7.884 | H47: -9.021 | I47: -9.688 | J47: -10.3 | K47: -10.92 | L47: -11.52
C48: Weather Corrected 10% POE | D48: MW | E48: Non-Coincident | F48: 111.2 | G48: 110.1 | H48: 109.6 | I48: 109.5 | J48: 109.3 | K48: 109.1 | L48: 109
E49: Coincident | F49: 101.9 | G49: 100.9 | H49: 100.4 | I49: 100.3 | J49: 100.1 | K49: 99.95 | L49: 99.85
C50: Weather Corrected MD 10% POE | D50: MVA | E50: Non-Coincident | F50: 113.4 | G50: 112.3 | H50: 111.8 | I50: 111.7 | J50: 111.4 | K50: 111.3 | L50: 111.1
E51: Coincident | F51: 103.9 | G51: 102.9 | H51: 102.4 | I51: 102.3 | J51: 102.1 | K51: 101.9 | L51: 101.8
C52: Weather Corrected MD 50% POE | D52: MW | E52: Non-Coincident | F52: 95.19 | G52: 94.27 | H52: 93.81 | I52: 93.72 | J52: 93.49 | K52: 93.32 | L52: 93.21
E53: Coincident | F53: 87.21 | G53: 86.36 | H53: 85.94 | I53: 85.85 | J53: 85.65 | K53: 85.49 | L53: 85.39
C54: Weather Corrected MD 50% POE | D54: MVA | E54: Non-Coincident | F54: 97.77 | G54: 96.82 | H54: 96.35 | I54: 96.25 | J54: 96.01 | K54: 95.84 | L54: 95.73
E55: Coincident | F55: 89.57 | G55: 88.7 | H55: 88.27 | I55: 88.18 | J55: 87.96 | K55: 87.8 | L55: 87.7
B56: Awaba 132_33kV | C56: Substation Rating | D56: MVA | E56: Non-Coincident | F56: 68.59 | G56: 68.59 | H56: 68.59 | I56: 68.59 | J56: 68.59 | K56: 68.59 | L56: 68.59
E57: Coincident | F57: 68.59 | G57: 68.59 | H57: 68.59 | I57: 68.59 | J57: 68.59 | K57: 68.59 | L57: 68.59
C58: Raw Adjusted MD | D58: MW | E58: Non-Coincident
E59: Coincident
C60: Raw Adjusted MD | D60: MVA | E60: Non-Coincident
E61: Coincident
C62: Date MD occurred | E62: Non-Coincident
E63: Coincident
C64: Half hour time period MD occurred | E64: Non-Coincident
E65: Coincident
C66: Winter/Summer Peaking | E66: Non-Coincident | F66: Winter | G66: Winter | H66: Winter | I66: Winter | J66: Winter | K66: Winter | L66: Winter
E67: Coincident | F67: Summer | G67: Summer | H67: Summer | I67: Summer | J67: Summer | K67: Summer | L67: Summer
C68: Adjustments - Embedded generation | D68: MW | E68: Non-Coincident
E69: Coincident | F69: -1.612 | G69: -1.612 | H69: -1.612 | I69: -1.612 | J69: -1.612 | K69: -1.612 | L69: -1.612
C70: Weather Corrected 10% POE | D70: MW | E70: Non-Coincident | F70: 14.22 | G70: 14.22 | H70: 14.22 | I70: 14.22 | J70: 14.22 | K70: 14.22 | L70: 14.22
E71: Coincident | F71: 6.69 | G71: 6.69 | H71: 6.69 | I71: 6.69 | J71: 6.69 | K71: 6.69 | L71: 6.69
C72: Weather Corrected MD 10% POE | D72: MVA | E72: Non-Coincident | F72: 15.01 | G72: 15.01 | H72: 15.01 | I72: 15.01 | J72: 15.01 | K72: 15.01 | L72: 15.01
E73: Coincident | F73: 6.977 | G73: 6.977 | H73: 6.977 | I73: 6.977 | J73: 6.977 | K73: 6.977 | L73: 6.977
C74: Weather Corrected MD 50% POE | D74: MW | E74: Non-Coincident | F74: 13.67 | G74: 13.67 | H74: 13.67 | I74: 13.67 | J74: 13.67 | K74: 13.67 | L74: 13.67
E75: Coincident | F75: 6.403 | G75: 6.403 | H75: 6.403 | I75: 6.403 | J75: 6.403 | K75: 6.403 | L75: 6.403
C76: Weather Corrected MD 50% POE | D76: MVA | E76: Non-Coincident | F76: 14.43 | G76: 14.43 | H76: 14.43 | I76: 14.43 | J76: 14.43 | K76: 14.43 | L76: 14.43
E77: Coincident | F77: 6.678 | G77: 6.678 | H77: 6.678 | I77: 6.678 | J77: 6.678 | K77: 6.678 | L77: 6.678
B78: Bankstown 132_33kV | C78: Substation Rating | D78: MVA | E78: Non-Coincident | F78: 139.4 | G78: 139.4 | H78: 139.4 | I78: 139.4 | J78: 139.4 | K78: 139.4 | L78: 139.4
E79: Coincident | F79: 139.4 | G79: 139.4 | H79: 139.4 | I79: 139.4 | J79: 139.4 | K79: 139.4 | L79: 139.4
C80: Raw Adjusted MD | D80: MW | E80: Non-Coincident
E81: Coincident
C82: Raw Adjusted MD | D82: MVA | E82: Non-Coincident
E83: Coincident
C84: Date MD occurred | E84: Non-Coincident
E85: Coincident
C86: Half hour time period MD occurred | E86: Non-Coincident
E87: Coincident
C88: Winter/Summer Peaking | E88: Non-Coincident | F88: Summer | G88: Summer | H88: Summer | I88: Summer | J88: Summer | K88: Summer | L88: Summer
E89: Coincident | F89: Summer | G89: Summer | H89: Summer | I89: Summer | J89: Summer | K89: Summer | L89: Summer
C90: Adjustments - Embedded generation | D90: MW | E90: Non-Coincident | F90: -0.562 | G90: -1.206 | H90: -0.737 | I90: -0.782 | J90: -0.842 | K90: -1.002 | L90: -1.151
E91: Coincident | F91: -3.628 | G91: -4.715 | H91: -5.46 | I91: -6.009 | J91: -6.607 | K91: -7.204 | L91: -7.792
C92: Weather Corrected 10% POE | D92: MW | E92: Non-Coincident | F92: 72.87 | G92: 73.85 | H92: 74.4 | I92: 74.7 | J92: 74.83 | K92: 75.18 | L92: 75.25
E93: Coincident | F93: 68.8 | G93: 69.73 | H93: 70.25 | I93: 70.53 | J93: 70.66 | K93: 70.98 | L93: 71.06
C94: Weather Corrected MD 10% POE | D94: MVA | E94: Non-Coincident | F94: 73.74 | G94: 74.78 | H94: 75.37 | I94: 75.68 | J94: 75.82 | K94: 76.19 | L94: 76.28
E95: Coincident | F95: 69.62 | G95: 70.61 | H95: 71.16 | I95: 71.46 | J95: 71.6 | K95: 71.95 | L95: 72.02
C96: Weather Corrected MD 50% POE | D96: MW | E96: Non-Coincident | F96: 65.48 | G96: 66.47 | H96: 67.03 | I96: 67.33 | J96: 67.46 | K96: 67.81 | L96: 67.88
E97: Coincident | F97: 61.83 | G97: 62.76 | H97: 63.29 | I97: 63.57 | J97: 63.7 | K97: 64.02 | L97: 64.1
C98: Weather Corrected MD 50% POE | D98: MVA | E98: Non-Coincident | F98: 65.93 | G98: 66.97 | H98: 67.56 | I98: 67.87 | J98: 68.01 | K98: 68.38 | L98: 68.46
E99: Coincident | F99: 62.26 | G99: 63.24 | H99: 63.79 | I99: 64.09 | J99: 64.22 | K99: 64.57 | L99: 64.64
B100: Beresfield 132_33kV | C100: Substation Rating | D100: MVA | E100: Non-Coincident | F100: 150.1 | G100: 150.1 | H100: 150.1 | I100: 150.1 | J100: 150.1 | K100: 150.1 | L100: 150.1
E101: Coincident | F101: 150.1 | G101: 150.1 | H101: 150.1 | I101: 150.1 | J101: 150.1 | K101: 150.1 | L101: 150.1
C102: Raw Adjusted MD | D102: MW | E102: Non-Coincident
E103: Coincident
C104: Raw Adjusted MD | D104: MVA | E104: Non-Coincident
E105: Coincident
C106: Date MD occurred | E106: Non-Coincident
E107: Coincident
C108: Half hour time period MD occurred | E108: Non-Coincident
E109: Coincident
C110: Winter/Summer Peaking | E110: Non-Coincident | F110: Summer | G110: Summer | H110: Summer | I110: Summer | J110: Summer | K110: Summer | L110: Summer
E111: Coincident | F111: Summer | G111: Summer | H111: Summer | I111: Summer | J111: Summer | K111: Summer | L111: Summer
C112: Adjustments - Embedded generation | D112: MW | E112: Non-Coincident | F112: -0.565 | G112: -1.195 | H112: -1.919 | I112: -1.945 | J112: -2.295 | K112: -2.626 | L112: -3.409
E113: Coincident | F113: -5.538 | G113: -7.223 | H113: -8.281 | I113: -8.939 | J113: -9.572 | K113: -10.2 | L113: -10.83
C114: Weather Corrected 10% POE | D114: MW | E114: Non-Coincident | F114: 116.5 | G114: 102.9 | H114: 104.8 | I114: 106.3 | J114: 110.4 | K114: 115.8 | L114: 117.7
E115: Coincident | F115: 107.6 | G115: 95 | H115: 96.78 | I115: 98.1 | J115: 101.9 | K115: 106.9 | L115: 108.6
C116: Weather Corrected MD 10% POE | D116: MVA | E116: Non-Coincident | F116: 116.5 | G116: 106.8 | H116: 108.8 | I116: 110.3 | J116: 110.4 | K116: 115.8 | L116: 117.7
E117: Coincident | F117: 107.6 | G117: 98.62 | H117: 100.5 | I117: 101.8 | J117: 101.9 | K117: 106.9 | L117: 108.7
C118: Weather Corrected MD 50% POE | D118: MW | E118: Non-Coincident | F118: 104.9 | G118: 91.36 | H118: 93.32 | I118: 94.75 | J118: 98.9 | K118: 104.3 | L118: 106.2
E119: Coincident | F119: 96.85 | G119: 84.35 | H119: 86.16 | I119: 87.48 | J119: 91.32 | K119: 96.3 | L119: 98.02
C120: Weather Corrected MD 50% POE | D120: MVA | E120: Non-Coincident | F120: 108.9 | G120: 94.83 | H120: 96.86 | I120: 98.35 | J120: 102.7 | K120: 108.3 | L120: 110.2
E121: Coincident | F121: 100.5 | G121: 87.56 | H121: 89.44 | I121: 90.81 | J121: 94.79 | K121: 99.97 | L121: 101.7
B122: Bunnerong North 132_33kV | C122: Substation Rating | D122: MVA | E122: Non-Coincident | F122: 312.6 | G122: 312.6 | H122: 312.6 | I122: 312.6 | J122: 312.6 | K122: 312.6 | L122: 312.6
E123: Coincident | F123: 312.6 | G123: 312.6 | H123: 312.6 | I123: 312.6 | J123: 312.6 | K123: 312.6 | L123: 312.6
C124: Raw Adjusted MD | D124: MW | E124: Non-Coincident
E125: Coincident
C126: Raw Adjusted MD | D126: MVA | E126: Non-Coincident
E127: Coincident
C128: Date MD occurred | E128: Non-Coincident
E129: Coincident
C130: Half hour time period MD occurred | E130: Non-Coincident
E131: Coincident
C132: Winter/Summer Peaking | E132: Non-Coincident | F132: Summer | G132: Summer | H132: Summer | I132: Summer | J132: Summer | K132: Summer | L132: Summer
E133: Coincident | F133: Summer | G133: Summer | H133: Summer | I133: Summer | J133: Summer | K133: Summer | L133: Summer
C134: Adjustments - Embedded generation | D134: MW | E134: Non-Coincident | F134: -4.6 | G134: -5.496 | H134: -6.264 | I134: -7.023 | J134: -7.951 | K134: -8.12 | L134: -8.22
E135: Coincident | F135: -4.285 | G135: -5.518 | H135: -6.447 | I135: -7.251 | J135: -8.192 | K135: -9.134 | L135: -10.06
C136: Weather Corrected 10% POE | D136: MW | E136: Non-Coincident | F136: 191.4 | G136: 191.9 | H136: 192.1 | I136: 192.2 | J136: 193.5 | K136: 194.8 | L136: 194.8
E137: Coincident | F137: 184.1 | G137: 184.6 | H137: 184.8 | I137: 185 | J137: 186.1 | K137: 187.4 | L137: 187.5
C138: Weather Corrected MD 10% POE | D138: MVA | E138: Non-Coincident | F138: 191.4 | G138: 191.9 | H138: 192.1 | I138: 192.3 | J138: 193.5 | K138: 194.8 | L138: 194.9
E139: Coincident | F139: 184.1 | G139: 184.6 | H139: 184.8 | I139: 185 | J139: 186.1 | K139: 187.4 | L139: 187.5
C140: Weather Corrected MD 50% POE | D140: MW | E140: Non-Coincident | F140: 182.7 | G140: 183.2 | H140: 183.5 | I140: 183.6 | J140: 184.8 | K140: 186.1 | L140: 186.2
E141: Coincident | F141: 175.8 | G141: 176.3 | H141: 176.5 | I141: 176.6 | J141: 177.8 | K141: 179.1 | L141: 179.1
C142: Weather Corrected MD 50% POE | D142: MVA | E142: Non-Coincident | F142: 182.7 | G142: 183.2 | H142: 183.5 | I142: 183.6 | J142: 184.8 | K142: 186.2 | L142: 186.2
E143: Coincident | F143: 175.8 | G143: 176.3 | H143: 176.5 | I143: 176.6 | J143: 177.8 | K143: 179.1 | L143: 179.2
B144: Canterbury 132_33kV | C144: Substation Rating | D144: MVA | E144: Non-Coincident | F144: 186.6 | G144: 186.6 | H144: 186.6 | I144: 186.6 | J144: 186.6 | K144: 186.6 | L144: 186.6
E145: Coincident | F145: 186.6 | G145: 186.6 | H145: 186.6 | I145: 186.6 | J145: 186.6 | K145: 186.6 | L145: 186.6
C146: Raw Adjusted MD | D146: MW | E146: Non-Coincident
E147: Coincident
C148: Raw Adjusted MD | D148: MVA | E148: Non-Coincident
E149: Coincident
C150: Date MD occurred | E150: Non-Coincident
E151: Coincident
C152: Half hour time period MD occurred | E152: Non-Coincident
E153: Coincident
C154: Winter/Summer Peaking | E154: Non-Coincident | F154: Summer | G154: Summer | H154: Summer | I154: Summer | J154: Summer | K154: Summer | L154: Summer
E155: Coincident | F155: Summer | G155: Summer | H155: Summer | I155: Summer | J155: Summer | K155: Summer | L155: Summer
C156: Adjustments - Embedded generation | D156: MW | E156: Non-Coincident | F156: -2.504 | G156: -2.606 | H156: -2.713 | I156: -2.851 | J156: -3.032 | K156: -3.198 | L156: -3.347
E157: Coincident | F157: -9.133 | G157: -11.86 | H157: -13.76 | I157: -15.19 | J157: -16.77 | K157: -18.35 | L157: -19.9
C158: Weather Corrected 10% POE | D158: MW | E158: Non-Coincident | F158: 154 | G158: 156.3 | H158: 157.8 | I158: 165.7 | J158: 166.2 | K158: 167 | L158: 167.5
E159: Coincident | F159: 150.3 | G159: 152.6 | H159: 154 | I159: 161.7 | J159: 162.2 | K159: 163 | L159: 163.5
C160: Weather Corrected MD 10% POE | D160: MVA | E160: Non-Coincident | F160: 154 | G160: 156.4 | H160: 157.9 | I160: 165.9 | J160: 166.4 | K160: 167.3 | L160: 167.8
E161: Coincident | F161: 150.3 | G161: 152.6 | H161: 154.1 | I161: 161.9 | J161: 162.4 | K161: 163.3 | L161: 163.8
C162: Weather Corrected MD 50% POE | D162: MW | E162: Non-Coincident | F162: 140.2 | G162: 142.5 | H162: 143.9 | I162: 151.8 | J162: 152.3 | K162: 153.2 | L162: 153.7
E163: Coincident | F163: 136.8 | G163: 139 | H163: 140.5 | I163: 148.2 | J163: 148.7 | K163: 149.5 | L163: 150
C164: Weather Corrected MD 50% POE | D164: MVA | E164: Non-Coincident | F164: 141.6 | G164: 144 | H164: 145.6 | I164: 151.8 | J164: 152.3 | K164: 153.2 | L164: 153.7
E165: Coincident | F165: 138.2 | G165: 140.5 | H165: 142.1 | I165: 148.2 | J165: 148.7 | K165: 149.5 | L165: 150
B166: Eraring 132_33kV | C166: Substation Rating | D166: MVA | E166: Non-Coincident | F166: 57.16 | G166: 57.16 | H166: 57.16 | I166: 57.16 | J166: 57.16 | K166: 57.16 | L166: 57.16
E167: Coincident | F167: 57.16 | G167: 57.16 | H167: 57.16 | I167: 57.16 | J167: 57.16 | K167: 57.16 | L167: 57.16
C168: Raw Adjusted MD | D168: MW | E168: Non-Coincident
E169: Coincident
C170: Raw Adjusted MD | D170: MVA | E170: Non-Coincident
E171: Coincident
C172: Date MD occurred | E172: Non-Coincident
E173: Coincident
C174: Half hour time period MD occurred | E174: Non-Coincident
E175: Coincident
C176: Winter/Summer Peaking | E176: Non-Coincident | F176: Summer | G176: Summer | H176: Summer | I176: Summer | J176: Summer | K176: Summer | L176: Summer
E177: Coincident | F177: Summer | G177: Summer | H177: Summer | I177: Summer | J177: Summer | K177: Summer | L177: Summer
C178: Adjustments - Embedded generation | D178: MW | E178: Non-Coincident | F178: -0.618 | G178: -0.692 | H178: -0.742 | I178: -0.779 | J178: -0.819 | K178: -0.857 | L178: -0.893
E179: Coincident | F179: -0.796 | G179: -1.04 | H179: -1.191 | I179: -1.281 | J179: -1.364 | K179: -1.448 | L179: -1.531
C180: Weather Corrected 10% POE | D180: MW | E180: Non-Coincident | F180: 20.12 | G180: 20.2 | H180: 20.23 | I180: 20.22 | J180: 20.18 | K180: 20.14 | L180: 20.07
E181: Coincident | F181: 17.38 | G181: 17.45 | H181: 17.48 | I181: 17.47 | J181: 17.44 | K181: 17.4 | L181: 17.34
C182: Weather Corrected MD 10% POE | D182: MVA | E182: Non-Coincident | F182: 20.45 | G182: 20.54 | H182: 20.57 | I182: 20.55 | J182: 20.52 | K182: 20.47 | L182: 20.41
E183: Coincident | F183: 17.67 | G183: 17.74 | H183: 17.77 | I183: 17.76 | J183: 17.73 | K183: 17.69 | L183: 17.63
C184: Weather Corrected MD 50% POE | D184: MW | E184: Non-Coincident | F184: 18.93 | G184: 19.01 | H184: 19.03 | I184: 19.02 | J184: 18.99 | K184: 18.94 | L184: 18.88
E185: Coincident | F185: 16.35 | G185: 16.42 | H185: 16.44 | I185: 16.43 | J185: 16.4 | K185: 16.36 | L185: 16.31
C186: Weather Corrected MD 50% POE | D186: MVA | E186: Non-Coincident | F186: 19.28 | G186: 19.36 | H186: 19.39 | I186: 19.38 | J186: 19.34 | K186: 19.3 | L186: 19.23
E187: Coincident | F187: 16.66 | G187: 16.73 | H187: 16.75 | I187: 16.74 | J187: 16.71 | K187: 16.67 | L187: 16.61
B188: Gosford 132_33kV | C188: Substation Rating | D188: MVA | E188: Non-Coincident
E189: Coincident
C190: Raw Adjusted MD | D190: MW | E190: Non-Coincident
E191: Coincident
C192: Raw Adjusted MD | D192: MVA | E192: Non-Coincident
E193: Coincident
C194: Date MD occurred | E194: Non-Coincident
E195: Coincident
C196: Half hour time period MD occurred | E196: Non-Coincident
E197: Coincident
C198: Winter/Summer Peaking | E198: Non-Coincident | F198: Summer | G198: Summer | H198: Summer | I198: Summer | J198: Summer | K198: Summer | L198: Summer
E199: Coincident | F199: Summer | G199: Summer | H199: Summer | I199: Summer | J199: Summer | K199: Summer | L199: Summer
C200: Adjustments - Embedded generation | D200: MW | E200: Non-Coincident | F200: -1.08 | G200: -1.28 | H200: -1.435 | I200: -1.543 | J200: -1.659 | K200: -1.645 | L200: -1.603
E201: Coincident | F201: -1.583 | G201: -2.072 | H201: -2.374 | I201: -2.553 | J201: -2.721 | K201: -2.89 | L201: -3.056
C202: Weather Corrected 10% POE | D202: MW | E202: Non-Coincident | F202: 29.83 | G202: 29.65 | H202: 29.74 | I202: 30.22 | J202: 30.74 | K202: 30.98 | L202: 31.01
... 11370 more rows

Sheet 6.2 Reliability & Cust serv
B1: =INDEX(dms_Worksheet_List,MATCH(dms_Model,dms_Model_List)) -> REGULATORY REPORTING STATEMENT
B2: =INDEX(dms_TradingNameFull_List,MATCH(dms_TradingName,dms_TradingName_List)) -> Ausgrid
B3: =CONCATENATE("REGULATORY PERIOD FROM ", FRCP_y1," TO ",dms_MultiYear_FinalYear_Result) -> REGULATORY PERIOD FROM 2024-25 TO 2028-29
B4: 6.2 RELIABILITY AND CUSTOMER SERVICE PERFORMANCE
B6: There are FIVE tables on this worksheet. Each table has been grouped for ease of navigation. See the Instructions sheet on how to group or ungroup tables.
B8: 6.2.1 - UNPLANNED MINUTES OFF SUPPLY (SAIDI)
E9: Proposed target
B10: SAIDI | E10: =FRCP_y1 -> 2024-25 | F10: =FRCP_y2 -> 2025-26 | G10: =FRCP_y3 -> 2026-27 | H10: =FRCP_y4 -> 2027-28 | I10: =FRCP_y5 -> 2028-29
B11: Total sustained minutes off supply after removing excluded events
B12: =INDEX(dms_FeederName_1,MATCH(dms_TradingName,dms_TradingName_List)) -> CBD | E12: 13.218 | F12: 13.218 | G12: 13.218 | H12: 13.218 | I12: 13.218
B13: =INDEX(dms_FeederName_2,MATCH(dms_TradingName,dms_TradingName_List)) -> Urban | E13: 67.018 | F13: 67.018 | G13: 67.018 | H13: 67.018 | I13: 67.018
B14: =INDEX(dms_FeederName_3,MATCH(dms_TradingName,dms_TradingName_List)) -> Short rural | E14: 133.309 | F14: 133.309 | G14: 133.309 | H14: 133.309 | I14: 133.309
B15: =INDEX(dms_FeederName_4,MATCH(dms_TradingName,dms_TradingName_List)) -> Long rural | E15: 729.027 | F15: 729.027 | G15: 729.027 | H15: 729.027 | I15: 729.027
B16: =IF(ISBLANK(INDEX(dms_FeederName_5,MATCH(dms_TradingName,dms_TradingName_List))),"",INDEX(dms_FeederName_5,MATCH(dms_TradingName,dms_TradingName_List))) -> 
B17: Total | E17: =SUM(E12:E16) -> 942.572 | F17: =SUM(F12:F16) -> 942.572 | G17: =SUM(G12:G16) -> 942.572 | H17: =SUM(H12:H16) -> 942.572 | I17: =SUM(I12:I16) -> 942.572
B20: 6.2.2 - UNPLANNED INTERRUPTIONS TO SUPPLY (SAIFI)
E21: Proposed target
B22: SAIFI | E22: =FRCP_y1 -> 2024-25 | F22: =FRCP_y2 -> 2025-26 | G22: =FRCP_y3 -> 2026-27 | H22: =FRCP_y4 -> 2027-28 | I22: =FRCP_y5 -> 2028-29
B23: Total sustained interruptions after removing excluded events
B24: =INDEX(dms_FeederName_1,MATCH(dms_TradingName,dms_TradingName_List)) -> CBD | E24: 0.042 | F24: 0.042 | G24: 0.042 | H24: 0.042 | I24: 0.042
B25: =INDEX(dms_FeederName_2,MATCH(dms_TradingName,dms_TradingName_List)) -> Urban | E25: 0.592 | F25: 0.592 | G25: 0.592 | H25: 0.592 | I25: 0.592
B26: =INDEX(dms_FeederName_3,MATCH(dms_TradingName,dms_TradingName_List)) -> Short rural | E26: 0.968 | F26: 0.968 | G26: 0.968 | H26: 0.968 | I26: 0.968
B27: =INDEX(dms_FeederName_4,MATCH(dms_TradingName,dms_TradingName_List)) -> Long rural | E27: 1.983 | F27: 1.983 | G27: 1.983 | H27: 1.983 | I27: 1.983
B28: =IF(ISBLANK(INDEX(dms_FeederName_5,MATCH(dms_TradingName,dms_TradingName_List))),"",INDEX(dms_FeederName_5,MATCH(dms_TradingName,dms_TradingName_List))) -> 
B29: Total | E29: =SUM(E24:E28) -> 3.585 | F29: =SUM(F24:F28) -> 3.585 | G29: =SUM(G24:G28) -> 3.585 | H29: =SUM(H24:H28) -> 3.585 | I29: =SUM(I24:I28) -> 3.585
B32: 6.2.3 - UNPLANNED MOMENTARY INTERRUPTIONS TO SUPPLY (MAIFI)
E33: Proposed target
B34: MAIFI | E34: =FRCP_y1 -> 2024-25 | F34: =FRCP_y2 -> 2025-26 | G34: =FRCP_y3 -> 2026-27 | H34: =FRCP_y4 -> 2027-28 | I34: =FRCP_y5 -> 2028-29
B35: Total momentary interruptions after removing excluded events
B36: =INDEX(dms_FeederName_1,MATCH(dms_TradingName,dms_TradingName_List)) -> CBD
B37: =INDEX(dms_FeederName_2,MATCH(dms_TradingName,dms_TradingName_List)) -> Urban
B38: =INDEX(dms_FeederName_3,MATCH(dms_TradingName,dms_TradingName_List)) -> Short rural
B39: =INDEX(dms_FeederName_4,MATCH(dms_TradingName,dms_TradingName_List)) -> Long rural
B40: =IF(ISBLANK(INDEX(dms_FeederName_5,MATCH(dms_TradingName,dms_TradingName_List))),"",INDEX(dms_FeederName_5,MATCH(dms_TradingName,dms_TradingName_List))) -> 
B41: Total | E41: =SUM(E36:E40) -> 0 | F41: =SUM(F36:F40) -> 0 | G41: =SUM(G36:G40) -> 0 | H41: =SUM(H36:H40) -> 0 | I41: =SUM(I36:I40) -> 0
B44: 6.2.3(B) - UNPLANNED MOMENTARY INTERRUPTIONS TO SUPPLY (MAIFIe)
E45: Proposed target
B46: MAIFIe | E46: =FRCP_y1 -> 2024-25 | F46: =FRCP_y2 -> 2025-26 | G46: =FRCP_y3 -> 2026-27 | H46: =FRCP_y4 -> 2027-28 | I46: =FRCP_y5 -> 2028-29
B47: Total momentary interruptions after removing excluded events
B48: =INDEX(dms_FeederName_1,MATCH(dms_TradingName,dms_TradingName_List)) -> CBD
B49: =INDEX(dms_FeederName_2,MATCH(dms_TradingName,dms_TradingName_List)) -> Urban
B50: =INDEX(dms_FeederName_3,MATCH(dms_TradingName,dms_TradingName_List)) -> Short rural
B51: =INDEX(dms_FeederName_4,MATCH(dms_TradingName,dms_TradingName_List)) -> Long rural
B52: =IF(ISBLANK(INDEX(dms_FeederName_5,MATCH(dms_TradingName,dms_TradingName_List))),"",INDEX(dms_FeederName_5,MATCH(dms_TradingName,dms_TradingName_List))) -> 
B53: Total | E53: =SUM(E48:E52) -> 0 | F53: =SUM(F48:F52) -> 0 | G53: =SUM(G48:G52) -> 0 | H53: =SUM(H48:H52) -> 0 | I53: =SUM(I48:I52) -> 0
B56: The number of distribution customers is calculated as the average of the number of customers at the beginning of the reporting period and the number of customers at the end of the reporting period.
B58: 6.2.4 - DISTRIBUTION CUSTOMER NUMBERS
C59: Forecast
B60: Average customer numbers | C60: =CRCP_y4 -> 2022-23 | D60: =CRCP_y5 -> 2023-24 | E60: =FRCP_y1 -> 2024-25 | F60: =FRCP_y2 -> 2025-26 | G60: =FRCP_y3 -> 2026-27 | H60: =FRCP_y4 -> 2027-28 | I60: =FRCP_y5 -> 2028-29
B61: =INDEX(dms_FeederName_1,MATCH(dms_TradingName,dms_TradingName_List)) -> CBD | C61: 31237 | D61: 31415 | E61: 31571 | F61: 31743 | G61: 31963 | H61: 32232 | I61: 32551
B62: =INDEX(dms_FeederName_2,MATCH(dms_TradingName,dms_TradingName_List)) -> Urban | C62: 1471587 | D62: 1479995 | E62: 1487301 | F62: 1495419 | G62: 1505791 | H62: 1518459 | I62: 1533484
B63: =INDEX(dms_FeederName_3,MATCH(dms_TradingName,dms_TradingName_List)) -> Short rural | C63: 287993 | D63: 289639 | E63: 291069 | F63: 292658 | G63: 294687 | H63: 297167 | I63: 300107
B64: =INDEX(dms_FeederName_4,MATCH(dms_TradingName,dms_TradingName_List)) -> Long rural | C64: 2455 | D64: 2469 | E64: 2482 | F64: 2495 | G64: 2512 | H64: 2534 | I64: 2559
B65: =IF(ISBLANK(INDEX(dms_FeederName_5,MATCH(dms_TradingName,dms_TradingName_List))),"",INDEX(dms_FeederName_5,MATCH(dms_TradingName,dms_TradingName_List))) -> 
B66: Total | C66: =SUM(C61:C65) -> 1793272 | D66: 1803518 | E66: 1812423 | F66: 1822315 | G66: 1834953 | H66: 1850392 | I66: 1868701
B68: The AER's definition of calls answered within 30 seconds is as follows: Calls to the fault line answered in 30 seconds where the time to answer a call is measured from when the call enters the telephone system of the call centre (including that time when it may be ringing unanswered by any response) and the caller speaks with a human operator, but excluding the time that the caller is connected to an automated interactive service that provides substantive information. This measure does not apply to: - calls to payment lines and automated interactive services; - calls abandoned by the customer within 30 seconds of the call being queued for response by a human operator. Where the time in which a telephone call is abandoned is not measured, then an estimate of the number of calls abandoned within 30 seconds will be determined by taking 20 per cent of all calls abandoned. Note: Being placed in a queuing system (automated or otherwise) does not constitute a response. 'Calls answered within 30 seconds' and 'Calls received' should be calculated excluding calls abandoned within 30 seconds of being queued for a human operator; and calls to payment lines and automated interactive services.
B70: 6.2.5 - CUSTOMER SERVICE
E71: Proposed target
E72: =FRCP_y1 -> 2024-25 | F72: =FRCP_y2 -> 2025-26 | G72: =FRCP_y3 -> 2026-27 | H72: =FRCP_y4 -> 2027-28 | I72: =FRCP_y5 -> 2028-29
B73: Number of calls received | E73: 127459 | F73: 127459 | G73: 127459 | H73: 127459 | I73: 127459
B74: Number of calls answered within 30 seconds | E74: 108340 | F74: 108340 | G74: 108340 | H74: 108340 | I74: 108340
B75: Percentage of calls answered within 30 seconds | E75: =IFERROR((E74/E73),"") -> 0.8499988232 | F75: =IFERROR((F74/F73),"") -> 0.8499988232 | G75: =IFERROR((G74/G73),"") -> 0.8499988232 | H75: =IFERROR((H74/H73),"") -> 0.8499988232 | I75: =IFERROR((I74/I73),"") -> 0.8499988232

Sheet 7.1 Policies and Procedures
B1: =INDEX(dms_Worksheet_List,MATCH(dms_Model,dms_Model_List)) -> REGULATORY REPORTING STATEMENT
B2: =INDEX(dms_TradingNameFull_List,MATCH(dms_TradingName,dms_TradingName_List)) -> Ausgrid
B3: =CONCATENATE("REGULATORY PERIOD FROM ", FRCP_y1," TO ",dms_MultiYear_FinalYear_Result) -> REGULATORY PERIOD FROM 2024-25 TO 2028-29
B4: 7.1 PLANS, POLICIES, PROCEDURES AND STRATEGIES
B6: 7.1.1 - PLANS, POLICIES, PROCEDURES AND STRATEGIES
C7: Brief description | D7: Relevance to regulatory proposal | E7: Expenditure impact
C8: Description of the plan, policy, procedure or strategy. | D8: Identify the element of the proposal/supporting documents that the policy, plan, procedure or strategy is relevant to e.g. replacement capex, capacity utilisation thresholds, opex | E8: Is this policy, plan or procedure identified in the response to section 4 'Step Changes' of the notice (yes or no)?
B9: Corporate
B10: <insert relevant policy, plan, strategy etc>
B13: Governance framework
B14: Board Policy - Group Governance Framework | C14: This policy sets out the respective responsibilities of the Ausgrid Asset Partnership (AAP), the Ausgrid Operating Partnership (AOP), Ausgrid Finance Pty Ltd (Ausgrid Finance) and Ausgrid Management Pty Ltd (Ausgrid Management) and the approach to Board decision making. For the purposes of this policy each of AAP, AOP, Ausgrid Finance and Ausgrid Management are referred to as an entity. The Board of each entity has agreed to adopt the governance protocols set out in this document. The policy is not intended to override any provisions of the Partnership Deeds, Constitutions or constituent documents of each entity. If there is any inconsistency, the Partnership Deed, constitution or other constituent document prevails. | D14: Opex | E14: No
B15: Board Charters | C15: The company's boards have adopted Charters to guide the boards in the exercise of their responsibilities in the service of their shareholders, customers and other stakeholders. The principles set out in the Charters are in addition to and are not intended to change or interpret any Partnerships or laws for the application of the company's Constitution. The board will review this Charters at least annually and, if appropriate, revise this Charter from time to time. The Charter delineates the functions and responsibilities of the board and management. | D15: Opex | E15: No
B16: Board - Remuneration and Nominations Committee Charter | C16: The company's board has adopted a Charter for a Remuneration and Nominations Committee with the purpose to assist the Board of the Partnership in fulfilling its responsibilities with regard to executive remuneration, director appointments and succession planning. | D16: Opex | E16: No
B18: Board - Audit Committee Charter | C18: The company's board has adopted a Charter for a Audit Committee with the purpose to discharge its responsibilities for oversight and review in relation to: - financial reporting including the integrity of financial reports; - accounting policies; - internal controls; - performance of the internal and external audit functions; and - tax risk management governance. | D18: Opex | E18: No
B19: Board - Safety, Risk and Compliance Committee Charter | C19: The company's board has adopted a Charter for a Safety, Risk and Compliance Committee with the purpose to provide leadership, guidance and discharge its responsibilities for oversight and review in relation to: - Work, Health and Safety (WHS) practices and strategy; - the risk management framework (including insurance programs); - monitoring processes for compliance with laws, contracts and regulations applicable to the company's operations; and - compliance with the Code of Conduct. | D19: Opex | E19: No
B20: Board Policy - Risk Management | C20: This policy sets out the Ausgrid board's commitment and approach to embed and oversee an effective and integrated risk management framework that is supported by positive risk conduct in all that we do as a company. | D20: Opex | E20: No
B21: Board Policy - Compliance | C21: This policy sets out the Ausgrid's commitment and approach to embed and manage an effective compliance framework with regard to the legal, regulatory and industry requirements that affect the business | D21: Opex | E21: No
B22: Board Policy - Group Delegation of Authority to the Chief Executive Officer | C22: This Delegations Policy sets out the delegations framework and the delegated authority granted to the CEO by the Board of Ausgrid Management Pty Limited (the Board) to support effective decision making. Ausgrid Management Pty Limited (Ausgrid) provides agency services to both the Ausgrid Asset Partnership (AAP) and Ausgrid Operator Partnership (AOP) (collectively The Partnerships). These services are provided in accordance with the terms of the AAP and AOP Partnership Deeds and the Management Agreement. In accordance with the Management Agreement, AAP and AOP have issued directions to Ausgrid in relation to the Agency Services to be performed. Those directions authorise Ausgrid to exercise each and every function and all authority of the Partnerships that is necessary for the day-to-day management of the Partnership Business except for the matters expressly reserved for the decision of the Partnership Boards. | D22: Opex | E22: No
B23: Board Policy - Interim Group Treasury | C23: This policy provides an overview of the manner in which Ausgrid assesses treasury related risks and deploys appropriate measures to manage and mitigate those risks with the objectives of protecting Ausgrid's cash flows, profitability and reputation and maintaining a minimum long term, standalone credit rating. | D23: Opex | E23: No
B24: AAP Board Policy - Tax Governance; Ausgrid Finance Board Policy - Tax Governance; AOP Board Policy - Tax Governance; Ausgrid Management Board Policy - Tax Governance | C24: These policies is to set out the respective Board's commitment and approach to embed and oversee an effective and integrated Tax Governance Framework that supports all tax compliance and related activities and decisions. | D24: Opex | E24: No
B25: Board Policy - Group External Auditor Independence | C25: This document sets out the policy of the Ausgrid Group (the Group) in relation to the independence of the external auditor and the engagement of the external auditor for audit and non-audit services. | D25: Opex | E25: No
B26: Board Policy - Committment to Health, Safety and Environment | C26: Our Commitment: We will conduct our business in a way that: Minimises risks that our assets, operations and activities pose to the health and safety (both physical and mental) of our employees, contractors, visitors and the community; and Drives environmental sustainability and protects the environment. Our Actions We embrace our responsibility to achieve our HSE Commitment by: Visible & Felt Leadership, Collective Accountability, Organisational Learning. | D26: Opex | E26: No
B27: Framework - Risk Management GV000-P0237 | C27: The Risk Management Framework (the âFrameworkâ) has been developed to support management in embedding risk management into all critical processes, decisions and management systems. The Framework supplements the Risk Management Policy and supports its implementation. | D27: Opex, Capex | E27: No
B31: Accounting policies, procedures and methodologies (including a capitalisation policy, depreciation policy and an approved expenditure allocation methodology)
B32: Finance Policy FM000-Y0205 | C32: The Finance Policy aims to ensure a consistent and uniform application of the Australian Accounting Standards to all financial reporting processes applicable to each entity in the Ausgrid Group. | D32: Opex, Capex | E32: No
B33: Finance Framework FM000-P0206 | C33: This finance framework aims to ensure a consistent and uniform application of accounting principles throughout the Ausgrid Groupâs financial reporting processes, while also ensuring compliance with Australian Accounting Standards and ensuring reliability of financial information | D33: Opex, Capex | E33: No
B34: Finance Procedure - Revenue Recognition FM000-P0210 | C34: This procedure is to be read in conjunction with the Finance Framework. It aims to provide further explanation of the application and treatment of accounting principles outlined in the Finance Framework: Section 4 â Revenue | D34: Revenue, Capex | E34: No
B35: Finance Procedure - Accrued Expenses FM000-P0214 | C35: This procedure is to be read in conjunction with the Finance Framework. It aims to provide further detailed explanation of the application and treatment of the accrual principle outlined in the Finance Framework | D35: Opex, Capex | E35: No
B36: Finance Procedure - Capitalisation FM000-P0207 | C36: This procedure is to be read in conjunction with the Finance Framework. It aims to provide further explanation of the application and treatment of accounting principles outlined in the Finance Framework: Section 1 â Capitalisation | D36: Capex for accounting (not regulatory), Capex | E36: No
B37: Finance Procedure - Impairment of Assets FM000-P0211 | C37: This procedure is to be read in conjunction with the Finance Framework. It aims to provide further explanation of the application and treatment of accounting principles outlined in the Finance Framework: Section 8 â Impairment of assets. | D37: Opex, Asset value | E37: No
B38: Finance Procedure - Intangible Assets FM000-P0208 | C38: This procedure is to be read in conjunction with the Finance Framework. It aims to provide further explanation of the application and treatment of accounting principles outlined in the Finance Framework: Section 2 â Intangible assets. | D38: Opex, Capex | E38: No
B39: Finance Procedure - Provisions FM000-P0213 | C39: This procedure is to be read in conjunction with the Finance Framework. It aims to provide further explanation of the application and treatment of accounting principles outlined in the Finance Framework: Section 10 â Provisions | D39: Asset Value, Capex | E39: No
B40: Finance Procedure - Leases FM000-P0209 | C40: This procedure is to be read in conjunction with the Finance Framework. It aims to provide further explanation of the application and treatment of accounting principles outlined in the Finance Framework: Section 3 â Leases. | D40: Opex | E40: No
B41: Finance Procedure - Fixed Assets FM000-P0212 | C41: This procedure is to be read in conjunction with the Finance Framework. It aims to provide further explanation of the application and treatment of accounting principles outlined in the Finance Framework: Section 9 â Fixed assets. | D41: Capex | E41: No
B64: Policy - Asset Management NW000-Y0085 | C64: To outline the organisationâs commitment to applying effective asset management practices to support the delivery of the organisationâs corporate strategy and objectives. | D64: Opex; Capex | E64: No
B65: Procedure - Asset Management System Framework Governance NW000-P0203 | C65: To outline the decision, endorsement and approval pathways for changes to Ausgridâs Asset Management System (AMS) to ensure the system delivers the objectives outlined in Ausgridâs Asset Management Policy. | D65: Opex; Capex
B68: Division Procedure - Asset Management Strategy NW000-P0217 | C68: Outline the process for Asset Strategy management. | D68: Opex; Capex | E68: No
B72: Internal standards for network planning, design, maintenance and operation
B73: <insert relevant policy, plan, strategy etc>
B74: Distribution and Transmission Annual Planning Report | C74: It has been prepared to comply with National Electricity Rules (NER) clause 5.13.2 "Distribution Annual Planning Report" (DAPR) and clause 5.12.2 "Transmission Annual Planning Report" (TAPR). Version 183 of the NER has been used for the purpose of this report. | D74: Replacement capex; Maintenance opex; Asset condition assessments; Asset risks | E74: No
B105: Policy - Investment Governance Framework GV000-Y0032 | C105: To provide a framework which promotes investment decisions which are: streamlined â decision pathways are clear and efficient; consistent â assessment of needs, outcomes and risks are aligned; timely â information is provided within timeframes suitable for appropriate action; relevant â appropriate information is submitted to the necessary forum to enable informed decisions; and value enhancing â selection of investments that deliver value for customers and shareholders. | D105: Capex | E105: No
B106: Procedure - Network Investment Governance GV000-P0033 | C106: To provide guidance on the process to obtain endorsement and approval for network investments in order to support investment decisions | D106: Capex | E106: No
B107: Procedure - Network Investment Governance Decision Pathways NW000-P0067 | C107: Outlines the decision, endorsement and approval pathways of network investments across the integrated investment governance life cycle and includes references to all the relevant NIGF procedures and forms | D107: Capex | E107: No
B108: Procedure - Capital Budget Request GV000-P0066 | C108: To outline the business rules with the electronic entry, endorsement and approval of network and non-network project capital funding requests over key stages of the capital investment. | D108: Opex; Capex | E108: No
B109: Division Workplace Instruction - Development Brief for Network Capital Projects (Subtransmission) NW000-W0060 | C109: To outline and describe the tasks in preparing, reviewing and obtaining approval for a Development Brief for Network capital project for subtransmission zone assets. The Development Brief supports the Delivery Plan and Gate 2 investment governance approval process. | D109: Capex | E109: No
B110: Division Workplace Instruction - Program Brief for Network Capital Programs | C110: To outline and describe the tasks in preparing, reviewing and obtaining approval for a Program Brief for Network Capital Programs. The program Brief supports the Delivery Plan and subprogram Gate 2 investment governance approval process. | D110: Capex | E110: No
B111: Procedure - Network Investment Governance Define Network Capital & Maintenance Investment Portfolio | C111: To outline the activities and outputs of the define network investment portfolio process within the identify needs and develop options stage of the integrated investment governance life cycle. The purpose of this process is to identify the steps required to compile the prioritised network capital and maintenance investment portfolios. | D111: Capex | E111: No
B112: Procedure - Network Investment Governance Asset Planning | C112: To outline the activities and outputs of the network asset planning process within the identify needs and develop options stage of the integrated Investment Governance life cycle. The purpose of the asset planning process is to define the steps by which the company plans and invests in its electricity network. | D112: Capex | E112: No
B113: Procedure - Network Investment Governance Preliminary Assessment | C113: To outline the activities and outputs of the preliminary assessment process within the preliminary assessment stage of the integrated network investment governance life cycle. The preliminary assessment process tests the network need for a program/project by developing the preliminary business case/approval documentation for Gate 2 preliminary approval. | D113: Capex | E113: No
B114: Procedure - Network Investment Governance Develop Project | C114: To outline the activities and outputs of the develop project process within the develop program/project stage of the integrated investment governance life cycle. | D114: Capex | E114: No
B115: Procedure - Network Investment Governance Deliverability and Feasibility Assessment | C115: To outline the activities and outputs of the deliverability and feasibility assessment process for network capital projects within the preliminary assessment stage of the integrated Investment Governance life cycle. | D115: Capex | E115: No
B116: Procedure - Network Investment Governance Plan Program | C116: To outline the activities and outputs of the plan program process within the develop project/program stage of the integrated investment governance life cycle. | D116: Capex | E116: No
B117: Procedure - Network Investment Governance Deliver Program/Project/Task | C117: To outline the activities and outputs of the deliver program, project and task process in the execute program, project and task stage of the integrated investment governance life cycle. The company manages program, project and task delivery through to closure, whether delivered by internal resources or the market, so an identified network need is delivered to time, cost and scope. | D117: Capex | E117: No
B118: Procedure - Network Investment Governance Monitor Portfolio Program and Project Performance | C118: To define a performance monitoring framework for network investments | D118: Capex | E118: No
B119: Procedure - Network Investment Governance Initiate Reactive Work Request | C119: To define a repeatable, consistent and scalable process for initiating reactive work requests on company network assets. | D119: Capex | E119: No
B120: Procedure - Network Investment Governance Assess Sub-Program Project Task | C120: To outline the activities and outputs of the assess sub-program project(s)/task process within the develop project/program stage of the integrated Investment Governance life cycle. | D120: Capex | E120: No
B121: Procedure - Network Investment Governance Assess Capital Reactive Work Request | C121: To outline the activities and outputs of the assess reactive work request process within the develop program/project stage of the integrated Investment Governance life cycle. | D121: Capex | E121: No
B122: Procedure - Project Management | C122: To outline the company's project management process and stages (initiate, plan, execute, and close) as part of the overall integrated Network Investment Governance lifecycle. | D122: Capex | E122: No
B123: Procedure - Network Investment Governance Program/Project/Task Close | C123: To outline the activities and outputs of the program, project and task close process within the evaluate stage of the integrated Investment Governance lifecycle. | D123: Capex | E123: No
B124: Procedure - Network Investment Governance Evaluate Program/Project | C124: To outline the activities and outputs of the evaluate program/project process within the evaluate stage of the integrated Investment Governance life cycle. | D124: Capex | E124: No
B125: Procedure - Network Investment Governance Assess Delivery Risks & Constraints | C125: To outline the activities and outputs of the assess delivery risks and constraints process within the identify needs and develop options stage of the integrated Investment Governance lifecycle. | D125: Capex | E125: No
B126: Procedure - Network Resource Planning | C126: To outline the activities and outputs of the workforce planning process within the identify needs and develop options stage of the integrated investment governance life cycle. | D126: Capex | E126: No
B127: Procedure - Investment Evaluation | C127: To outline the process for preparing and reviewing financial evaluations on investment options so that these evaluations are conducted in a streamlined and consistent manner. | D127: Capex | E127: No
B128: Procedure - Network Investment Governance Change Control | C128: To provide a framework for the management, monitoring and implementation of changes to the scope, time, cost, or risk of approved network capital programs/projects in the company's investment portfolios during the approval stages of the investment lifecycle as measured against approved baselines. | D128: Capex | E128: No
B129: Company Procedure - Network Investment Governance Document Repository | C129: To outline/describe the business rules associated with creating and managing the Network Investment Governance Framework (NIGF) documents in HPRM NIG. | D129: Capex | E129: No
B136: Refer to the below Network Standards (NS)
B161: Network Standards (NS) | C161: Full listing of current Network Standard is provided below | D161: Network Standards underlie unit rates, frequency and duration of maintenance tasks, and the construction and operation of the network. Accordingly, they have an indirect impact on our proposal. There have been no changes to technical standards since the proposal that have had a material impact on the current proposal.
B162: NS 100 Field Recording of Network Assets | C162: This Network Standard sets out the requirements of recording as-built asset information for Ausgrid's transmission and distribution networks, and third-party fibre assets interacting with company assets. The objective of field recording is to provide an accurate record of the position, type and quantity of Ausgrid's assets, to enable those assets to be quickly identified and located at a later date. In addition, this information is used to maintain Ausgrid's Geographic Information System (GIS). | D162: As above | E162: No
B163: NS 102 Working on or near Poles With Telecommunication Transmitters | C163: This Standard details the procedure to follow so that work may be completed safely and efficiently on Ausgrid poles or street lighting columns where telecommunication transmitter installations are installed. This standard applies to all Ausgrid staff, contractors and ASPs | D163: As above | E163: No
B164: NS 104 Specification for Electrical Network Project Design Plans | C164: Ausgrid's specification for Network Project Design Plans | D164: As above | E164: No
B165: NS 109 Design Standards for Overhead Supply Developments and Distribution Centres | C165: Details design criteria for 415V and 11kV overhead reticulation systems | D165: As above | E165: No
B166: NS 110 Design and Construction Standard for Underground Residential Subdivisions | C166: Provides the design and construction criteria for 415V and 11kV reticulation systems in Underground Residential Distribution (URD) estates situated within the supply area of Ausgrid. | D166: As above | E166: No
B167: NS 112 Design Standards for Industrial and Commercial Developments | C167: Details design criteria for 415V and 11kV reticulation systems and for street lighting in commercial and industrial developments | D167: As above | E167: No
B168: NS 113 Site Selection and Construction Design Requirements for Chamber Substations | C168: Provides Ausgrid's minimum site selection, building design and construction requirements for the establishment of new 11kV Chamber Substations with ratings up to and including 4.5 MVA. | D168: As above | E168: No
B169: NS 114 Electrical Design and Construction Standards for Chamber Type Substations | C169: Details the criteria for electrical design of 11kV chamber type distribution substations | D169: As above | E169: No
B170: NS 116 Design Standards for Distribution Equipment Earthing | C170: Provides the criteria for earthing of distribution substations to be connected to Ausgrid's network. | D170: As above | E170: No
B171: NS 117 Design and Construction Standards for Kiosk Type Substations | C171: Details the criteria for electrical design of kiosk type distribution substations | D171: As above | E171: No
B172: NS 119 Public Lighting Design And Construction | C172: Details the design and construction requirements for all public lighting assets in the Sydney, Central Coast and Hunter regions. | D172: As above | E172: No
B173: NS 122 Pole Mounted Substation Site Selection and Construction | C173: Details the requirements for constructing pole transformers | D173: As above | E173: No
B174: NS 124 Specification for Overhead Connections (100 to 400Amps) | C174: Provides the requirements for the erection and connection of overhead service cables, up to and including nominal 400 Amps in Ausgrid's supply area | D174: As above | E174: No
B175: NS 125 Construction of Low Voltage Overhead Mains | C175: Details the fittings and installation of LV ABC | D175: As above | E175: No
B176: NS 126 Construction of High Voltage Overhead Mains | C176: NS 126 is Ausgrid's specification for the design and construction of 11kV or 12.7kV SWER Overhead lines within the Ausgrid Supply Network area. | D176: As above | E176: No
B177: NS 127 Low Voltage Cable Joints and Terminations | C177: Provides Ausgrid's requirements for making cable joints and terminations on low voltage cables. | D177: As above | E177: No
B178: NS 128 Pole Installation and Removal | C178: Details the requirements for positioning, handling and removal of poles | D178: As above | E178: No
B179: NS 129 11kV Joints and Terminations Paper Insulated Lead Covered Cables | C179: Details a number of 11kV PILC cable joints and terminations | D179: As above | E179: No
B180: NS 130 Laying of Underground Cables Up to and including 11kV | C180: Details the requirements for trenching, reinstatement, and laying underground conduits and cables, up to and including nominal 11kV in Ausgrid's supply area. | D180: As above | E180: No
B181: NS 135 Construction of 33kV, 66kV and 132kV Overhead Mains | C181: Specifies the requirement for the design and construction of overhead sub-transmission lines for use on the Ausgrid network | D181: As above | E181: No
B182: NS 136 Assessment and Management of Low Voltage Parallels | C182: Defines the management process for low voltage parallels within Ausgrid | D182: As above | E182: No
B183: NS 141 Site Selection and Site Preparation Standards for Kiosk Type Substations | C183: Provides the criteria for siting of kiosk distribution substations in all off-street locations and footpath sites in all areas of Ausgrid. | D183: As above | E183: No
B184: NS 143 Easements, Leases and Rights of Way | C184: Details the basic requirements for easements | D184: As above | E184: No
B185: NS 145 Pole Inspection and Treatment | C185: Describes the inspection, assessment and treatment procedures for timber poles, reinforced poles, concrete and steel poles, composite poles, fibre composite poles, lighting standards, lightning masts and water crossing sign supports. Appendix Describes the various poles owned by Rail Corp, Telstra, RTA, Local Council etc. | D185: As above | E185: No
B186: NS 146 Inspection Procedure for Working on Poles | C186: This Network Standard applies to all staff, contractors, Accredited Service Providers (ASPs), Telecommunication workers and any other personnel who have authority to work on Ausgrid power poles. It also applies when Ausgrid's staff or Ausgrid's contractors work on privately owned power poles, or poles belonging to other Authorities when working on behalf of Ausgrid. | D186: As above | E186: No
B187: NS 148 Overhead Line Support, Street Light Column, Pit and Pillar Labelling | C187: Details the allocation and installation of identification labels for overhead line supports, street lighting poles, pits, distribution pillars, and ancillary assets. | D187: As above | E187: No
B188: NS 149 Drawing Content for Chamber Type Substations, Control Points, Cable Risers and Ductlines | C188: Ausgrid's specification for the minimum content of the design drawing package required by Ausgrid for design of chamber type substations, control points, cable risers and ductlines. | D188: As above | E188: No
B189: NS 156 Working Near or Around Underground Cables | C189: Details the safety requirements that apply to all excavation work carried out in areas where an Ausgrid underground cable installation is located nearby. | D189: As above | E189: No
B190: NS 158 Labelling of Mains and Apparatus | C190: Ausgrid's specification for labelling of mains & apparatus. | D190: As above | E190: No
B191: NS 159 Installation of Cables and Conduits using Trenchless Techniques | C191: This Network Standard is to be used for the installation of underground cables and conduits by trenchless techniques where such techniques are either specified by Ausgrid or have been requested by a third party and reviewed by Ausgrid on a project specific basis. This Standard covers underground cables of all voltages | D191: As above | E191: No
B192: NS 161 Specification for Testing of Underground Cables | C192: Ausgrid's specification for testing pilot, low voltage and high voltage distribution and sub-transmission cable installations. | D192: As above | E192: No
B193: NS 162 Installation of Fibre Optic Communication Cables in Ausgrid Conduit Network and Substations | C193: Details the requirements for installing third party fibre optic or conductive communications cables in Ausgrid's ductlines and extending them through Ausgrid substations | D193: As above | E193: No
B194: NS 165 Safety Requirements for Non Electrical Work in and around Live Substations | C194: Details the specification and requirements for construction work, including excavation, in Ausgrid's major substations and switching stations. | D194: As above | E194: No
B195: NS 166 Routine Overhead Line Inspection | C195: This Network Standard describes the scope for inspection of Ausgrid's overhead pole lines and associated infrastructure | D195: As above | E195: No
B196: NS 167 Positioning of Poles and Lighting Columns | C196: Covers the requirements and responsibilities for selecting distribution and sub-transmission pole positions and street lighting column positions | D196: As above | E196: No
B197: NS 168 Design and Construction of 33kV, 66kV and 132kV Underground Cables | C197: Specifies the requirements for the design and construction of underground sub-transmission lines for use on the Ausgrid network | D197: Unit rates for sub-transmission underground | E197: No
B198: NS 169 Telecommunications Installations on Ausgrid HV Transmission Towers | C198: Specifies the technical requirements for the attachment of telecommunications installations to high voltage steel transmission towers | D198: As above | E198: No
B199: NS 171 Fire Stopping in Substations | C199: Ausgrid's specification and requirements for the installation of firestopping materials in openings in substation walls, floors and ceilings | D199: As above | E199: No
B200: NS 172 Design Requirements for Cable Pits, Vaults and Bays | C200: Network Standard NS 172 describes the design requirements for cable jointing pits and vaults. | D200: As above | E200: No
B201: NS 174 Environmental Procedures | C201: Outlines the environmental procedures to be adopted by all personnel involved in the construction, maintenance and operation of Ausgrid's network. | D201: As above | E201: No
B202: NS 177 11kV Joints (including Transition Joints) & Terminations -Polymeric Insulated Cables | C202: Network Standard NS 177 specifies the requirements for making joints and terminations on 11,000 Volts polymeric insulated cables in Ausgrid's supply area. This Standard also specifies the requirements for transition joints from polymeric insulated cables to paper insulated lead covered (PILC) cables. | D202: As above | E202: No
B203: NS 178 Secondary System Requirements for Major Substations | C203: Network Standard NS 178 covers the planning and design requirements for secondary systems for subtransmission feeders, subtransmission substations and zone substations | D203: As above | E203: No
B204: NS 179 Vegetation Management | C204: Withdrawn and replaced by ISSC3 Guidelines for Managing Vegetation Near Power Lines | D204: As above | E204: No
B205: NS 181 Approval of Materials and Equipment and Network Standard Variations | C205: Details the approval requirements of materials and equipment used in the construction of, and which ultimately forms part of, Ausgrid's electrical network. This NUS also details the approval requirements of Network Standard variations. | D205: As above | E205: No
B206: NS 183 Installation of Private Attachments on Ausgrid Poles | C206: Details the procedures required to ensure that proposals to install third party attachments on Ausgrid's power poles and lighting columns are properly handled and comply with Ausgrid standards. | D206: As above | E206: No
B207: NS184 Fences for Zone and Subtransmission Substations | C207: This Network Standard sets out the minimum requirements for intruder resistant fences and boundary fences for new substations only. Refurbishment works shall conform to this standard where reasonably practicable. | D207: As above | E207: No
B208: NS 185 Major Substations Building Design Standard | C208: NS 185 details the general requirements for various Construction, Architectural, Civil and Structural engineering aspects to be considered and included into the design of Major Substations | D208: As above | E208: No
B209: NS 186 Major Substations Civil Works Design Standard | C209: NS 186 details the general requirements for various Construction, Architectural, Civil and Structural engineering aspects to be considered and included into the design of Major Substations. | D209: As above | E209: No
B210: NS 187 Passive Fire Mitigation Design of Substations | C210: Details Ausgrid's minimum requirements for passive fire protection systems needed to provide protection of Ausgrid's substations. | D210: As above | E210: No
B211: NS 188 Design for Substation Overpressure | C211: Network Standard NS 188 details the design requirements for the management of substation overpressures resulting from arc faults and deflagrations. | D211: As above | E211: No
B212: NS 189 Oil Containment for Major Substations | C212: NS 189 details the general requirements for oil containment at major substations. | D212: As above | E212: No
B213: NS 190 Oil Containment Operational Requirements for Major Substations | C213: Details the operational requirements for oil containment systems at major substations. | D213: As above | E213: No
B214: NS 191 Batteries & Battery Chargers in Major Substations | C214: Details 110 V battery and battery charger systems within new Major Substations consisting of Sub-transmission and Zone Substations. | D214: As above | E214: No
B215: NS192 Blasting near substations and power lines | C215: This standard sets acceptable limits and controls that need to be put in place to prevent damage to Ausgrid assets resulting from mine and quarry blasting. | D215: As above | E215: No
B216: NS193 Ground movement and vibration limits near buried cables | C216: This standard sets the acceptable ground movement and vibration limits for Ausgrid's buried electrical cables to prevent damage to Ausgrid's assets due to major site works by other organisations | D216: As above | E216: No
B217: NS 194 Embedded Generation | C217: Outlines the requirements an Embedded Generator should fulfil when connecting to the Ausgrid's network. | D217: As above | E217: No
B218: NS 195 High Voltage Customer Connections (HVCs) | C218: Outlines the requirements of a high voltage customer connection to Ausgrid's Distribution System | D218: As above | E218: No
B219: NS 196 Mobile Generators | C219: Details the requirements for the connection and operation of Mobile Generators on Ausgrid's network | D219: As above | E219: No
B220: NS 199 Safe Electrical Work on Specific Undrground Assets | C220: Outlines mandatory safe electrical working requirements applicable to all Accredited Service Providers working on various low voltage assets. | D220: As above | E220: No
B221: NS 200 Major Substations Ventilation Design Standard | C221: NS 200 details the technical aspects to be considered in the design of ventilation systems for Ausgrid major substation buildings. Generally this includes new zone and sub-transmission substations. | D221: As above | E221: No
B222: NS 201 All Dielectric Self Supporting Fibre Optic Cabling for Installation on Poles | C222: Ausgrid's specification for the design and installation of Aerial All Dielectric Self Supporting Fibre Optic Networks - Note: this standard is for Ausgrid fibre installation only - not NBN | D222: As above | E222: No
B223: NS 203 Telecommunications Network: Master Policy Document | C223: Provides the design criteria for Ausgrid personnel associated with the planning, design, construction, maintenance and auditing of communication network assets used to support the electrical network. The document includes communication requirements for protection circuits, which being the most demanding in terms of availability, determine key aspects of the communications network. | D223: As above | E223: No
B224: NS 204 Communication Pits - Specifications and Installation | C224: Provides the specifications and guidelines for the purchase and installation of communication pits (buried and surface) to be used in the Ausgrid communications network for fibre optic cable installations, particularly when installed independently of power cable routes. | D224: As above | E224: No
B225: NS205 Telecommunications Route Markers | C225: This document details the requirements for Ausgrid's buried telecommunications assets installed stand-alone to be made locatable after installation and reinstatement works are complete. This standard defines asset location methods to be applied either at the time of new buried asset installation, or by retrofitting to pre-existing assets. NS205 also defines asset location requirements for Ausgrid telecommunications infrastructure installed through bridge and tunnel voids. | D225: As above | E225: No
B226: NS 208.2.1 Telecommunications Communication Cabinet Architecture Design Work Instruction | C226: Defines the requirements for selection of equipment where standard equipment has not been specified, or a non standard installation is required | D226: As above | E226: No
B227: NS 208.2.2 Telecommunications Substations Communication Cabinet Interconnectivity Design Work Instruction | C227: NS208.2.2 defines the connectivity to be deployed when designing optical fibre systems in substations and depots. | D227: As above | E227: No
B228: NS 208.2.3 Telecommunications Substations Communications Cabinet Allocations Design Work Instruction | C228: NS208.2.3 defines the the quantity and broad function of communications cabinets to be deployed when designing communication systems in substations and depots. | D228: As above | E228: No
B230: NS 210 Documentation and Reference Guide for Major Substations | C230: Provides the general documentation and reference design guidance for the Environmental, Civil, Architectural, Electrical Primary and Electrical Secondary aspects that shall be considered and included into the design and construction of Ausgrid's major substations. | D230: As above | E230: No
B231: NS 211 Working With Asbestos Products (replaces TS665) | C231: Details the requirements for safely working with, and/or removing from the workplace, materials containing asbestos. | D231: As above | E231: No
B232: NS 212 Integrated Support Requirements for Ausgrid Network Assets | C232: sets out the required support requirements, including documentation, spares and training required for new network assets. This information is required to be delivered with any new type of asset being added to the Network | D232: As above | E232: No
B233: NS 214 Guide to HV Live Work Design Principles | C233: applies to the design of overhead mains to facilitate the use of HV Live Line techniques. | D233: As above | E233: No
B234: NS 215 Telecommunications Allocation And Recording Of Fibre Use Design Work Instruction | C234: Specifies the technical requirements for the allocation and recording of usage of optical fibre used throughout the Ausgrid network | D234: As above | E234: No
B235: NS 219 Telecommunications Telephone Allocation And Isolation | C235: Outlines the requirements to be met when installing telephony equipment in a substation where connection external to the substation is via electrically conductive cable. | D235: As above | E235: No
B236: NS 220 Overhead Design Manual | C236: The Overhead Design Manual is to be used to support the overhead line design process. Its purpose is as a standard designer's checking tool and a training aid. | D236: As above | E236: No
B237: NS 221 Telecommunications, Changes To In Service Teleprotection Equipment Configuration Policy | C237: Outlines the requirements to be met when intending to apply hardware and/or software configuration changes to teleprotection equipment carrying live traffic. | D237: As above | E237: No
B238: NS 222 Major Substation Earthing Design | C238: Sets out the objectives and basic configurations required of an earthing layout for major substations. It also specifies procedures and acceptable practice by which these shall be achieved | D238: As above | E238: No
B239: NS 223 Overhead Low Voltage Short Circuiting for De-energised Work | C239: This standard is Ausgrid's specification for the design and use of Low Voltage short circuit sets for personnel protection on Ausgrid's low voltage overhead assets. Note: This standard is not mandatory until the supporting equipment and changes to the Electrical Safety Rules have been made. | D239: As above | E239: No
B240: NS 224 Low Voltage (240/415V) Suburban Commercial & Industrial Underground Distribution Utilising Pillars | C240: Specifies the requirements for the construction of low voltage (240/415 volt) suburban commercial and industrial underground distribution systems utilising pillars in Ausgrid's supply area. | D240: As above | E240: No
B241: NS 230 Testing of Distribution Substations | C241: Applies to the testing of distribution substations throughout all parts of Augrid's supply area. This standard is applicable to pole, kiosk and chamber substations. | D241: As above | E241: No
B242: NS 232 Telecommunications Cables on Ausgrid poles | C242: NS232 is Ausgrid's specification for the design and positioning of NBN cables and fixtures on Ausgrid's overhead assets | D242: As above | E242: No
B243: NS234 Telecommunications Underground Physical Plant Installation | C243: Specifies the requirements for the installation of Ausgrid's telecommunications conduit as well as for the haul of telecommunications cable through underground conduit in Ausgrid's supply area. | D243: As above | E243: No
B244: NS235 Telecommunications Underground to Overhead Transition | C244: Details the minimum requirements for constructing an underground to overhead (UGOH) telecommunications transition on Ausgrid and approved TransGrid assets | D244: As above | E244: No
B245: NS236 Installation of Electronic Perimeter Security at Major Substations | C245: Outlines the minimum requirements for the installation of electronic security equipment for detecting attempted or actual breeches into the live yard perimeters of major substations. | D245: As above | E245: No
B246: NS 238 Supply Quality | C246: Ausgrid's objectives for its electricity network's impact on the characteristics of electricity supplied by retailers to their customers through its electricity network | D246: As above | E246: No
B247: NS243 Telecommunications: Roles, Responsibilities, Training Requirements, Auditing and Quality Assurance Acceptance | C247: Defines the quality assurance processes, documentation and tasks necessary to prove compliance and thus achieve telecommunications asset acceptance by Ausgrid | D247: As above | E247: No
B248: NS245 Telecommunications Approved List of Materials | C248: Lists the approved materials which are specific to the Ausgrid telecommunications network | D248: As above | E248: No
B249: NS250 Requirements for CT, VT, and tripping circuits | C249: Describes requirements for Voltage Transformer (VT), Current Transformer (CT) and Circuit Breaker (CB) trip circuits within zone and subtransmission substations | D249: As above | E249: No
B250: NS251 Secondary Systems - Requirements for Cables Between Panels | C250: This standard describes the following types of electrical cable connections between panels including: - Power supply cables for secondary and auxiliary systems. - Substation control cables.- Secondary CT and VT cables. - Indication and signalling cables. | D250: As above | E250: No
B251: NS252 Secondary Systems - Requirements for wiring within panels | C251: Describes the requirements for secondary wiring within panels in order to facilitate consistency across the network. | D251: As above | E251: No
B252: NS253 Termination of Wiring in Substations Protection and Control Equipment | C252: Standardises the types of cable termination methods, lugs, and crimping tools used across the Ausgrid Network in the wiring of substation control and protection panels and other related substation equipment. | D252: As above | E252: No
B253: NS257 Control and Protection Cabinets and Minor Panel Hardware | C253: Applies to the cabinets used for control and protection equipment within zone and sub-transmission substations. It covers the panel specifications and the minor hardware such as lamps, door locks and similar hardware not directly associated with the design of the control equipment that will be installed in the cabinets. | D253: As above | E253: No
B254: NS259 Requirements for Protection System Segregation | C254: The purpose of this standard is to describe the physical, electrical and logical segregation requirements for protection equipment and functions within zone and subtransmission substations. | D254: As above | E254: No
B255: NS260 Sub-Transmission Feeder Earthing | C255: Provides guidelines on the design and construction of sub-transmission feeder earthing systems. | D255: As above | E255: No
B257: NS262 Private Mains Bushfire Risk Inspection | C257: Prescribes the general procedure and assessment criteria for Private Mains Bush Fire Risk Inspection. It covers the assessment of the bush fire and life threatening safety risks in low voltage private mains. | D257: As above | E257: No
B258: NS263 Setting of 11kV Feeder Protection, Automation and Control Schemes | C258: This standard applies to all new settings issued for the protection, automation and control of 11kV feeders including the setting of protection elements downstream of the zone substation panel. | D258: As above | E258: No
B259: NS264 Major Substation Lightning Protection and Insulation Coordination | C259: This document defines the requirements for: - Design, construction and documentation of major substation lightning protection systems; - Minimum equipment insulation requirements for major substations; and - Minimum overvoltage protective requirements (surge arresters and overhead earth wires) for major substations. | D259: As above | E259: No
B260: NS266 Telecommunications Cables in Ausgrid Premises | C260: Applies to telecommunications "passive" cabling in Ausgrid premises. This standard does not include infrastructure requirements outside Ausgrid premises | D260: As above | E260: No
B261: NS268 Specification for Design and Construction of Waterway Crossing | C261: Assists Ausgrid employees and ASPs involved in the design and construction of Ausgrid overhead, under-bored and submarine waterway crossings including 132kV, 66kV, 33kV, 22kV, 11kV, LV and communications cables. | D261: As above | E261: No
B262: NS270 Stray Direct Current Management | C262: Specifies high level requirements that apply to buried assets across the Ausgrid network subject to exposure from stray direct current from external parties, such as railway traction systems and cathodic protection systems. | D262: As above | E262: No
B263: NS272 Underground Cable Rating | C263: This Network Standard covers Ausgrid's approach to underground cable ratings and where it aligns and deviates from IEC60287 - Electric cables - Calculation of the current rating, the considerations for rating of Ausgrid's underground cables and some detail on why this information is required, the information Ausgrid will supply as part of rating Ausgrid assets and a checklist to ensure all aspects of rating an underground are considered. | D263: As above | E263: No
B264: NS273 Secondary Systems Configuration Management | C264: This standard pertains to the configuration management for secondary systems assets installed on the Ausgrid network in line with: - ISO 10007:2017 - Quality Management - Guidelines for Configuration Management; and, - ISO 9001:2016 - Quality Management Systems - Requirements. | D264: As above | E264: No
B265: NS282 Service Testing | C265: This Network Standard sets out the tests to be performed by authorised persons each time a new connection is made, or a service is replaced, on Ausgrid's network. It also establishes the minimum performance that must be achieved in those tests. This applies to both overhead and underground services. | D265: As above | E265: No
B376: TS 7314 Load Survey Recorder | C376: Describes the procedures for the use of a load survey recorder. NOTE: the electronic version of this document is not available. Use the latest release, hard copy version for reference and construction | D376: As above | E376: No
B377: TS 7316 Reading of Electronic Multifunction Registers | C377: Sets out the method of recording readings of electronic multi-function registers associated with Demand, Time-Of-Use Demand and Industrial Development tariffs NOTE: the electronic version of this document is not available. Use the latest release, hard copy version for reference and construction | D377: As above | E377: No
B378: TS 7317 Electronic Meters | C378: Sets out the methods of installing direct-connected electronic meters | D378: As above | E378: No
B379: TS 7318 Sealing and Labelling of Metering and Service Equipment | C379: Details the recommended procedures to be adopted by field staff when sealing and labelling metering and service equipment | D379: As above | E379: No
B380: TS 7319 End Use Monitoring System | C380: Details the procedures to be adopted when an End-Use Monitoring System is to be installed by a Meter Technician | D380: As above | E380: No
B381: TS 7700 Meter Testing General | C381: Provides general information relating to the testing of meter installations. | D381: As above | E381: No
B382: TS 7704 Principles and Application of Q Metering | C382: Provides an introduction to the theory of kVA metering using the measurement of the quantity Q and is for the information of metering personnel. | D382: As above | E382: No
B383: TS 7752 Periodic Maintenance of Metering Equipment | C383: Details the requirements for periodic testing and sample testing of the different types of metering instruments | D383: As above | E383: No
B384: TS 7753 Maintenance of Portable Meter Test Equipment | C384: Sets out the procedures to be adopted for the regular calibration and maintenance of the portable test equipment used in testing of watthour and energy-demand meters in customer installations. NOTE: the electronic version of this document is not available. Use the latest release, hard copy version for reference and construction | D384: As above | E384: No
B387: Policy - Sustainable Procurement PL000-Y0116 | C387: To define the considerations and accountabilities for sustainable procurement of externally sourced goods and services in a way that has the most positive environmental, social and economic impacts possible over the entire life cycle. | D387: Sourcing and purchase of goods, stores, materials, equipment, works & services to support Ausgrid's capex and opex programmes | E387: No
B388: Procedure - Purchasing - All Users PL000-P0171 | C388: This Procedure supports the Policy â Sustainable Procurement, by describing the requirements, processes, and responsibilities for the purchase of goods and services from external suppliers. In doing so, the principles described in the Policy also apply. | D388: Sourcing and purchase of goods, stores, materials, equipment, works & services to support Ausgrid's capex and opex programmes | E388: No
B389: Procedure - Procurement Source to Contract PL000-P0170 | C389: This Procedure describes the requirements, processes and responsibilities for the sourcing of goods and services from suppliers by Procurement as defined by the scope. | D389: Sourcing and purchase of goods, stores, materials, equipment, works & services to support Ausgrid's capex and opex programmes | E389: No
B391: Company Policy - Acceptable Use of Technology | C391: The purpose of this policy is to describe how ICT assets will be allocated to employees to support the performance of their duties, to provide guidelines for the limits of personal use, to define what constitutes inappropriate use of technology and to describe how ICT asset use will be monitored and any inappropriate use identified. | D391: ICT Opex | E391: No
B393: Company Policy - Operation and Control of the Distribution System | C393: Provides clarity on how Ausgrid will meet its Licence Conditions that apply to the operation and control of the distribution system in relation to access outside of Australia and cyber security. | D393: OT Opex | E393: No
B394: Company Procedure - OT Control System Lifecycle and Release Management | C394: To establish management of Control System releases in Control System Master Station environments and to ensure the responsible groups understand their roles. | D394: OT Opex | E394: No
B395: Company Procedure - Network Operations Critical Infrastructure Licence Conditions | C395: This procedure defines the framework in accordance with the requirements of the Company Policy Network Operations Critical Infrastructure Licence Conditions (the 'policy'): - risk management approach to be adopted to support decision making for maintenance activities undertaken in accordance with Licence Condition 9.1; and - approach to manage breaches and non-complying events associated with Licence Condition 9.1. It applies applies only to parties involved in the undertaking of maintenance on the distribution system. | D395: OT Opex | E395: No
B396: Branch Procedure - Control System Master Station Addition, Removal and Disposal of Assets | C396: Defines the process of adding, removing and disposing of Control System Master Station assets in the most appropriate and safe way, so as to protect the company from security vulnerabilities. | D396: OT Opex | E396: No
B397: Branch Procedure - Control System Master Station Backup Verification Process | C397: Describes the activities required to backup and restore control system data. | D397: OT Opex | E397: No
B398: Branch Procedure - Control System Master Station Acceptance Testing | C398: This procedure describes the activities required to certify that the Control System Master Station systems are fit for purpose prior to production deployment. The company Control Rooms use these systems to manage the electricity distribution network. As such the systems are considered mission critical and require a structured certification process prior to being deployed into production. | D398: OT Opex | E398: No
B399: Branch Procedure - Defensive Isolation of Control System Master Station Network Segments | C399: The purpose of this procedure is to: - document the network isolation options for the Control System Master Station available to defend against cyber attack; - confirm the chain of command which: - guarantees the quickest possible decision to limit potential damage; and - gives the order to isolate network segments. - identify the operational employee resources to action the isolation procedures. | D399: OT Opex | E399: No
B400: Branch Procedure - Control System Master Station Communication Flows | C400: Describes the activities required to manage communication flows to and from the Control Zone and Industrial Demilitarised Zone (Industrial DMZ) of the Control System Master Station. | D400: OT Opex | E400: No
B401: Branch Procedure - Control System Master Station Network Segment Isolation | C401: Describes the actions required when one of the following scenarios occurs: - isolation of network segments is required to prevent or contain a significant incident, for example Priority 1 (P1), Priority 2 (P2) cyber attack; or - network segments that have been isolated, due to a P1 or P2 incident, are to be re-instated. | D401: OT Opex | E401: No
B402: Branch Procedure - Control System Master Station Physical and environmental Security | C402: The company maintains policy and procedures for the effective implementation of selected security controls. Policy and procedures reflect applicable laws, directives, regulations, policies, standards, and guidance. | D402: OT Opex | E402: No
B403: Branch Procedure - Control System Master Station Configuration Management | C403: Defines the configuration management processes that apply to the Control System Master Station environments, to ensure only configurations that have passed acceptance testing before being deployed into Production. | D403: OT Opex | E403: No
B404: Branch Procedure - Control System Master Station Change Management | C404: To describe the process to effectively manage Change Requests (CRs) within the Control System Master Station environment. The objectives of this procedure are as follows: - improving the handling of CRs; - ensuring a quality review of information included within change(s) is in alignment with standard Information Technology Infrastructure Library (ITIL) practices; - allowing business users to understand change(s) that impact their area, and to communicate the impact to users; and - ensuring senior management has visibility of all change(s) occurring with the Control System Master Station to align with the company's strategy. | D404: OT Opex | E404: No
B405: Branch Procedure - Control System Master Station Server Management | C405: Describes how servers are added, created, maintained and decommissioned within the Control System Master Station environments. | D405: OT Opex | E405: No
B406: Branch Procedure - Control System Master Station Offline Test Environment Management | C406: Describes the management of the Control System Master Station Offline Test Environment | D406: OT Opex | E406: No
B407: Branch Procedure - Control System Master Station Disaster Recovery Process | C407: Describes the activities required to restore the Control System Master Station data from a backup. | D407: OT Opex | E407: No
B408: Branch Procedure - ICT Disaster Recovery | C408: Describes the procedure used by ICT to undertake disaster recovery testing of ICT applications and infrastructure that support mission and business critical processes. This procedure defines: -how the disaster recovery (DR) test calendar is created; -how modifications to the testing calendar are approved; -the process for classifying application criticality and determining the appropriate business requirements (recovery point and time); -the process for undertaking and performing the recovery of an application at its disaster recovery site for either a test or actual disaster; -how a data centre failure is managed; and -managing 3rd party hosted application disaster recovery testing. | D408: ICT Opex | E408: No
B409: Branch Procedure - ICT Change Management | C409: This procedure defines the process by which the ICT Business Unit manages technology changes to the production environment, enabling beneficial changes to be made with the minimum of disruption to ICT services. It applies to all employees and third party service providers that request, approve, or implement change on information technology assets and configuration items that provide production services or are part of the production environment. These include (but are not limited to) operating systems, computing hardware, networks, telecommunications, applications (eg modules, programmes, interfaces) and controlled documentation. | D409: ICT Opex; Technology Plan Capex | E409: No
B410: Company Policy - Application Management Policy | C410: The intention of this policy is to define the roles involved in the management of applications and to describe the key controls for applications in Ausgrid's production environment. | D410: ICT Opex | E410: No
... 19 more rows

Sheet 7.2 Contingent projects
B1: =INDEX(dms_Worksheet_List,MATCH(dms_Model,dms_Model_List)) -> REGULATORY REPORTING STATEMENT
B2: =INDEX(dms_TradingNameFull_List,MATCH(dms_TradingName,dms_TradingName_List)) -> Ausgrid
B3: =CONCATENATE("REGULATORY PERIOD FROM ", FRCP_y1," TO ",dms_MultiYear_FinalYear_Result) -> REGULATORY PERIOD FROM 2024-25 TO 2028-29
B4: 7.2 CONTINGENT PROJECTS
B6: 7.2.1 - PROPOSED CONTINGENT PROJECTS FOR THE FORTHCOMING REGULATORY CONTROL PERIOD
B7: Proposed contingent project name | C7: Proposed contingent capital expenditure ($0's, nominal) | D7: Proposed trigger events | E7: =CONCATENATE("Proposed annual revenue requirement for ", FRCP_y1, " ($0's, nominal)") -> Proposed annual revenue requirement for 2024-25 ($0's, nominal) | F7: =CONCATENATE("5% of the annual revenue requirement for ",FRCP_y1,"") -> 5% of the annual revenue requirement for 2024-25
B8: N/A | F8: =+E8*0.05 -> 0
E9: =+$E$8 -> 0 | F9: 0
E10: 0 | F10: 0
E11: 0 | F11: 0
E12: 0 | F12: 0
E13: 0 | F13: 0
E14: 0 | F14: 0
E15: 0 | F15: 0
E16: 0 | F16: 0
E17: 0 | F17: 0
E18: 0 | F18: 0
E19: 0 | F19: 0
E20: 0 | F20: 0
E21: 0 | F21: 0
E22: 0 | F22: 0
E23: 0 | F23: 0
E24: 0 | F24: 0
E25: 0 | F25: 0
E26: 0 | F26: 0
E27: 0 | F27: 0
E28: 0 | F28: 0
E29: 0 | F29: 0
E30: 0 | F30: 0
E31: 0 | F31: 0
E32: 0 | F32: 0
E33: 0 | F33: 0
E34: 0 | F34: 0
E35: 0 | F35: 0
E36: 0 | F36: 0
E37: 0 | F37: 0
E38: 0 | F38: 0
E39: 0 | F39: 0
E40: 0 | F40: 0
E41: 0 | F41: 0
E42: 0 | F42: 0
E43: 0 | F43: 0
E44: 0 | F44: 0
E45: 0 | F45: 0

Sheet 7.3 Obligations
B1: =INDEX(dms_Worksheet_List,MATCH(dms_Model,dms_Model_List)) -> REGULATORY REPORTING STATEMENT
B2: =INDEX(dms_TradingNameFull_List,MATCH(dms_TradingName,dms_TradingName_List)) -> Ausgrid
B3: =CONCATENATE("REGULATORY PERIOD FROM ", FRCP_y1," TO ",dms_MultiYear_FinalYear_Result) -> REGULATORY PERIOD FROM 2024-25 TO 2028-29
B4: 7.3 OBLIGATIONS, REQUIREMENTS & STANDARDS
B6: 7.3.1 - OBLIGATIONS OR REQUIREMENTS
C7: Brief description | D7: Relevance to regulatory proposal | E7: Expenditure impact
C8: Description of relevant obligations or requirements within the instrument (e.g. safety obligations, reliability targets) | D8: Identify what element of the proposal/supporting documents the obligation or requirement is relevant to e.g. replacement capex, capacity utilisation thresholds, opex | E8: Is the obligation or requirement identified in the response to section 4 'Step Changes' of the notice (yes or no)?
B9: LEGISLATION
B10: A New Tax System (Goods and Services Tax) Act 1999 (Cth) | C10: GST obligations | D10: OPEX | E10: No
B11: Aboriginal and Torres Strait Islander Heritage Protection Act 1984 (Cth) | C11: Obtain approval to work in protected areas and comply with all permits and approvals. | D11: CAPEX for new installations, repairs or replacement | E11: No
B12: Aboriginal Land Rights Act 1983 (NSW) | C12: Review for strategic property management | D12: CAPEX for new installations | E12: No
B13: Access to Neighbouring Land Act 2000 (NSW) | C13: Development of land for electrical infrastructure, service centres, etc | D13: CAPEX for acquisitions | E13: No
B14: Age Discrimination Act 2004 (Cth) | C14: Workplace and employment obligations, and related process | D14: OPEX | E14: No
B15: Agricultural and Veterinary Chemicals (New South Wales) Act 1994 (NSW) | C15: Miscellaneous environmental obligations | D15: CAPEX for new installations, repairs or replacement | E15: No
B16: Agricultural and Veterinary Chemicals Code Act 1994 (Cth) | C16: Miscellaneous environmental obligations | D16: CAPEX for new installations, repairs or replacement | E16: No
B17: Annual Holidays Act 1944 (NSW) | C17: Workplace and employment obligations, and related process | D17: OPEX | E17: No
B18: Anti-Discrimination Act 1977 (NSW) | C18: Workplace and employment obligations, and related process | D18: OPEX | E18: No
B19: Apprenticeship and Traineeship Act 2001 (NSW) | C19: Workplace and employment obligations, and related process | D19: OPEX | E19: No
B20: Australian Business Growth Fund (Coronavirus Economic Response Package) Act 2020 | C20: Workplace and employment obligations, and related process | D20: OPEX | E20: No
B21: Australian Human Rights Commission Act 1986 (Cth) | C21: Workplace and employment obligations, and related process | D21: OPEX | E21: No
B22: Australian Jobs Act 2013 (Cth) | C22: Network operations and practices | D22: CAPEX for new installations, repairs or replacement | E22: No
B23: Australian Radiation Protection and Nuclear Safety Act (License Charges) 1998 (Cth) | C23: Network operations and safety practices | D23: CAPEX for new installations, repairs or replacement | E23: No
B24: Australian Radiation Protection and Nuclear Safety Act 1998 (Cth) | C24: Network operations and safety practices | D24: CAPEX for new installations, repairs or replacement | E24: No
B25: Australian Securities and Investments Commission Act 2001Â (Cth) | C25: The formation and operation of companies and fund raising | D25: CAPEX and OPEX | E25: No
B26: Bankruptcy Act 1966 (Cth) | C26: Insolvency and Trustee Service Australia | D26: OPEX | E26: No
B27: Biodiversity Conservation Act 2016 (NSW) | C27: Environmental assessment where threatened species may be impacted. | D27: CAPEX for new installations, repairs or replacement | E27: No
